Workbook

Sheet INTRODUCTION
B2: Ce logiciel permet d'éditer les courriers d'avancements d'échelons à envoyer aux
B3: agents directement concernés en notant qu'une seule fois :
B4: l'identité de l'agent et la date d'effet de son avancement d'échelon.
B6: C'est donc un gain de temps non négligeable dans la préparation très chronophage
B7: des CAP et également une uniformisation de toutes les informations transmises
B8: aux agents par tous les représentants SUD Santé des CAPL et CAPD.
B10: 1) ACTIVATION DES MACROS
B12: Pour fonctionner, ce logiciel nécéssite que les " macros " soient activées.
B13: Les " macros " permettent à partir d'un bouton (apparition de la petite main),
B14: l'exécution d'une application donnée.
B16: Pour vérifier si elles sont bien activées,
B17: appuyez sur le bouton ci-contre :
B19: Cette page doit apparaître :
B22: Appuyez alors dans cette page
B23: sur ce bouton pour revenir
B24: à l'INTRODUCTION :
B26: Si la page n'apparait pas, cela implique que les " macros " ne sont pas activées.
B27: Appuyez sur " F1 " de votre clavier pour accéder à la rubrique " AIDE "
B28: Notez : MACROS dans le moteur de recherche
B29: Selectionnez : Activer ou désactiver les Macros
B30: Suivez les recommandations pour les activer
B32: 2) PARAMETRAGE DU LOGICIEL
B34: Pour votre 1ère utilisation de ce logiciel, vous devez
B35: le paramatrer en cliquant sur ce bouton :
B37: 3) COMMENTAIRES DIVERS …
B39: N'hésitez pas à nous faire parvenir vos commentaires sur ce Logiciel à l'adresse ci-jointe : sudsante@ch-stmalo.fr

Sheet PARAMETRAGE
B2: PARAMETRAGE
B4: Première utilisation :
B6: 1) Téléchargez la dernière version mise à jour pour les grilles salariales sur notre site.
B7: http://www.sudsantesociaux35.org
B9: 2) Personnalisez votre Logiciel en renseignant:
B11: * Nom de l'Etablissement.
B12: * Nom des représentants SUD Santé aux CAP.
B13: * Renseignez "Locale" ou "Départementale"
B14: * Renseignez "vos numéros de téléphone".
B15: * Renseignez "votre département".
B16: * Renseignez "votre adresse mél" et celle de "votre site départemental".
B17: * Renseignez "l'année" et "la date de la CAP".

Sheet TEST MACROS
A1: Les " macros " sont activées
A3: Pour retourner à l'introduction, appuyez sur le bouton ci-dessous :

Sheet ACCUEIL

Sheet ETABLISSEMENT
B8: Centre Hospitalier de Saint Malo

Sheet CAPL ou CAPD

Sheet VALEUR du POINT
E3: 4.686 €
E11: 2019-01-01

Sheet TELEPHONE
E3: 2886
E10: 02 99 21 28 86

Sheet DEPARTEMENT
E4: 35

Sheet MEL
E4: sudsante@ch-stmalo.fr

Sheet SITE DEPART

Sheet HTTP DEPART
B13: http://www.sudsantesociaux35.org

Sheet REPRESENTANT
B8: Véronique ERUSSARD, Servanne CORNEE, Sébastien BAYAUT

Sheet CAP
E3: 2019
E11: 2019-04-16

Sheet END

Sheet RECAPITULATIF
B2: =ETABLISSEMENT!B8 -> Centre Hospitalier de Saint Malo
B4: Nom du de la ou des Représentant-e-s
B5: =REPRESENTANT!B8 -> Véronique ERUSSARD, Servanne CORNEE, Sébastien BAYAUT
B7: CAP | D7: Locale
B9: Année | D9: =CAP!E3 -> 2019
B11: Date de la CAP | D11: =CAP!E11 -> 2019-04-16
B13: Valeur du Point | D13: ='VALEUR du POINT'!$E$3 -> 4.686 €
B15: Date de la valeur du Point | D15: ='VALEUR du POINT'!E11 -> 2019-01-01
B17: Poste | D17: =TELEPHONE!$E$3 -> 2886
B19: Téléphone | D19: =TELEPHONE!$E$10 -> 02 99 21 28 86
B21: Sud Santé Sociaux | D21: =DEPARTEMENT!E4 -> 35
B23: Mél | C23: =MEL!E4 -> sudsante@ch-stmalo.fr
B25: Site Départemental Sud | D25: ='HTTP DEPART'!B13 -> http://www.sudsantesociaux35.org

Sheet CAP 8

Sheet GRILLE C1
B2: Catégorie C Grade C1 Ancienne Echelle 3
B6: Adjoint Administratifs Agent d'Entretien Qualifié Agent de Service Hospitalier Qualifié Classe Normale Aide d'Electroradiologie Classe Normale (extinction) Aide de Laboratoire Classe Normale (extinction) Aide de Pharmacie Classe Normale(extinction)
B10: Echelon | C10: Durée (en mois) | D10: Indice Majoré
B12: 1 | C12: 12 | D12: 326
B14: 2 | C14: 24 | D14: 327
B16: 3 | C16: 24 | D16: 328
B18: 4 | C18: 24 | D18: 329
B20: 5 | C20: 24 | D20: 330
B22: 6 | C22: 24 | D22: 332
B24: 7 | C24: 24 | D24: 335
B26: 8 | C26: 24 | D26: 339
B28: 9 | C28: 36 | D28: 343
B30: 10 | C30: 36 | D30: 354
B32: 11 | D32: 367

Sheet IMP GRILLE C1
B2: 1) Imprimez autant de feuilles que d'agents concernés.
B4: 2) Pliez en 3 au niveau du repère, deux petits traits noirs.
B6: 3) Inserrez ce courrier dans une enveloppe 110 X 220 à fenêtre.

Sheet C1 Echelon 2
G2: Commission Administrative
G3: Paritaire | M3: =RECAPITULATIF!D7 -> Locale
M9: Mme, Mr :
M11: Grade :
M13: Service :
A16: Votre ou vos représentant-e-s du personnel
A18: =RECAPITULATIF!B5 -> Véronique ERUSSARD, Servanne CORNEE, Sébastien BAYAUT
A20: SUD Santé Sociaux | E20: =RECAPITULATIF!D21 -> 35 | F20: du:
A22: =RECAPITULATIF!B2 -> Centre Hospitalier de Saint Malo
A24: siégeant auprès de la CAP | F24: =RECAPITULATIF!D7 -> Locale | J24: du : | K24: =RECAPITULATIF!D11 -> 2019-04-16 | N24: vous informe de votre :
F27: AVANCEMENT D’ECHELON
A33: Vous passez à l’échelon : | F33: ='GRILLE C1'!B14 -> 2 | H33: Indice Majoré : | L33: ='GRILLE C1'!D14 -> 327 | R33: ='GRILLE C1'!B2 -> Catégorie C Grade C1 Ancienne Echelle 3
A36: Date d'effet : | F36: / | H36: / | I36: =RECAPITULATIF!D9 -> 2019
R37: ='GRILLE C1'!B6 -> Adjoint Administratifs Agent d'Entretien Qualifié Agent de Service Hospitalier Qualifié Classe Normale Aide d'Electroradiologie Classe Normale (extinction) Aide de Laboratoire Classe Normale (extinction) Aide de Pharmacie Classe Normale(extinction)
A40: Ce qui représente un gain mensuel de : | I40: ='GRILLE C1'!D14-'GRILLE C1'!D12 -> 1 | K40: points d'indice.
R41: ='GRILLE C1'!B10 -> Echelon | S41: ='GRILLE C1'!C10 -> Durée (en mois) | T41: ='GRILLE C1'!D10 -> Indice Majoré
A43: Pour information, la valeur brute du point d'indice | R43: ='GRILLE C1'!B12 -> 1 | S43: ='GRILLE C1'!C12 -> 12 | T43: ='GRILLE C1'!D12 -> 326
R45: ='GRILLE C1'!B14 -> 2 | S45: ='GRILLE C1'!C14 -> 24 | T45: ='GRILLE C1'!D14 -> 327
A46: est de | C46: =RECAPITULATIF!D13 -> 4.686 € | E46: au | F46: =RECAPITULATIF!D15 -> 2019-01-01
R47: ='GRILLE C1'!B16 -> 3 | S47: ='GRILLE C1'!C16 -> 24 | T47: ='GRILLE C1'!D16 -> 328
A49: Soit un gain net mensuel de : | G49: =I40*C46*0.8315 -> 3.90 € | R49: ='GRILLE C1'!B18 -> 4 | S49: ='GRILLE C1'!C18 -> 24 | T49: ='GRILLE C1'!D18 -> 329
R51: ='GRILLE C1'!B20 -> 5 | S51: ='GRILLE C1'!C20 -> 24 | T51: ='GRILLE C1'!D20 -> 330
R53: ='GRILLE C1'!B22 -> 6 | S53: ='GRILLE C1'!C22 -> 24 | T53: ='GRILLE C1'!D22 -> 332
A54: Vos représentant-e-s SUD Santé Sociaux | I54: =RECAPITULATIF!D21 -> 35 | K54: sont à votre disposition
A55: pour tous renseignements complémentaires au poste : | M55: =RECAPITULATIF!D17 -> 2886 | R55: ='GRILLE C1'!B24 -> 7 | S55: ='GRILLE C1'!C24 -> 24 | T55: ='GRILLE C1'!D24 -> 335
R57: ='GRILLE C1'!B26 -> 8 | S57: ='GRILLE C1'!C26 -> 24 | T57: ='GRILLE C1'!D26 -> 339
R59: ='GRILLE C1'!B28 -> 9 | S59: ='GRILLE C1'!C28 -> 36 | T59: ='GRILLE C1'!D28 -> 343
A60: Recevez toutes nos salutations.
R61: ='GRILLE C1'!B30 -> 10 | S61: ='GRILLE C1'!C30 -> 36 | T61: ='GRILLE C1'!D30 -> 354
A63: =RECAPITULATIF!B5 -> Véronique ERUSSARD, Servanne CORNEE, Sébastien BAYAUT | R63: ='GRILLE C1'!B32 -> 11 | S63: ='GRILLE C1'!C32 -> 0 | T63: ='GRILLE C1'!D32 -> 367
A65: SUD Santé Sociaux | E65: =RECAPITULATIF!D21 -> 35
A70: Tél : | B70: =RECAPITULATIF!D19 -> 02 99 21 28 86
A71: Mél : | C71: =RECAPITULATIF!C23 -> sudsante@ch-stmalo.fr
A72: =RECAPITULATIF!B25 -> Site Départemental Sud | F72: =RECAPITULATIF!D25 -> http://www.sudsantesociaux35.org

Sheet C1 Echelon 3
G2: Commission Administrative
G3: Paritaire | M3: =RECAPITULATIF!D7 -> Locale
M9: Mme, Mr :
M11: Grade :
M13: Service :
A16: Votre ou vos représentant-e-s du personnel
A18: =RECAPITULATIF!B5 -> Véronique ERUSSARD, Servanne CORNEE, Sébastien BAYAUT
A20: SUD Santé Sociaux | E20: =RECAPITULATIF!D21 -> 35 | F20: du:
A22: =RECAPITULATIF!B2 -> Centre Hospitalier de Saint Malo
A24: siégeant auprès de la CAP | F24: =RECAPITULATIF!D7 -> Locale | J24: du : | K24: =RECAPITULATIF!D11 -> 2019-04-16 | N24: vous informe de votre :
F27: AVANCEMENT D’ECHELON
A33: Vous passez à l’échelon : | F33: ='GRILLE C1'!B16 -> 3 | H33: Indice Majoré : | L33: ='GRILLE C1'!D16 -> 328 | R33: ='GRILLE C1'!B2 -> Catégorie C Grade C1 Ancienne Echelle 3
A36: Date d'effet : | F36: / | H36: / | I36: =RECAPITULATIF!D9 -> 2019
R37: ='GRILLE C1'!B6 -> Adjoint Administratifs Agent d'Entretien Qualifié Agent de Service Hospitalier Qualifié Classe Normale Aide d'Electroradiologie Classe Normale (extinction) Aide de Laboratoire Classe Normale (extinction) Aide de Pharmacie Classe Normale(extinction)
A40: Ce qui représente un gain mensuel de : | I40: ='GRILLE C1'!D16-'GRILLE C1'!D14 -> 1 | K40: points d'indice.
R41: ='GRILLE C1'!B10 -> Echelon | S41: ='GRILLE C1'!C10 -> Durée (en mois) | T41: ='GRILLE C1'!D10 -> Indice Majoré
A43: Pour information, la valeur brute du point d'indice | R43: ='GRILLE C1'!B12 -> 1 | S43: ='GRILLE C1'!C12 -> 12 | T43: ='GRILLE C1'!D12 -> 326
R45: ='GRILLE C1'!B14 -> 2 | S45: ='GRILLE C1'!C14 -> 24 | T45: ='GRILLE C1'!D14 -> 327
A46: est de | C46: =RECAPITULATIF!D13 -> 4.686 € | E46: au | F46: =RECAPITULATIF!D15 -> 2019-01-01
R47: ='GRILLE C1'!B16 -> 3 | S47: ='GRILLE C1'!C16 -> 24 | T47: ='GRILLE C1'!D16 -> 328
A49: Soit un gain net mensuel de : | G49: =I40*C46*0.8315 -> 3.90 € | R49: ='GRILLE C1'!B18 -> 4 | S49: ='GRILLE C1'!C18 -> 24 | T49: ='GRILLE C1'!D18 -> 329
R51: ='GRILLE C1'!B20 -> 5 | S51: ='GRILLE C1'!C20 -> 24 | T51: ='GRILLE C1'!D20 -> 330
R53: ='GRILLE C1'!B22 -> 6 | S53: ='GRILLE C1'!C22 -> 24 | T53: ='GRILLE C1'!D22 -> 332
A54: Vos représentant-e-s SUD Santé Sociaux | I54: =RECAPITULATIF!D21 -> 35 | K54: sont à votre disposition
A55: pour tous renseignements complémentaires au poste : | M55: =RECAPITULATIF!D17 -> 2886 | R55: ='GRILLE C1'!B24 -> 7 | S55: ='GRILLE C1'!C24 -> 24 | T55: ='GRILLE C1'!D24 -> 335
R57: ='GRILLE C1'!B26 -> 8 | S57: ='GRILLE C1'!C26 -> 24 | T57: ='GRILLE C1'!D26 -> 339
R59: ='GRILLE C1'!B28 -> 9 | S59: ='GRILLE C1'!C28 -> 36 | T59: ='GRILLE C1'!D28 -> 343
A60: Recevez toutes nos salutations.
R61: ='GRILLE C1'!B30 -> 10 | S61: ='GRILLE C1'!C30 -> 36 | T61: ='GRILLE C1'!D30 -> 354
A63: =RECAPITULATIF!B5 -> Véronique ERUSSARD, Servanne CORNEE, Sébastien BAYAUT | R63: ='GRILLE C1'!B32 -> 11 | S63: ='GRILLE C1'!C32 -> 0 | T63: ='GRILLE C1'!D32 -> 367
A65: SUD Santé Sociaux | E65: =RECAPITULATIF!D21 -> 35
A70: Tél : | B70: =RECAPITULATIF!D19 -> 02 99 21 28 86
A71: Mél : | C71: =RECAPITULATIF!C23 -> sudsante@ch-stmalo.fr
A72: =RECAPITULATIF!B25 -> Site Départemental Sud | F72: =RECAPITULATIF!D25 -> http://www.sudsantesociaux35.org

Sheet C1 Echelon 4
G2: Commission Administrative
G3: Paritaire | M3: =RECAPITULATIF!D7 -> Locale
M9: Mme, Mr :
M11: Grade :
M13: Service :
A16: Votre ou vos représentant-e-s du personnel
A18: =RECAPITULATIF!B5 -> Véronique ERUSSARD, Servanne CORNEE, Sébastien BAYAUT
A20: SUD Santé Sociaux | E20: =RECAPITULATIF!D21 -> 35 | F20: du:
A22: =RECAPITULATIF!B2 -> Centre Hospitalier de Saint Malo
A24: siégeant auprès de la CAP | F24: =RECAPITULATIF!D7 -> Locale | J24: du : | K24: =RECAPITULATIF!D11 -> 2019-04-16 | N24: vous informe de votre :
F27: AVANCEMENT D’ECHELON
A33: Vous passez à l’échelon : | F33: ='GRILLE C1'!B18 -> 4 | H33: Indice Majoré : | L33: ='GRILLE C1'!D18 -> 329 | R33: ='GRILLE C1'!B2 -> Catégorie C Grade C1 Ancienne Echelle 3
A36: Date d'effet : | F36: / | H36: / | I36: =RECAPITULATIF!D9 -> 2019
R37: ='GRILLE C1'!B6 -> Adjoint Administratifs Agent d'Entretien Qualifié Agent de Service Hospitalier Qualifié Classe Normale Aide d'Electroradiologie Classe Normale (extinction) Aide de Laboratoire Classe Normale (extinction) Aide de Pharmacie Classe Normale(extinction)
A40: Ce qui représente un gain mensuel de : | I40: ='GRILLE C1'!D18-'GRILLE C1'!D16 -> 1 | K40: points d'indice.
R41: ='GRILLE C1'!B10 -> Echelon | S41: ='GRILLE C1'!C10 -> Durée (en mois) | T41: ='GRILLE C1'!D10 -> Indice Majoré
A43: Pour information, la valeur brute du point d'indice | R43: ='GRILLE C1'!B12 -> 1 | S43: ='GRILLE C1'!C12 -> 12 | T43: ='GRILLE C1'!D12 -> 326
R45: ='GRILLE C1'!B14 -> 2 | S45: ='GRILLE C1'!C14 -> 24 | T45: ='GRILLE C1'!D14 -> 327
A46: est de | C46: =RECAPITULATIF!D13 -> 4.686 € | E46: au | F46: =RECAPITULATIF!D15 -> 2019-01-01
R47: ='GRILLE C1'!B16 -> 3 | S47: ='GRILLE C1'!C16 -> 24 | T47: ='GRILLE C1'!D16 -> 328
A49: Soit un gain net mensuel de : | G49: =I40*C46*0.8315 -> 3.90 € | R49: ='GRILLE C1'!B18 -> 4 | S49: ='GRILLE C1'!C18 -> 24 | T49: ='GRILLE C1'!D18 -> 329
R51: ='GRILLE C1'!B20 -> 5 | S51: ='GRILLE C1'!C20 -> 24 | T51: ='GRILLE C1'!D20 -> 330
R53: ='GRILLE C1'!B22 -> 6 | S53: ='GRILLE C1'!C22 -> 24 | T53: ='GRILLE C1'!D22 -> 332
A54: Vos représentant-e-s SUD Santé Sociaux | I54: =RECAPITULATIF!D21 -> 35 | K54: sont à votre disposition
A55: pour tous renseignements complémentaires au poste : | M55: =RECAPITULATIF!D17 -> 2886 | R55: ='GRILLE C1'!B24 -> 7 | S55: ='GRILLE C1'!C24 -> 24 | T55: ='GRILLE C1'!D24 -> 335
R57: ='GRILLE C1'!B26 -> 8 | S57: ='GRILLE C1'!C26 -> 24 | T57: ='GRILLE C1'!D26 -> 339
R59: ='GRILLE C1'!B28 -> 9 | S59: ='GRILLE C1'!C28 -> 36 | T59: ='GRILLE C1'!D28 -> 343
A60: Recevez toutes nos salutations.
R61: ='GRILLE C1'!B30 -> 10 | S61: ='GRILLE C1'!C30 -> 36 | T61: ='GRILLE C1'!D30 -> 354
A63: =RECAPITULATIF!B5 -> Véronique ERUSSARD, Servanne CORNEE, Sébastien BAYAUT | R63: ='GRILLE C1'!B32 -> 11 | S63: ='GRILLE C1'!C32 -> 0 | T63: ='GRILLE C1'!D32 -> 367
A65: SUD Santé Sociaux | E65: =RECAPITULATIF!D21 -> 35
A70: Tél : | B70: =RECAPITULATIF!D19 -> 02 99 21 28 86
A71: Mél : | C71: =RECAPITULATIF!C23 -> sudsante@ch-stmalo.fr
A72: =RECAPITULATIF!B25 -> Site Départemental Sud | F72: =RECAPITULATIF!D25 -> http://www.sudsantesociaux35.org

Sheet C1 Echelon 5
G2: Commission Administrative
G3: Paritaire | M3: =RECAPITULATIF!D7 -> Locale
M9: Mme, Mr :
M11: Grade :
M13: Service :
A16: Votre ou vos représentant-e-s du personnel
A18: =RECAPITULATIF!B5 -> Véronique ERUSSARD, Servanne CORNEE, Sébastien BAYAUT
A20: SUD Santé Sociaux | E20: =RECAPITULATIF!D21 -> 35 | F20: du:
A22: =RECAPITULATIF!B2 -> Centre Hospitalier de Saint Malo
A24: siégeant auprès de la CAP | F24: =RECAPITULATIF!D7 -> Locale | J24: du : | K24: =RECAPITULATIF!D11 -> 2019-04-16 | N24: vous informe de votre :
F27: AVANCEMENT D’ECHELON
A33: Vous passez à l’échelon : | F33: ='GRILLE C1'!B20 -> 5 | H33: Indice Majoré : | L33: ='GRILLE C1'!D20 -> 330 | R33: ='GRILLE C1'!B2 -> Catégorie C Grade C1 Ancienne Echelle 3
A36: Date d'effet : | F36: / | H36: / | I36: =RECAPITULATIF!D9 -> 2019
R37: ='GRILLE C1'!B6 -> Adjoint Administratifs Agent d'Entretien Qualifié Agent de Service Hospitalier Qualifié Classe Normale Aide d'Electroradiologie Classe Normale (extinction) Aide de Laboratoire Classe Normale (extinction) Aide de Pharmacie Classe Normale(extinction)
A40: Ce qui représente un gain mensuel de : | I40: ='GRILLE C1'!D20-'GRILLE C1'!D18 -> 1 | K40: points d'indice.
R41: ='GRILLE C1'!B10 -> Echelon | S41: ='GRILLE C1'!C10 -> Durée (en mois) | T41: ='GRILLE C1'!D10 -> Indice Majoré
A43: Pour information, la valeur brute du point d'indice | R43: ='GRILLE C1'!B12 -> 1 | S43: ='GRILLE C1'!C12 -> 12 | T43: ='GRILLE C1'!D12 -> 326
R45: ='GRILLE C1'!B14 -> 2 | S45: ='GRILLE C1'!C14 -> 24 | T45: ='GRILLE C1'!D14 -> 327
A46: est de | C46: =RECAPITULATIF!D13 -> 4.686 € | E46: au | F46: =RECAPITULATIF!D15 -> 2019-01-01
R47: ='GRILLE C1'!B16 -> 3 | S47: ='GRILLE C1'!C16 -> 24 | T47: ='GRILLE C1'!D16 -> 328
A49: Soit un gain net mensuel de : | G49: =I40*C46*0.8315 -> 3.90 € | R49: ='GRILLE C1'!B18 -> 4 | S49: ='GRILLE C1'!C18 -> 24 | T49: ='GRILLE C1'!D18 -> 329
R51: ='GRILLE C1'!B20 -> 5 | S51: ='GRILLE C1'!C20 -> 24 | T51: ='GRILLE C1'!D20 -> 330
R53: ='GRILLE C1'!B22 -> 6 | S53: ='GRILLE C1'!C22 -> 24 | T53: ='GRILLE C1'!D22 -> 332
A54: Vos représentant-e-s SUD Santé Sociaux | I54: =RECAPITULATIF!D21 -> 35 | K54: sont à votre disposition
A55: pour tous renseignements complémentaires au poste : | M55: =RECAPITULATIF!D17 -> 2886 | R55: ='GRILLE C1'!B24 -> 7 | S55: ='GRILLE C1'!C24 -> 24 | T55: ='GRILLE C1'!D24 -> 335
R57: ='GRILLE C1'!B26 -> 8 | S57: ='GRILLE C1'!C26 -> 24 | T57: ='GRILLE C1'!D26 -> 339
R59: ='GRILLE C1'!B28 -> 9 | S59: ='GRILLE C1'!C28 -> 36 | T59: ='GRILLE C1'!D28 -> 343
A60: Recevez toutes nos salutations.
R61: ='GRILLE C1'!B30 -> 10 | S61: ='GRILLE C1'!C30 -> 36 | T61: ='GRILLE C1'!D30 -> 354
A63: =RECAPITULATIF!B5 -> Véronique ERUSSARD, Servanne CORNEE, Sébastien BAYAUT | R63: ='GRILLE C1'!B32 -> 11 | S63: ='GRILLE C1'!C32 -> 0 | T63: ='GRILLE C1'!D32 -> 367
A65: SUD Santé Sociaux | E65: =RECAPITULATIF!D21 -> 35
A70: Tél : | B70: =RECAPITULATIF!D19 -> 02 99 21 28 86
A71: Mél : | C71: =RECAPITULATIF!C23 -> sudsante@ch-stmalo.fr
A72: =RECAPITULATIF!B25 -> Site Départemental Sud | F72: =RECAPITULATIF!D25 -> http://www.sudsantesociaux35.org

Sheet C1 Echelon 6
G2: Commission Administrative
G3: Paritaire | M3: =RECAPITULATIF!D7 -> Locale
M9: Mme, Mr :
M11: Grade :
M13: Service :
A16: Votre ou vos représentant-e-s du personnel
A18: =RECAPITULATIF!B5 -> Véronique ERUSSARD, Servanne CORNEE, Sébastien BAYAUT
A20: SUD Santé Sociaux | E20: =RECAPITULATIF!D21 -> 35 | F20: du:
A22: =RECAPITULATIF!B2 -> Centre Hospitalier de Saint Malo
A24: siégeant auprès de la CAP | F24: =RECAPITULATIF!D7 -> Locale | J24: du : | K24: =RECAPITULATIF!D11 -> 2019-04-16 | N24: vous informe de votre :
F27: AVANCEMENT D’ECHELON
A33: Vous passez à l’échelon : | F33: ='GRILLE C1'!B22 -> 6 | H33: Indice Majoré : | L33: ='GRILLE C1'!D22 -> 332 | R33: ='GRILLE C1'!B2 -> Catégorie C Grade C1 Ancienne Echelle 3
A36: Date d'effet : | F36: / | H36: / | I36: =RECAPITULATIF!D9 -> 2019
R37: ='GRILLE C1'!B6 -> Adjoint Administratifs Agent d'Entretien Qualifié Agent de Service Hospitalier Qualifié Classe Normale Aide d'Electroradiologie Classe Normale (extinction) Aide de Laboratoire Classe Normale (extinction) Aide de Pharmacie Classe Normale(extinction)
A40: Ce qui représente un gain mensuel de : | I40: ='GRILLE C1'!D22-'GRILLE C1'!D20 -> 2 | K40: points d'indice.
R41: ='GRILLE C1'!B10 -> Echelon | S41: ='GRILLE C1'!C10 -> Durée (en mois) | T41: ='GRILLE C1'!D10 -> Indice Majoré
A43: Pour information, la valeur brute du point d'indice | R43: ='GRILLE C1'!B12 -> 1 | S43: ='GRILLE C1'!C12 -> 12 | T43: ='GRILLE C1'!D12 -> 326
R45: ='GRILLE C1'!B14 -> 2 | S45: ='GRILLE C1'!C14 -> 24 | T45: ='GRILLE C1'!D14 -> 327
A46: est de | C46: =RECAPITULATIF!D13 -> 4.686 € | E46: au | F46: =RECAPITULATIF!D15 -> 2019-01-01
R47: ='GRILLE C1'!B16 -> 3 | S47: ='GRILLE C1'!C16 -> 24 | T47: ='GRILLE C1'!D16 -> 328
A49: Soit un gain net mensuel de : | G49: =I40*C46*0.8315 -> 7.79 € | R49: ='GRILLE C1'!B18 -> 4 | S49: ='GRILLE C1'!C18 -> 24 | T49: ='GRILLE C1'!D18 -> 329
R51: ='GRILLE C1'!B20 -> 5 | S51: ='GRILLE C1'!C20 -> 24 | T51: ='GRILLE C1'!D20 -> 330
R53: ='GRILLE C1'!B22 -> 6 | S53: ='GRILLE C1'!C22 -> 24 | T53: ='GRILLE C1'!D22 -> 332
A54: Vos représentant-e-s SUD Santé Sociaux | I54: =RECAPITULATIF!D21 -> 35 | K54: sont à votre disposition
A55: pour tous renseignements complémentaires au poste : | M55: =RECAPITULATIF!D17 -> 2886 | R55: ='GRILLE C1'!B24 -> 7 | S55: ='GRILLE C1'!C24 -> 24 | T55: ='GRILLE C1'!D24 -> 335
R57: ='GRILLE C1'!B26 -> 8 | S57: ='GRILLE C1'!C26 -> 24 | T57: ='GRILLE C1'!D26 -> 339
R59: ='GRILLE C1'!B28 -> 9 | S59: ='GRILLE C1'!C28 -> 36 | T59: ='GRILLE C1'!D28 -> 343
A60: Recevez toutes nos salutations.
R61: ='GRILLE C1'!B30 -> 10 | S61: ='GRILLE C1'!C30 -> 36 | T61: ='GRILLE C1'!D30 -> 354
A63: =RECAPITULATIF!B5 -> Véronique ERUSSARD, Servanne CORNEE, Sébastien BAYAUT | R63: ='GRILLE C1'!B32 -> 11 | S63: ='GRILLE C1'!C32 -> 0 | T63: ='GRILLE C1'!D32 -> 367
A65: SUD Santé Sociaux | E65: =RECAPITULATIF!D21 -> 35
A70: Tél : | B70: =RECAPITULATIF!D19 -> 02 99 21 28 86
A71: Mél : | C71: =RECAPITULATIF!C23 -> sudsante@ch-stmalo.fr
A72: =RECAPITULATIF!B25 -> Site Départemental Sud | F72: =RECAPITULATIF!D25 -> http://www.sudsantesociaux35.org

Sheet C1 Echelon 7
G2: Commission Administrative
G3: Paritaire | M3: =RECAPITULATIF!D7 -> Locale
M9: Mme, Mr :
M11: Grade :
M13: Service :
A16: Votre ou vos représentant-e-s du personnel
A18: =RECAPITULATIF!B5 -> Véronique ERUSSARD, Servanne CORNEE, Sébastien BAYAUT
A20: SUD Santé Sociaux | E20: =RECAPITULATIF!D21 -> 35 | F20: du:
A22: =RECAPITULATIF!B2 -> Centre Hospitalier de Saint Malo
A24: siégeant auprès de la CAP | F24: =RECAPITULATIF!D7 -> Locale | J24: du : | K24: =RECAPITULATIF!D11 -> 2019-04-16 | N24: vous informe de votre :
F27: AVANCEMENT D’ECHELON
A33: Vous passez à l’échelon : | F33: ='GRILLE C1'!B24 -> 7 | H33: Indice Majoré : | L33: ='GRILLE C1'!D24 -> 335 | R33: ='GRILLE C1'!B2 -> Catégorie C Grade C1 Ancienne Echelle 3
A36: Date d'effet : | F36: / | H36: / | I36: =RECAPITULATIF!D9 -> 2019
R37: ='GRILLE C1'!B6 -> Adjoint Administratifs Agent d'Entretien Qualifié Agent de Service Hospitalier Qualifié Classe Normale Aide d'Electroradiologie Classe Normale (extinction) Aide de Laboratoire Classe Normale (extinction) Aide de Pharmacie Classe Normale(extinction)
A40: Ce qui représente un gain mensuel de : | I40: ='GRILLE C1'!D24-'GRILLE C1'!D22 -> 3 | K40: points d'indice.
R41: ='GRILLE C1'!B10 -> Echelon | S41: ='GRILLE C1'!C10 -> Durée (en mois) | T41: ='GRILLE C1'!D10 -> Indice Majoré
A43: Pour information, la valeur brute du point d'indice | R43: ='GRILLE C1'!B12 -> 1 | S43: ='GRILLE C1'!C12 -> 12 | T43: ='GRILLE C1'!D12 -> 326
R45: ='GRILLE C1'!B14 -> 2 | S45: ='GRILLE C1'!C14 -> 24 | T45: ='GRILLE C1'!D14 -> 327
A46: est de | C46: =RECAPITULATIF!D13 -> 4.686 € | E46: au | F46: =RECAPITULATIF!D15 -> 2019-01-01
R47: ='GRILLE C1'!B16 -> 3 | S47: ='GRILLE C1'!C16 -> 24 | T47: ='GRILLE C1'!D16 -> 328
A49: Soit un gain net mensuel de : | G49: =I40*C46*0.8315 -> 11.69 € | R49: ='GRILLE C1'!B18 -> 4 | S49: ='GRILLE C1'!C18 -> 24 | T49: ='GRILLE C1'!D18 -> 329
R51: ='GRILLE C1'!B20 -> 5 | S51: ='GRILLE C1'!C20 -> 24 | T51: ='GRILLE C1'!D20 -> 330
R53: ='GRILLE C1'!B22 -> 6 | S53: ='GRILLE C1'!C22 -> 24 | T53: ='GRILLE C1'!D22 -> 332
A54: Vos représentant-e-s SUD Santé Sociaux | I54: =RECAPITULATIF!D21 -> 35 | K54: sont à votre disposition
A55: pour tous renseignements complémentaires au poste : | M55: =RECAPITULATIF!D17 -> 2886 | R55: ='GRILLE C1'!B24 -> 7 | S55: ='GRILLE C1'!C24 -> 24 | T55: ='GRILLE C1'!D24 -> 335
R57: ='GRILLE C1'!B26 -> 8 | S57: ='GRILLE C1'!C26 -> 24 | T57: ='GRILLE C1'!D26 -> 339
R59: ='GRILLE C1'!B28 -> 9 | S59: ='GRILLE C1'!C28 -> 36 | T59: ='GRILLE C1'!D28 -> 343
A60: Recevez toutes nos salutations.
R61: ='GRILLE C1'!B30 -> 10 | S61: ='GRILLE C1'!C30 -> 36 | T61: ='GRILLE C1'!D30 -> 354
A63: =RECAPITULATIF!B5 -> Véronique ERUSSARD, Servanne CORNEE, Sébastien BAYAUT | R63: ='GRILLE C1'!B32 -> 11 | S63: ='GRILLE C1'!C32 -> 0 | T63: ='GRILLE C1'!D32 -> 367
A65: SUD Santé Sociaux | E65: =RECAPITULATIF!D21 -> 35
A70: Tél : | B70: =RECAPITULATIF!D19 -> 02 99 21 28 86
A71: Mél : | C71: =RECAPITULATIF!C23 -> sudsante@ch-stmalo.fr
A72: =RECAPITULATIF!B25 -> Site Départemental Sud | F72: =RECAPITULATIF!D25 -> http://www.sudsantesociaux35.org

Sheet C1 Echelon 8
G2: Commission Administrative
G3: Paritaire | M3: =RECAPITULATIF!D7 -> Locale
M9: Mme, Mr :
M11: Grade :
M13: Service :
A16: Votre ou vos représentant-e-s du personnel
A18: =RECAPITULATIF!B5 -> Véronique ERUSSARD, Servanne CORNEE, Sébastien BAYAUT
A20: SUD Santé Sociaux | E20: =RECAPITULATIF!D21 -> 35 | F20: du:
A22: =RECAPITULATIF!B2 -> Centre Hospitalier de Saint Malo
A24: siégeant auprès de la CAP | F24: =RECAPITULATIF!D7 -> Locale | J24: du : | K24: =RECAPITULATIF!D11 -> 2019-04-16 | N24: vous informe de votre :
F27: AVANCEMENT D’ECHELON
A33: Vous passez à l’échelon : | F33: ='GRILLE C1'!B26 -> 8 | H33: Indice Majoré : | L33: ='GRILLE C1'!D26 -> 339 | R33: ='GRILLE C1'!B2 -> Catégorie C Grade C1 Ancienne Echelle 3
A36: Date d'effet : | F36: / | H36: / | I36: =RECAPITULATIF!D9 -> 2019
R37: ='GRILLE C1'!B6 -> Adjoint Administratifs Agent d'Entretien Qualifié Agent de Service Hospitalier Qualifié Classe Normale Aide d'Electroradiologie Classe Normale (extinction) Aide de Laboratoire Classe Normale (extinction) Aide de Pharmacie Classe Normale(extinction)
A40: Ce qui représente un gain mensuel de : | I40: ='GRILLE C1'!D26-'GRILLE C1'!D24 -> 4 | K40: points d'indice.
R41: ='GRILLE C1'!B10 -> Echelon | S41: ='GRILLE C1'!C10 -> Durée (en mois) | T41: ='GRILLE C1'!D10 -> Indice Majoré
A43: Pour information, la valeur brute du point d'indice | R43: ='GRILLE C1'!B12 -> 1 | S43: ='GRILLE C1'!C12 -> 12 | T43: ='GRILLE C1'!D12 -> 326
R45: ='GRILLE C1'!B14 -> 2 | S45: ='GRILLE C1'!C14 -> 24 | T45: ='GRILLE C1'!D14 -> 327
A46: est de | C46: =RECAPITULATIF!D13 -> 4.686 € | E46: au | F46: =RECAPITULATIF!D15 -> 2019-01-01
R47: ='GRILLE C1'!B16 -> 3 | S47: ='GRILLE C1'!C16 -> 24 | T47: ='GRILLE C1'!D16 -> 328
A49: Soit un gain net mensuel de : | G49: =I40*C46*0.8315 -> 15.59 € | R49: ='GRILLE C1'!B18 -> 4 | S49: ='GRILLE C1'!C18 -> 24 | T49: ='GRILLE C1'!D18 -> 329
R51: ='GRILLE C1'!B20 -> 5 | S51: ='GRILLE C1'!C20 -> 24 | T51: ='GRILLE C1'!D20 -> 330
R53: ='GRILLE C1'!B22 -> 6 | S53: ='GRILLE C1'!C22 -> 24 | T53: ='GRILLE C1'!D22 -> 332
A54: Vos représentant-e-s SUD Santé Sociaux | I54: =RECAPITULATIF!D21 -> 35 | K54: sont à votre disposition
A55: pour tous renseignements complémentaires au poste : | M55: =RECAPITULATIF!D17 -> 2886 | R55: ='GRILLE C1'!B24 -> 7 | S55: ='GRILLE C1'!C24 -> 24 | T55: ='GRILLE C1'!D24 -> 335
R57: ='GRILLE C1'!B26 -> 8 | S57: ='GRILLE C1'!C26 -> 24 | T57: ='GRILLE C1'!D26 -> 339
R59: ='GRILLE C1'!B28 -> 9 | S59: ='GRILLE C1'!C28 -> 36 | T59: ='GRILLE C1'!D28 -> 343
A60: Recevez toutes nos salutations.
R61: ='GRILLE C1'!B30 -> 10 | S61: ='GRILLE C1'!C30 -> 36 | T61: ='GRILLE C1'!D30 -> 354
A63: =RECAPITULATIF!B5 -> Véronique ERUSSARD, Servanne CORNEE, Sébastien BAYAUT | R63: ='GRILLE C1'!B32 -> 11 | S63: ='GRILLE C1'!C32 -> 0 | T63: ='GRILLE C1'!D32 -> 367
A65: SUD Santé Sociaux | E65: =RECAPITULATIF!D21 -> 35
A70: Tél : | B70: =RECAPITULATIF!D19 -> 02 99 21 28 86
A71: Mél : | C71: =RECAPITULATIF!C23 -> sudsante@ch-stmalo.fr
A72: =RECAPITULATIF!B25 -> Site Départemental Sud | F72: =RECAPITULATIF!D25 -> http://www.sudsantesociaux35.org

Sheet C1 Echelon 9
G2: Commission Administrative
G3: Paritaire | M3: =RECAPITULATIF!D7 -> Locale
M9: Mme, Mr :
M11: Grade :
M13: Service :
A16: Votre ou vos représentant-e-s du personnel
A18: =RECAPITULATIF!B5 -> Véronique ERUSSARD, Servanne CORNEE, Sébastien BAYAUT
A20: SUD Santé Sociaux | E20: =RECAPITULATIF!D21 -> 35 | F20: du:
A22: =RECAPITULATIF!B2 -> Centre Hospitalier de Saint Malo
A24: siégeant auprès de la CAP | F24: =RECAPITULATIF!D7 -> Locale | J24: du : | K24: =RECAPITULATIF!D11 -> 2019-04-16 | N24: vous informe de votre :
F27: AVANCEMENT D’ECHELON
A33: Vous passez à l’échelon : | F33: ='GRILLE C1'!B28 -> 9 | H33: Indice Majoré : | L33: ='GRILLE C1'!D28 -> 343 | R33: ='GRILLE C1'!B2 -> Catégorie C Grade C1 Ancienne Echelle 3
A36: Date d'effet : | F36: / | H36: / | I36: =RECAPITULATIF!D9 -> 2019
R37: ='GRILLE C1'!B6 -> Adjoint Administratifs Agent d'Entretien Qualifié Agent de Service Hospitalier Qualifié Classe Normale Aide d'Electroradiologie Classe Normale (extinction) Aide de Laboratoire Classe Normale (extinction) Aide de Pharmacie Classe Normale(extinction)
A40: Ce qui représente un gain mensuel de : | I40: ='GRILLE C1'!D28-'GRILLE C1'!D26 -> 4 | K40: points d'indice.
R41: ='GRILLE C1'!B10 -> Echelon | S41: ='GRILLE C1'!C10 -> Durée (en mois) | T41: ='GRILLE C1'!D10 -> Indice Majoré
A43: Pour information, la valeur brute du point d'indice | R43: ='GRILLE C1'!B12 -> 1 | S43: ='GRILLE C1'!C12 -> 12 | T43: ='GRILLE C1'!D12 -> 326
R45: ='GRILLE C1'!B14 -> 2 | S45: ='GRILLE C1'!C14 -> 24 | T45: ='GRILLE C1'!D14 -> 327
A46: est de | C46: =RECAPITULATIF!D13 -> 4.686 € | E46: au | F46: =RECAPITULATIF!D15 -> 2019-01-01
R47: ='GRILLE C1'!B16 -> 3 | S47: ='GRILLE C1'!C16 -> 24 | T47: ='GRILLE C1'!D16 -> 328
A49: Soit un gain net mensuel de : | G49: =I40*C46*0.8315 -> 15.59 € | R49: ='GRILLE C1'!B18 -> 4 | S49: ='GRILLE C1'!C18 -> 24 | T49: ='GRILLE C1'!D18 -> 329
R51: ='GRILLE C1'!B20 -> 5 | S51: ='GRILLE C1'!C20 -> 24 | T51: ='GRILLE C1'!D20 -> 330
R53: ='GRILLE C1'!B22 -> 6 | S53: ='GRILLE C1'!C22 -> 24 | T53: ='GRILLE C1'!D22 -> 332
A54: Vos représentant-e-s SUD Santé Sociaux | I54: =RECAPITULATIF!D21 -> 35 | K54: sont à votre disposition
A55: pour tous renseignements complémentaires au poste : | M55: =RECAPITULATIF!D17 -> 2886 | R55: ='GRILLE C1'!B24 -> 7 | S55: ='GRILLE C1'!C24 -> 24 | T55: ='GRILLE C1'!D24 -> 335
R57: ='GRILLE C1'!B26 -> 8 | S57: ='GRILLE C1'!C26 -> 24 | T57: ='GRILLE C1'!D26 -> 339
R59: ='GRILLE C1'!B28 -> 9 | S59: ='GRILLE C1'!C28 -> 36 | T59: ='GRILLE C1'!D28 -> 343
A60: Recevez toutes nos salutations.
R61: ='GRILLE C1'!B30 -> 10 | S61: ='GRILLE C1'!C30 -> 36 | T61: ='GRILLE C1'!D30 -> 354
A63: =RECAPITULATIF!B5 -> Véronique ERUSSARD, Servanne CORNEE, Sébastien BAYAUT | R63: ='GRILLE C1'!B32 -> 11 | S63: ='GRILLE C1'!C32 -> 0 | T63: ='GRILLE C1'!D32 -> 367
A65: SUD Santé Sociaux | E65: =RECAPITULATIF!D21 -> 35
A70: Tél : | B70: =RECAPITULATIF!D19 -> 02 99 21 28 86
A71: Mél : | C71: =RECAPITULATIF!C23 -> sudsante@ch-stmalo.fr
A72: =RECAPITULATIF!B25 -> Site Départemental Sud | F72: =RECAPITULATIF!D25 -> http://www.sudsantesociaux35.org

Sheet C1 Echelon 10
G2: Commission Administrative
G3: Paritaire | M3: =RECAPITULATIF!D7 -> Locale
M9: Mme, Mr :
M11: Grade :
M13: Service :
A16: Votre ou vos représentant-e-s du personnel
A18: =RECAPITULATIF!B5 -> Véronique ERUSSARD, Servanne CORNEE, Sébastien BAYAUT
A20: SUD Santé Sociaux | E20: =RECAPITULATIF!D21 -> 35 | F20: du:
A22: =RECAPITULATIF!B2 -> Centre Hospitalier de Saint Malo
A24: siégeant auprès de la CAP | F24: =RECAPITULATIF!D7 -> Locale | J24: du : | K24: =RECAPITULATIF!D11 -> 2019-04-16 | N24: vous informe de votre :
F27: AVANCEMENT D’ECHELON
A33: Vous passez à l’échelon : | F33: ='GRILLE C1'!B30 -> 10 | H33: Indice Majoré : | L33: ='GRILLE C1'!D30 -> 354 | R33: ='GRILLE C1'!B2 -> Catégorie C Grade C1 Ancienne Echelle 3
A36: Date d'effet : | F36: / | H36: / | I36: =RECAPITULATIF!D9 -> 2019
R37: ='GRILLE C1'!B6 -> Adjoint Administratifs Agent d'Entretien Qualifié Agent de Service Hospitalier Qualifié Classe Normale Aide d'Electroradiologie Classe Normale (extinction) Aide de Laboratoire Classe Normale (extinction) Aide de Pharmacie Classe Normale(extinction)
A40: Ce qui représente un gain mensuel de : | I40: ='GRILLE C1'!D30-'GRILLE C1'!D28 -> 11 | K40: points d'indice.
R41: ='GRILLE C1'!B10 -> Echelon | S41: ='GRILLE C1'!C10 -> Durée (en mois) | T41: ='GRILLE C1'!D10 -> Indice Majoré
A43: Pour information, la valeur brute du point d'indice | R43: ='GRILLE C1'!B12 -> 1 | S43: ='GRILLE C1'!C12 -> 12 | T43: ='GRILLE C1'!D12 -> 326
R45: ='GRILLE C1'!B14 -> 2 | S45: ='GRILLE C1'!C14 -> 24 | T45: ='GRILLE C1'!D14 -> 327
A46: est de | C46: =RECAPITULATIF!D13 -> 4.686 € | E46: au | F46: =RECAPITULATIF!D15 -> 2019-01-01
R47: ='GRILLE C1'!B16 -> 3 | S47: ='GRILLE C1'!C16 -> 24 | T47: ='GRILLE C1'!D16 -> 328
A49: Soit un gain net mensuel de : | G49: =I40*C46*0.8315 -> 42.86 € | R49: ='GRILLE C1'!B18 -> 4 | S49: ='GRILLE C1'!C18 -> 24 | T49: ='GRILLE C1'!D18 -> 329
R51: ='GRILLE C1'!B20 -> 5 | S51: ='GRILLE C1'!C20 -> 24 | T51: ='GRILLE C1'!D20 -> 330
R53: ='GRILLE C1'!B22 -> 6 | S53: ='GRILLE C1'!C22 -> 24 | T53: ='GRILLE C1'!D22 -> 332
A54: Vos représentant-e-s SUD Santé Sociaux | I54: =RECAPITULATIF!D21 -> 35 | K54: sont à votre disposition
A55: pour tous renseignements complémentaires au poste : | M55: =RECAPITULATIF!D17 -> 2886 | R55: ='GRILLE C1'!B24 -> 7 | S55: ='GRILLE C1'!C24 -> 24 | T55: ='GRILLE C1'!D24 -> 335
R57: ='GRILLE C1'!B26 -> 8 | S57: ='GRILLE C1'!C26 -> 24 | T57: ='GRILLE C1'!D26 -> 339
R59: ='GRILLE C1'!B28 -> 9 | S59: ='GRILLE C1'!C28 -> 36 | T59: ='GRILLE C1'!D28 -> 343
A60: Recevez toutes nos salutations.
R61: ='GRILLE C1'!B30 -> 10 | S61: ='GRILLE C1'!C30 -> 36 | T61: ='GRILLE C1'!D30 -> 354
A63: =RECAPITULATIF!B5 -> Véronique ERUSSARD, Servanne CORNEE, Sébastien BAYAUT | R63: ='GRILLE C1'!B32 -> 11 | S63: ='GRILLE C1'!C32 -> 0 | T63: ='GRILLE C1'!D32 -> 367
A65: SUD Santé Sociaux | E65: =RECAPITULATIF!D21 -> 35
A70: Tél : | B70: =RECAPITULATIF!D19 -> 02 99 21 28 86
A71: Mél : | C71: =RECAPITULATIF!C23 -> sudsante@ch-stmalo.fr
A72: =RECAPITULATIF!B25 -> Site Départemental Sud | F72: =RECAPITULATIF!D25 -> http://www.sudsantesociaux35.org

Sheet C1 Echelon 11
G2: Commission Administrative
G3: Paritaire | M3: =RECAPITULATIF!D7 -> Locale
M9: Mme, Mr :
M11: Grade :
M13: Service :
A16: Votre ou vos représentant-e-s du personnel
A18: =RECAPITULATIF!B5 -> Véronique ERUSSARD, Servanne CORNEE, Sébastien BAYAUT
A20: SUD Santé Sociaux | E20: =RECAPITULATIF!D21 -> 35 | F20: du:
A22: =RECAPITULATIF!B2 -> Centre Hospitalier de Saint Malo
A24: siégeant auprès de la CAP | F24: =RECAPITULATIF!D7 -> Locale | J24: du : | K24: =RECAPITULATIF!D11 -> 2019-04-16 | N24: vous informe de votre :
F27: AVANCEMENT D’ECHELON
A33: Vous passez à l’échelon : | F33: ='GRILLE C1'!B32 -> 11 | H33: Indice Majoré : | L33: ='GRILLE C1'!D32 -> 367 | R33: ='GRILLE C1'!B2 -> Catégorie C Grade C1 Ancienne Echelle 3
A36: Date d'effet : | F36: / | H36: / | I36: =RECAPITULATIF!D9 -> 2019
R37: ='GRILLE C1'!B6 -> Adjoint Administratifs Agent d'Entretien Qualifié Agent de Service Hospitalier Qualifié Classe Normale Aide d'Electroradiologie Classe Normale (extinction) Aide de Laboratoire Classe Normale (extinction) Aide de Pharmacie Classe Normale(extinction)
A40: Ce qui représente un gain mensuel de : | I40: ='GRILLE C1'!D32-'GRILLE C1'!D30 -> 13 | K40: points d'indice.
R41: ='GRILLE C1'!B10 -> Echelon | S41: ='GRILLE C1'!C10 -> Durée (en mois) | T41: ='GRILLE C1'!D10 -> Indice Majoré
A43: Pour information, la valeur brute du point d'indice | R43: ='GRILLE C1'!B12 -> 1 | S43: ='GRILLE C1'!C12 -> 12 | T43: ='GRILLE C1'!D12 -> 326
R45: ='GRILLE C1'!B14 -> 2 | S45: ='GRILLE C1'!C14 -> 24 | T45: ='GRILLE C1'!D14 -> 327
A46: est de | C46: =RECAPITULATIF!D13 -> 4.686 € | E46: au | F46: =RECAPITULATIF!D15 -> 2019-01-01
R47: ='GRILLE C1'!B16 -> 3 | S47: ='GRILLE C1'!C16 -> 24 | T47: ='GRILLE C1'!D16 -> 328
A49: Soit un gain net mensuel de : | G49: =I40*C46*0.8315 -> 50.65 € | R49: ='GRILLE C1'!B18 -> 4 | S49: ='GRILLE C1'!C18 -> 24 | T49: ='GRILLE C1'!D18 -> 329
R51: ='GRILLE C1'!B20 -> 5 | S51: ='GRILLE C1'!C20 -> 24 | T51: ='GRILLE C1'!D20 -> 330
R53: ='GRILLE C1'!B22 -> 6 | S53: ='GRILLE C1'!C22 -> 24 | T53: ='GRILLE C1'!D22 -> 332
A54: Vos représentant-e-s SUD Santé Sociaux | I54: =RECAPITULATIF!D21 -> 35 | K54: sont à votre disposition
A55: pour tous renseignements complémentaires au poste : | M55: =RECAPITULATIF!D17 -> 2886 | R55: ='GRILLE C1'!B24 -> 7 | S55: ='GRILLE C1'!C24 -> 24 | T55: ='GRILLE C1'!D24 -> 335
R57: ='GRILLE C1'!B26 -> 8 | S57: ='GRILLE C1'!C26 -> 24 | T57: ='GRILLE C1'!D26 -> 339
R59: ='GRILLE C1'!B28 -> 9 | S59: ='GRILLE C1'!C28 -> 36 | T59: ='GRILLE C1'!D28 -> 343
A60: Recevez toutes nos salutations.
R61: ='GRILLE C1'!B30 -> 10 | S61: ='GRILLE C1'!C30 -> 36 | T61: ='GRILLE C1'!D30 -> 354
A63: =RECAPITULATIF!B5 -> Véronique ERUSSARD, Servanne CORNEE, Sébastien BAYAUT | R63: ='GRILLE C1'!B32 -> 11 | S63: ='GRILLE C1'!C32 -> 0 | T63: ='GRILLE C1'!D32 -> 367
A65: SUD Santé Sociaux | E65: =RECAPITULATIF!D21 -> 35
A70: Tél : | B70: =RECAPITULATIF!D19 -> 02 99 21 28 86
A71: Mél : | C71: =RECAPITULATIF!C23 -> sudsante@ch-stmalo.fr
A72: =RECAPITULATIF!B25 -> Site Départemental Sud | F72: =RECAPITULATIF!D25 -> http://www.sudsantesociaux35.org

Sheet GRILLE C2
B2: Catégorie C Grade C2 Ancienne Echelle 4 et 5
B6: Aide Medico-Psychologique (Ex Classe Normale) Aide Soignant (Ex Classe Normale) Auxilliaire de Puériculture (Ex Classe Normale) Ouvrier Principal 2ème Classe Agent des Services Hospitaliers Qualifiés Classe Sup. Aide d'Electroradiologie Classe Supérieure (extinction) Aide de Laboratoire Classe Supérieure (extinction) Aide de Pharmacie Classe Supérieure (extinction) Agent de Service Mortuaire et Désinfection (extinction) Agent de Désinfection 1ère Catégorie (extinction) Conducteur Ambulancier, Déssinateur (extinction)
B10: Adjoint Administratifs Principal 2ème Classe Aide Medico-Psychologique (Ex Classe Supérieure) Aide Soignant (Ex Classe Supérieure), Aumônier Auxilliaire de Puériculture (Ex Classe Supérieure) Conducteur Ambulancier, Ouvrier Principal 2ème Cl. Agent de Maîtrise, Aide Préparateur (extinction) Aide Technique d'Electroradiologie (extinction) P A R M 2ème Classe, Déssinateur (extinction)
B14: Echelon | C14: Durée (en mois) | D14: Indice Majoré
B16: 1 | C16: 12 | D16: 328
B18: 2 | C18: 24 | D18: 330
B20: 3 | C20: 24 | D20: 333
B22: 4 | C22: 24 | D22: 336
B24: 5 | C24: 24 | D24: 345
B26: 6 | C26: 24 | D26: 351
B28: 7 | C28: 24 | D28: 364
B30: 8 | C30: 24 | D30: 380
B32: 9 | C32: 36 | D32: 390
B34: 10 | C34: 36 | D34: 402
B36: 11 | C36: 48 | D36: 411
B38: 12 | D38: 418

Sheet IMP GRILLE C2
B2: 1) Imprimez autant de feuilles que d'agents concernés.
B4: 2) Pliez en 3 au niveau du repère, deux petits traits noirs.
B6: 3) Inserrez ce courrier dans une enveloppe 110 X 220 à fenêtre.

Sheet C2 Echelon 2
G2: Commission Administrative
G3: Paritaire | M3: =RECAPITULATIF!D7 -> Locale
M9: Mme, Mr :
M11: Grade :
M13: Service :
A16: Votre ou vos représentant-e-s du personnel
A18: =RECAPITULATIF!B5 -> Véronique ERUSSARD, Servanne CORNEE, Sébastien BAYAUT
A20: SUD Santé Sociaux | E20: =RECAPITULATIF!D21 -> 35 | F20: du:
A22: =RECAPITULATIF!B2 -> Centre Hospitalier de Saint Malo
A24: siégeant auprès de la CAP | F24: =RECAPITULATIF!D7 -> Locale | J24: du : | K24: =RECAPITULATIF!D11 -> 2019-04-16 | N24: vous informe de votre :
F27: AVANCEMENT D’ECHELON
A33: Vous passez à l’échelon : | F33: ='GRILLE C2'!B18 -> 2 | H33: Indice Majoré : | L33: ='GRILLE C2'!D18 -> 330 | R33: ='GRILLE C2'!B2 -> Catégorie C Grade C2 Ancienne Echelle 4 et 5
A36: Date d'effet : | F36: / | H36: / | I36: =RECAPITULATIF!D9 -> 2019
R37: ='GRILLE C2'!B6 -> Aide Medico-Psychologique (Ex Classe Normale) Aide Soignant (Ex Classe Normale) Auxilliaire de Puériculture (Ex Classe Normale) Ouvrier Principal 2ème Classe Agent des Services Hospitaliers Qualifiés Classe Sup. Aide d'Electroradiologie Classe Supérieure (extinction) Aide de Laboratoire Classe Supérieure (extinction) Aide de Pharmacie Classe Supérieure (extinction) Agent de Service Mortuaire et Désinfection (extinction) Agent de Désinfection 1ère Catégorie (extinction) Conducteur Ambulancier, Déssinateur (extinction)
A40: Ce qui représente un gain mensuel de : | I40: ='GRILLE C2'!D18-'GRILLE C2'!D16 -> 2 | K40: points d'indice.
R41: ='GRILLE C2'!B10 -> Adjoint Administratifs Principal 2ème Classe Aide Medico-Psychologique (Ex Classe Supérieure) Aide Soignant (Ex Classe Supérieure), Aumônier Auxilliaire de Puériculture (Ex Classe Supérieure) Conducteur Ambulancier, Ouvrier Principal 2ème Cl. Agent de Maîtrise, Aide Préparateur (extinction) Aide Technique d'Electroradiologie (extinction) P A R M 2ème Classe, Déssinateur (extinction)
A43: Pour information, la valeur brute du point d'indice
R45: ='GRILLE C2'!B14 -> Echelon | S45: ='GRILLE C2'!C14 -> Durée (en mois) | T45: ='GRILLE C2'!D14 -> Indice Majoré
A46: est de | C46: =RECAPITULATIF!D13 -> 4.686 € | E46: au | F46: =RECAPITULATIF!D15 -> 2019-01-01
R47: ='GRILLE C2'!B16 -> 1 | S47: ='GRILLE C2'!C16 -> 12 | T47: ='GRILLE C2'!D16 -> 328
A49: Soit un gain net mensuel de : | G49: =I40*C46*0.8315 -> 7.79 € | R49: ='GRILLE C2'!B18 -> 2 | S49: ='GRILLE C2'!C18 -> 24 | T49: ='GRILLE C2'!D18 -> 330
R51: ='GRILLE C2'!B20 -> 3 | S51: ='GRILLE C2'!C20 -> 24 | T51: ='GRILLE C2'!D20 -> 333
R53: ='GRILLE C2'!B22 -> 4 | S53: ='GRILLE C2'!C22 -> 24 | T53: ='GRILLE C2'!D22 -> 336
A54: Vos représentant-e-s SUD Santé Sociaux | I54: =RECAPITULATIF!D21 -> 35 | K54: sont à votre disposition
A55: pour tous renseignements complémentaires au poste : | M55: =RECAPITULATIF!D17 -> 2886 | R55: ='GRILLE C2'!B24 -> 5 | S55: ='GRILLE C2'!C24 -> 24 | T55: ='GRILLE C2'!D24 -> 345
R57: ='GRILLE C2'!B26 -> 6 | S57: ='GRILLE C2'!C26 -> 24 | T57: ='GRILLE C2'!D26 -> 351
R59: ='GRILLE C2'!B28 -> 7 | S59: ='GRILLE C2'!C28 -> 24 | T59: ='GRILLE C2'!D28 -> 364
A60: Recevez toutes nos salutations.
R61: ='GRILLE C2'!B30 -> 8 | S61: ='GRILLE C2'!C30 -> 24 | T61: ='GRILLE C2'!D30 -> 380
A63: =RECAPITULATIF!B5 -> Véronique ERUSSARD, Servanne CORNEE, Sébastien BAYAUT | R63: ='GRILLE C2'!B32 -> 9 | S63: ='GRILLE C2'!C32 -> 36 | T63: ='GRILLE C2'!D32 -> 390
A65: SUD Santé Sociaux | E65: =RECAPITULATIF!D21 -> 35 | R65: ='GRILLE C2'!B34 -> 10 | S65: ='GRILLE C2'!C34 -> 36 | T65: ='GRILLE C2'!D34 -> 402
R67: ='GRILLE C2'!B36 -> 11 | S67: ='GRILLE C2'!C36 -> 48 | T67: ='GRILLE C2'!D36 -> 411
R69: ='GRILLE C2'!B38 -> 12 | S69: ='GRILLE C2'!C38 -> 0 | T69: ='GRILLE C2'!D38 -> 418
A71: Tél : | B71: =RECAPITULATIF!D19 -> 02 99 21 28 86
A72: Mél : | C72: =RECAPITULATIF!C23 -> sudsante@ch-stmalo.fr
A73: =RECAPITULATIF!B25 -> Site Départemental Sud | F73: =RECAPITULATIF!D25 -> http://www.sudsantesociaux35.org

Sheet C2 Echelon 3
G2: Commission Administrative
G3: Paritaire | M3: =RECAPITULATIF!D7 -> Locale
M9: Mme, Mr :
M11: Grade :
M13: Service :
A16: Votre ou vos représentant-e-s du personnel
A18: =RECAPITULATIF!B5 -> Véronique ERUSSARD, Servanne CORNEE, Sébastien BAYAUT
A20: SUD Santé Sociaux | E20: =RECAPITULATIF!D21 -> 35 | F20: du:
A22: =RECAPITULATIF!B2 -> Centre Hospitalier de Saint Malo
A24: siégeant auprès de la CAP | F24: =RECAPITULATIF!D7 -> Locale | J24: du : | K24: =RECAPITULATIF!D11 -> 2019-04-16 | N24: vous informe de votre :
F27: AVANCEMENT D’ECHELON
A33: Vous passez à l’échelon : | F33: ='GRILLE C2'!B20 -> 3 | H33: Indice Majoré : | L33: ='GRILLE C2'!D20 -> 333 | R33: ='GRILLE C2'!B2 -> Catégorie C Grade C2 Ancienne Echelle 4 et 5
A36: Date d'effet : | F36: / | H36: / | I36: =RECAPITULATIF!D9 -> 2019
R37: ='GRILLE C2'!B6 -> Aide Medico-Psychologique (Ex Classe Normale) Aide Soignant (Ex Classe Normale) Auxilliaire de Puériculture (Ex Classe Normale) Ouvrier Principal 2ème Classe Agent des Services Hospitaliers Qualifiés Classe Sup. Aide d'Electroradiologie Classe Supérieure (extinction) Aide de Laboratoire Classe Supérieure (extinction) Aide de Pharmacie Classe Supérieure (extinction) Agent de Service Mortuaire et Désinfection (extinction) Agent de Désinfection 1ère Catégorie (extinction) Conducteur Ambulancier, Déssinateur (extinction)
A40: Ce qui représente un gain mensuel de : | I40: ='GRILLE C2'!D20-'GRILLE C2'!D18 -> 3 | K40: points d'indice.
R41: ='GRILLE C2'!B10 -> Adjoint Administratifs Principal 2ème Classe Aide Medico-Psychologique (Ex Classe Supérieure) Aide Soignant (Ex Classe Supérieure), Aumônier Auxilliaire de Puériculture (Ex Classe Supérieure) Conducteur Ambulancier, Ouvrier Principal 2ème Cl. Agent de Maîtrise, Aide Préparateur (extinction) Aide Technique d'Electroradiologie (extinction) P A R M 2ème Classe, Déssinateur (extinction)
A43: Pour information, la valeur brute du point d'indice
R45: ='GRILLE C2'!B14 -> Echelon | S45: ='GRILLE C2'!C14 -> Durée (en mois) | T45: ='GRILLE C2'!D14 -> Indice Majoré
A46: est de | C46: =RECAPITULATIF!D13 -> 4.686 € | E46: au | F46: =RECAPITULATIF!D15 -> 2019-01-01
R47: ='GRILLE C2'!B16 -> 1 | S47: ='GRILLE C2'!C16 -> 12 | T47: ='GRILLE C2'!D16 -> 328
A49: Soit un gain net mensuel de : | G49: =I40*C46*0.8315 -> 11.69 € | R49: ='GRILLE C2'!B18 -> 2 | S49: ='GRILLE C2'!C18 -> 24 | T49: ='GRILLE C2'!D18 -> 330
R51: ='GRILLE C2'!B20 -> 3 | S51: ='GRILLE C2'!C20 -> 24 | T51: ='GRILLE C2'!D20 -> 333
R53: ='GRILLE C2'!B22 -> 4 | S53: ='GRILLE C2'!C22 -> 24 | T53: ='GRILLE C2'!D22 -> 336
A54: Vos représentant-e-s SUD Santé Sociaux | I54: =RECAPITULATIF!D21 -> 35 | K54: sont à votre disposition
A55: pour tous renseignements complémentaires au poste : | M55: =RECAPITULATIF!D17 -> 2886 | R55: ='GRILLE C2'!B24 -> 5 | S55: ='GRILLE C2'!C24 -> 24 | T55: ='GRILLE C2'!D24 -> 345
R57: ='GRILLE C2'!B26 -> 6 | S57: ='GRILLE C2'!C26 -> 24 | T57: ='GRILLE C2'!D26 -> 351
R59: ='GRILLE C2'!B28 -> 7 | S59: ='GRILLE C2'!C28 -> 24 | T59: ='GRILLE C2'!D28 -> 364
A60: Recevez toutes nos salutations.
R61: ='GRILLE C2'!B30 -> 8 | S61: ='GRILLE C2'!C30 -> 24 | T61: ='GRILLE C2'!D30 -> 380
A63: =RECAPITULATIF!B5 -> Véronique ERUSSARD, Servanne CORNEE, Sébastien BAYAUT | R63: ='GRILLE C2'!B32 -> 9 | S63: ='GRILLE C2'!C32 -> 36 | T63: ='GRILLE C2'!D32 -> 390
A65: SUD Santé Sociaux | E65: =RECAPITULATIF!D21 -> 35 | R65: ='GRILLE C2'!B34 -> 10 | S65: ='GRILLE C2'!C34 -> 36 | T65: ='GRILLE C2'!D34 -> 402
R67: ='GRILLE C2'!B36 -> 11 | S67: ='GRILLE C2'!C36 -> 48 | T67: ='GRILLE C2'!D36 -> 411
R69: ='GRILLE C2'!B38 -> 12 | S69: ='GRILLE C2'!C38 -> 0 | T69: ='GRILLE C2'!D38 -> 418
A71: Tél : | B71: =RECAPITULATIF!D19 -> 02 99 21 28 86
A72: Mél : | C72: =RECAPITULATIF!C23 -> sudsante@ch-stmalo.fr
A73: =RECAPITULATIF!B25 -> Site Départemental Sud | F73: =RECAPITULATIF!D25 -> http://www.sudsantesociaux35.org

Sheet C2 Echelon 4
G2: Commission Administrative
G3: Paritaire | M3: =RECAPITULATIF!D7 -> Locale
M9: Mme, Mr :
M11: Grade :
M13: Service :
A16: Votre ou vos représentant-e-s du personnel
A18: =RECAPITULATIF!B5 -> Véronique ERUSSARD, Servanne CORNEE, Sébastien BAYAUT
A20: SUD Santé Sociaux | E20: =RECAPITULATIF!D21 -> 35 | F20: du:
A22: =RECAPITULATIF!B2 -> Centre Hospitalier de Saint Malo
A24: siégeant auprès de la CAP | F24: =RECAPITULATIF!D7 -> Locale | J24: du : | K24: =RECAPITULATIF!D11 -> 2019-04-16 | N24: vous informe de votre :
F27: AVANCEMENT D’ECHELON
A33: Vous passez à l’échelon : | F33: ='GRILLE C2'!B22 -> 4 | H33: Indice Majoré : | L33: ='GRILLE C2'!D22 -> 336 | R33: ='GRILLE C2'!B2 -> Catégorie C Grade C2 Ancienne Echelle 4 et 5
A36: Date d'effet : | F36: / | H36: / | I36: =RECAPITULATIF!D9 -> 2019
R37: ='GRILLE C2'!B6 -> Aide Medico-Psychologique (Ex Classe Normale) Aide Soignant (Ex Classe Normale) Auxilliaire de Puériculture (Ex Classe Normale) Ouvrier Principal 2ème Classe Agent des Services Hospitaliers Qualifiés Classe Sup. Aide d'Electroradiologie Classe Supérieure (extinction) Aide de Laboratoire Classe Supérieure (extinction) Aide de Pharmacie Classe Supérieure (extinction) Agent de Service Mortuaire et Désinfection (extinction) Agent de Désinfection 1ère Catégorie (extinction) Conducteur Ambulancier, Déssinateur (extinction)
A40: Ce qui représente un gain mensuel de : | I40: ='GRILLE C2'!D22-'GRILLE C2'!D20 -> 3 | K40: points d'indice.
R41: ='GRILLE C2'!B10 -> Adjoint Administratifs Principal 2ème Classe Aide Medico-Psychologique (Ex Classe Supérieure) Aide Soignant (Ex Classe Supérieure), Aumônier Auxilliaire de Puériculture (Ex Classe Supérieure) Conducteur Ambulancier, Ouvrier Principal 2ème Cl. Agent de Maîtrise, Aide Préparateur (extinction) Aide Technique d'Electroradiologie (extinction) P A R M 2ème Classe, Déssinateur (extinction)
A43: Pour information, la valeur brute du point d'indice
R45: ='GRILLE C2'!B14 -> Echelon | S45: ='GRILLE C2'!C14 -> Durée (en mois) | T45: ='GRILLE C2'!D14 -> Indice Majoré
A46: est de | C46: =RECAPITULATIF!D13 -> 4.686 € | E46: au | F46: =RECAPITULATIF!D15 -> 2019-01-01
R47: ='GRILLE C2'!B16 -> 1 | S47: ='GRILLE C2'!C16 -> 12 | T47: ='GRILLE C2'!D16 -> 328
A49: Soit un gain net mensuel de : | G49: =I40*C46*0.8315 -> 11.69 € | R49: ='GRILLE C2'!B18 -> 2 | S49: ='GRILLE C2'!C18 -> 24 | T49: ='GRILLE C2'!D18 -> 330
R51: ='GRILLE C2'!B20 -> 3 | S51: ='GRILLE C2'!C20 -> 24 | T51: ='GRILLE C2'!D20 -> 333
R53: ='GRILLE C2'!B22 -> 4 | S53: ='GRILLE C2'!C22 -> 24 | T53: ='GRILLE C2'!D22 -> 336
A54: Vos représentant-e-s SUD Santé Sociaux | I54: =RECAPITULATIF!D21 -> 35 | K54: sont à votre disposition
A55: pour tous renseignements complémentaires au poste : | M55: =RECAPITULATIF!D17 -> 2886 | R55: ='GRILLE C2'!B24 -> 5 | S55: ='GRILLE C2'!C24 -> 24 | T55: ='GRILLE C2'!D24 -> 345
R57: ='GRILLE C2'!B26 -> 6 | S57: ='GRILLE C2'!C26 -> 24 | T57: ='GRILLE C2'!D26 -> 351
R59: ='GRILLE C2'!B28 -> 7 | S59: ='GRILLE C2'!C28 -> 24 | T59: ='GRILLE C2'!D28 -> 364
A60: Recevez toutes nos salutations.
R61: ='GRILLE C2'!B30 -> 8 | S61: ='GRILLE C2'!C30 -> 24 | T61: ='GRILLE C2'!D30 -> 380
A63: =RECAPITULATIF!B5 -> Véronique ERUSSARD, Servanne CORNEE, Sébastien BAYAUT | R63: ='GRILLE C2'!B32 -> 9 | S63: ='GRILLE C2'!C32 -> 36 | T63: ='GRILLE C2'!D32 -> 390
A65: SUD Santé Sociaux | E65: =RECAPITULATIF!D21 -> 35 | R65: ='GRILLE C2'!B34 -> 10 | S65: ='GRILLE C2'!C34 -> 36 | T65: ='GRILLE C2'!D34 -> 402
R67: ='GRILLE C2'!B36 -> 11 | S67: ='GRILLE C2'!C36 -> 48 | T67: ='GRILLE C2'!D36 -> 411
R69: ='GRILLE C2'!B38 -> 12 | S69: ='GRILLE C2'!C38 -> 0 | T69: ='GRILLE C2'!D38 -> 418
A71: Tél : | B71: =RECAPITULATIF!D19 -> 02 99 21 28 86
A72: Mél : | C72: =RECAPITULATIF!C23 -> sudsante@ch-stmalo.fr
A73: =RECAPITULATIF!B25 -> Site Départemental Sud | F73: =RECAPITULATIF!D25 -> http://www.sudsantesociaux35.org

Sheet C2 Echelon 5
G2: Commission Administrative
G3: Paritaire | M3: =RECAPITULATIF!D7 -> Locale
M9: Mme, Mr :
M11: Grade :
M13: Service :
A16: Votre ou vos représentant-e-s du personnel
A18: =RECAPITULATIF!B5 -> Véronique ERUSSARD, Servanne CORNEE, Sébastien BAYAUT
A20: SUD Santé Sociaux | E20: =RECAPITULATIF!D21 -> 35 | F20: du:
A22: =RECAPITULATIF!B2 -> Centre Hospitalier de Saint Malo
A24: siégeant auprès de la CAP | F24: =RECAPITULATIF!D7 -> Locale | J24: du : | K24: =RECAPITULATIF!D11 -> 2019-04-16 | N24: vous informe de votre :
F27: AVANCEMENT D’ECHELON
A33: Vous passez à l’échelon : | F33: ='GRILLE C2'!B24 -> 5 | H33: Indice Majoré : | L33: ='GRILLE C2'!D24 -> 345 | R33: ='GRILLE C2'!B2 -> Catégorie C Grade C2 Ancienne Echelle 4 et 5
A36: Date d'effet : | F36: / | H36: / | I36: =RECAPITULATIF!D9 -> 2019
R37: ='GRILLE C2'!B6 -> Aide Medico-Psychologique (Ex Classe Normale) Aide Soignant (Ex Classe Normale) Auxilliaire de Puériculture (Ex Classe Normale) Ouvrier Principal 2ème Classe Agent des Services Hospitaliers Qualifiés Classe Sup. Aide d'Electroradiologie Classe Supérieure (extinction) Aide de Laboratoire Classe Supérieure (extinction) Aide de Pharmacie Classe Supérieure (extinction) Agent de Service Mortuaire et Désinfection (extinction) Agent de Désinfection 1ère Catégorie (extinction) Conducteur Ambulancier, Déssinateur (extinction)
A40: Ce qui représente un gain mensuel de : | I40: ='GRILLE C2'!D24-'GRILLE C2'!D22 -> 9 | K40: points d'indice.
R41: ='GRILLE C2'!B10 -> Adjoint Administratifs Principal 2ème Classe Aide Medico-Psychologique (Ex Classe Supérieure) Aide Soignant (Ex Classe Supérieure), Aumônier Auxilliaire de Puériculture (Ex Classe Supérieure) Conducteur Ambulancier, Ouvrier Principal 2ème Cl. Agent de Maîtrise, Aide Préparateur (extinction) Aide Technique d'Electroradiologie (extinction) P A R M 2ème Classe, Déssinateur (extinction)
A43: Pour information, la valeur brute du point d'indice
R45: ='GRILLE C2'!B14 -> Echelon | S45: ='GRILLE C2'!C14 -> Durée (en mois) | T45: ='GRILLE C2'!D14 -> Indice Majoré
A46: est de | C46: =RECAPITULATIF!D13 -> 4.686 € | E46: au | F46: =RECAPITULATIF!D15 -> 2019-01-01
R47: ='GRILLE C2'!B16 -> 1 | S47: ='GRILLE C2'!C16 -> 12 | T47: ='GRILLE C2'!D16 -> 328
A49: Soit un gain net mensuel de : | G49: =I40*C46*0.8315 -> 35.07 € | R49: ='GRILLE C2'!B18 -> 2 | S49: ='GRILLE C2'!C18 -> 24 | T49: ='GRILLE C2'!D18 -> 330
R51: ='GRILLE C2'!B20 -> 3 | S51: ='GRILLE C2'!C20 -> 24 | T51: ='GRILLE C2'!D20 -> 333
R53: ='GRILLE C2'!B22 -> 4 | S53: ='GRILLE C2'!C22 -> 24 | T53: ='GRILLE C2'!D22 -> 336
A54: Vos représentant-e-s SUD Santé Sociaux | I54: =RECAPITULATIF!D21 -> 35 | K54: sont à votre disposition
A55: pour tous renseignements complémentaires au poste : | M55: =RECAPITULATIF!D17 -> 2886 | R55: ='GRILLE C2'!B24 -> 5 | S55: ='GRILLE C2'!C24 -> 24 | T55: ='GRILLE C2'!D24 -> 345
R57: ='GRILLE C2'!B26 -> 6 | S57: ='GRILLE C2'!C26 -> 24 | T57: ='GRILLE C2'!D26 -> 351
R59: ='GRILLE C2'!B28 -> 7 | S59: ='GRILLE C2'!C28 -> 24 | T59: ='GRILLE C2'!D28 -> 364
A60: Recevez toutes nos salutations.
R61: ='GRILLE C2'!B30 -> 8 | S61: ='GRILLE C2'!C30 -> 24 | T61: ='GRILLE C2'!D30 -> 380
A63: =RECAPITULATIF!B5 -> Véronique ERUSSARD, Servanne CORNEE, Sébastien BAYAUT | R63: ='GRILLE C2'!B32 -> 9 | S63: ='GRILLE C2'!C32 -> 36 | T63: ='GRILLE C2'!D32 -> 390
A65: SUD Santé Sociaux | E65: =RECAPITULATIF!D21 -> 35 | R65: ='GRILLE C2'!B34 -> 10 | S65: ='GRILLE C2'!C34 -> 36 | T65: ='GRILLE C2'!D34 -> 402
R67: ='GRILLE C2'!B36 -> 11 | S67: ='GRILLE C2'!C36 -> 48 | T67: ='GRILLE C2'!D36 -> 411
R69: ='GRILLE C2'!B38 -> 12 | S69: ='GRILLE C2'!C38 -> 0 | T69: ='GRILLE C2'!D38 -> 418
A71: Tél : | B71: =RECAPITULATIF!D19 -> 02 99 21 28 86
A72: Mél : | C72: =RECAPITULATIF!C23 -> sudsante@ch-stmalo.fr
A73: =RECAPITULATIF!B25 -> Site Départemental Sud | F73: =RECAPITULATIF!D25 -> http://www.sudsantesociaux35.org

Sheet C2 Echelon 6
G2: Commission Administrative
G3: Paritaire | M3: =RECAPITULATIF!D7 -> Locale
M9: Mme, Mr :
M11: Grade :
M13: Service :
A16: Votre ou vos représentant-e-s du personnel
A18: =RECAPITULATIF!B5 -> Véronique ERUSSARD, Servanne CORNEE, Sébastien BAYAUT
A20: SUD Santé Sociaux | E20: =RECAPITULATIF!D21 -> 35 | F20: du:
A22: =RECAPITULATIF!B2 -> Centre Hospitalier de Saint Malo
A24: siégeant auprès de la CAP | F24: =RECAPITULATIF!D7 -> Locale | J24: du : | K24: =RECAPITULATIF!D11 -> 2019-04-16 | N24: vous informe de votre :
F27: AVANCEMENT D’ECHELON
A33: Vous passez à l’échelon : | F33: ='GRILLE C2'!B26 -> 6 | H33: Indice Majoré : | L33: ='GRILLE C2'!D26 -> 351 | R33: ='GRILLE C2'!B2 -> Catégorie C Grade C2 Ancienne Echelle 4 et 5
A36: Date d'effet : | F36: / | H36: / | I36: =RECAPITULATIF!D9 -> 2019
R37: ='GRILLE C2'!B6 -> Aide Medico-Psychologique (Ex Classe Normale) Aide Soignant (Ex Classe Normale) Auxilliaire de Puériculture (Ex Classe Normale) Ouvrier Principal 2ème Classe Agent des Services Hospitaliers Qualifiés Classe Sup. Aide d'Electroradiologie Classe Supérieure (extinction) Aide de Laboratoire Classe Supérieure (extinction) Aide de Pharmacie Classe Supérieure (extinction) Agent de Service Mortuaire et Désinfection (extinction) Agent de Désinfection 1ère Catégorie (extinction) Conducteur Ambulancier, Déssinateur (extinction)
A40: Ce qui représente un gain mensuel de : | I40: ='GRILLE C2'!D26-'GRILLE C2'!D24 -> 6 | K40: points d'indice.
R41: ='GRILLE C2'!B10 -> Adjoint Administratifs Principal 2ème Classe Aide Medico-Psychologique (Ex Classe Supérieure) Aide Soignant (Ex Classe Supérieure), Aumônier Auxilliaire de Puériculture (Ex Classe Supérieure) Conducteur Ambulancier, Ouvrier Principal 2ème Cl. Agent de Maîtrise, Aide Préparateur (extinction) Aide Technique d'Electroradiologie (extinction) P A R M 2ème Classe, Déssinateur (extinction)
A43: Pour information, la valeur brute du point d'indice
R45: ='GRILLE C2'!B14 -> Echelon | S45: ='GRILLE C2'!C14 -> Durée (en mois) | T45: ='GRILLE C2'!D14 -> Indice Majoré
A46: est de | C46: =RECAPITULATIF!D13 -> 4.686 € | E46: au | F46: =RECAPITULATIF!D15 -> 2019-01-01
R47: ='GRILLE C2'!B16 -> 1 | S47: ='GRILLE C2'!C16 -> 12 | T47: ='GRILLE C2'!D16 -> 328
A49: Soit un gain net mensuel de : | G49: =I40*C46*0.8315 -> 23.38 € | R49: ='GRILLE C2'!B18 -> 2 | S49: ='GRILLE C2'!C18 -> 24 | T49: ='GRILLE C2'!D18 -> 330
R51: ='GRILLE C2'!B20 -> 3 | S51: ='GRILLE C2'!C20 -> 24 | T51: ='GRILLE C2'!D20 -> 333
R53: ='GRILLE C2'!B22 -> 4 | S53: ='GRILLE C2'!C22 -> 24 | T53: ='GRILLE C2'!D22 -> 336
A54: Vos représentant-e-s SUD Santé Sociaux | I54: =RECAPITULATIF!D21 -> 35 | K54: sont à votre disposition
A55: pour tous renseignements complémentaires au poste : | M55: =RECAPITULATIF!D17 -> 2886 | R55: ='GRILLE C2'!B24 -> 5 | S55: ='GRILLE C2'!C24 -> 24 | T55: ='GRILLE C2'!D24 -> 345
R57: ='GRILLE C2'!B26 -> 6 | S57: ='GRILLE C2'!C26 -> 24 | T57: ='GRILLE C2'!D26 -> 351
R59: ='GRILLE C2'!B28 -> 7 | S59: ='GRILLE C2'!C28 -> 24 | T59: ='GRILLE C2'!D28 -> 364
A60: Recevez toutes nos salutations.
R61: ='GRILLE C2'!B30 -> 8 | S61: ='GRILLE C2'!C30 -> 24 | T61: ='GRILLE C2'!D30 -> 380
A63: =RECAPITULATIF!B5 -> Véronique ERUSSARD, Servanne CORNEE, Sébastien BAYAUT | R63: ='GRILLE C2'!B32 -> 9 | S63: ='GRILLE C2'!C32 -> 36 | T63: ='GRILLE C2'!D32 -> 390
A65: SUD Santé Sociaux | E65: =RECAPITULATIF!D21 -> 35 | R65: ='GRILLE C2'!B34 -> 10 | S65: ='GRILLE C2'!C34 -> 36 | T65: ='GRILLE C2'!D34 -> 402
R67: ='GRILLE C2'!B36 -> 11 | S67: ='GRILLE C2'!C36 -> 48 | T67: ='GRILLE C2'!D36 -> 411
R69: ='GRILLE C2'!B38 -> 12 | S69: ='GRILLE C2'!C38 -> 0 | T69: ='GRILLE C2'!D38 -> 418
A71: Tél : | B71: =RECAPITULATIF!D19 -> 02 99 21 28 86
A72: Mél : | C72: =RECAPITULATIF!C23 -> sudsante@ch-stmalo.fr
A73: =RECAPITULATIF!B25 -> Site Départemental Sud | F73: =RECAPITULATIF!D25 -> http://www.sudsantesociaux35.org

Sheet C2 Echelon 7
G2: Commission Administrative
G3: Paritaire | M3: =RECAPITULATIF!D7 -> Locale
M9: Mme, Mr :
M11: Grade :
M13: Service :
A16: Votre ou vos représentant-e-s du personnel
A18: =RECAPITULATIF!B5 -> Véronique ERUSSARD, Servanne CORNEE, Sébastien BAYAUT
A20: SUD Santé Sociaux | E20: =RECAPITULATIF!D21 -> 35 | F20: du:
A22: =RECAPITULATIF!B2 -> Centre Hospitalier de Saint Malo
A24: siégeant auprès de la CAP | F24: =RECAPITULATIF!D7 -> Locale | J24: du : | K24: =RECAPITULATIF!D11 -> 2019-04-16 | N24: vous informe de votre :
F27: AVANCEMENT D’ECHELON
A33: Vous passez à l’échelon : | F33: ='GRILLE C2'!B28 -> 7 | H33: Indice Majoré : | L33: ='GRILLE C2'!D28 -> 364 | R33: ='GRILLE C2'!B2 -> Catégorie C Grade C2 Ancienne Echelle 4 et 5
A36: Date d'effet : | F36: / | H36: / | I36: =RECAPITULATIF!D9 -> 2019
R37: ='GRILLE C2'!B6 -> Aide Medico-Psychologique (Ex Classe Normale) Aide Soignant (Ex Classe Normale) Auxilliaire de Puériculture (Ex Classe Normale) Ouvrier Principal 2ème Classe Agent des Services Hospitaliers Qualifiés Classe Sup. Aide d'Electroradiologie Classe Supérieure (extinction) Aide de Laboratoire Classe Supérieure (extinction) Aide de Pharmacie Classe Supérieure (extinction) Agent de Service Mortuaire et Désinfection (extinction) Agent de Désinfection 1ère Catégorie (extinction) Conducteur Ambulancier, Déssinateur (extinction)
A40: Ce qui représente un gain mensuel de : | I40: ='GRILLE C2'!D28-'GRILLE C2'!D26 -> 13 | K40: points d'indice.
R41: ='GRILLE C2'!B10 -> Adjoint Administratifs Principal 2ème Classe Aide Medico-Psychologique (Ex Classe Supérieure) Aide Soignant (Ex Classe Supérieure), Aumônier Auxilliaire de Puériculture (Ex Classe Supérieure) Conducteur Ambulancier, Ouvrier Principal 2ème Cl. Agent de Maîtrise, Aide Préparateur (extinction) Aide Technique d'Electroradiologie (extinction) P A R M 2ème Classe, Déssinateur (extinction)
A43: Pour information, la valeur brute du point d'indice
R45: ='GRILLE C2'!B14 -> Echelon | S45: ='GRILLE C2'!C14 -> Durée (en mois) | T45: ='GRILLE C2'!D14 -> Indice Majoré
A46: est de | C46: =RECAPITULATIF!D13 -> 4.686 € | E46: au | F46: =RECAPITULATIF!D15 -> 2019-01-01
R47: ='GRILLE C2'!B16 -> 1 | S47: ='GRILLE C2'!C16 -> 12 | T47: ='GRILLE C2'!D16 -> 328
A49: Soit un gain net mensuel de : | G49: =I40*C46*0.8315 -> 50.65 € | R49: ='GRILLE C2'!B18 -> 2 | S49: ='GRILLE C2'!C18 -> 24 | T49: ='GRILLE C2'!D18 -> 330
R51: ='GRILLE C2'!B20 -> 3 | S51: ='GRILLE C2'!C20 -> 24 | T51: ='GRILLE C2'!D20 -> 333
R53: ='GRILLE C2'!B22 -> 4 | S53: ='GRILLE C2'!C22 -> 24 | T53: ='GRILLE C2'!D22 -> 336
A54: Vos représentant-e-s SUD Santé Sociaux | I54: =RECAPITULATIF!D21 -> 35 | K54: sont à votre disposition
A55: pour tous renseignements complémentaires au poste : | M55: =RECAPITULATIF!D17 -> 2886 | R55: ='GRILLE C2'!B24 -> 5 | S55: ='GRILLE C2'!C24 -> 24 | T55: ='GRILLE C2'!D24 -> 345
R57: ='GRILLE C2'!B26 -> 6 | S57: ='GRILLE C2'!C26 -> 24 | T57: ='GRILLE C2'!D26 -> 351
R59: ='GRILLE C2'!B28 -> 7 | S59: ='GRILLE C2'!C28 -> 24 | T59: ='GRILLE C2'!D28 -> 364
A60: Recevez toutes nos salutations.
R61: ='GRILLE C2'!B30 -> 8 | S61: ='GRILLE C2'!C30 -> 24 | T61: ='GRILLE C2'!D30 -> 380
A63: =RECAPITULATIF!B5 -> Véronique ERUSSARD, Servanne CORNEE, Sébastien BAYAUT | R63: ='GRILLE C2'!B32 -> 9 | S63: ='GRILLE C2'!C32 -> 36 | T63: ='GRILLE C2'!D32 -> 390
A65: SUD Santé Sociaux | E65: =RECAPITULATIF!D21 -> 35 | R65: ='GRILLE C2'!B34 -> 10 | S65: ='GRILLE C2'!C34 -> 36 | T65: ='GRILLE C2'!D34 -> 402
R67: ='GRILLE C2'!B36 -> 11 | S67: ='GRILLE C2'!C36 -> 48 | T67: ='GRILLE C2'!D36 -> 411
R69: ='GRILLE C2'!B38 -> 12 | S69: ='GRILLE C2'!C38 -> 0 | T69: ='GRILLE C2'!D38 -> 418
A71: Tél : | B71: =RECAPITULATIF!D19 -> 02 99 21 28 86
A72: Mél : | C72: =RECAPITULATIF!C23 -> sudsante@ch-stmalo.fr
A73: =RECAPITULATIF!B25 -> Site Départemental Sud | F73: =RECAPITULATIF!D25 -> http://www.sudsantesociaux35.org

Sheet C2 Echelon 8
G2: Commission Administrative
G3: Paritaire | M3: =RECAPITULATIF!D7 -> Locale
M9: Mme, Mr :
M11: Grade :
M13: Service :
A16: Votre ou vos représentant-e-s du personnel
A18: =RECAPITULATIF!B5 -> Véronique ERUSSARD, Servanne CORNEE, Sébastien BAYAUT
A20: SUD Santé Sociaux | E20: =RECAPITULATIF!D21 -> 35 | F20: du:
A22: =RECAPITULATIF!B2 -> Centre Hospitalier de Saint Malo
A24: siégeant auprès de la CAP | F24: =RECAPITULATIF!D7 -> Locale | J24: du : | K24: =RECAPITULATIF!D11 -> 2019-04-16 | N24: vous informe de votre :
F27: AVANCEMENT D’ECHELON
A33: Vous passez à l’échelon : | F33: ='GRILLE C2'!B30 -> 8 | H33: Indice Majoré : | L33: ='GRILLE C2'!D30 -> 380 | R33: ='GRILLE C2'!B2 -> Catégorie C Grade C2 Ancienne Echelle 4 et 5
A36: Date d'effet : | F36: / | H36: / | I36: =RECAPITULATIF!D9 -> 2019
R37: ='GRILLE C2'!B6 -> Aide Medico-Psychologique (Ex Classe Normale) Aide Soignant (Ex Classe Normale) Auxilliaire de Puériculture (Ex Classe Normale) Ouvrier Principal 2ème Classe Agent des Services Hospitaliers Qualifiés Classe Sup. Aide d'Electroradiologie Classe Supérieure (extinction) Aide de Laboratoire Classe Supérieure (extinction) Aide de Pharmacie Classe Supérieure (extinction) Agent de Service Mortuaire et Désinfection (extinction) Agent de Désinfection 1ère Catégorie (extinction) Conducteur Ambulancier, Déssinateur (extinction)
A40: Ce qui représente un gain mensuel de : | I40: ='GRILLE C2'!D30-'GRILLE C2'!D28 -> 16 | K40: points d'indice.
R41: ='GRILLE C2'!B10 -> Adjoint Administratifs Principal 2ème Classe Aide Medico-Psychologique (Ex Classe Supérieure) Aide Soignant (Ex Classe Supérieure), Aumônier Auxilliaire de Puériculture (Ex Classe Supérieure) Conducteur Ambulancier, Ouvrier Principal 2ème Cl. Agent de Maîtrise, Aide Préparateur (extinction) Aide Technique d'Electroradiologie (extinction) P A R M 2ème Classe, Déssinateur (extinction)
A43: Pour information, la valeur brute du point d'indice
R45: ='GRILLE C2'!B14 -> Echelon | S45: ='GRILLE C2'!C14 -> Durée (en mois) | T45: ='GRILLE C2'!D14 -> Indice Majoré
A46: est de | C46: =RECAPITULATIF!D13 -> 4.686 € | E46: au | F46: =RECAPITULATIF!D15 -> 2019-01-01
R47: ='GRILLE C2'!B16 -> 1 | S47: ='GRILLE C2'!C16 -> 12 | T47: ='GRILLE C2'!D16 -> 328
A49: Soit un gain net mensuel de : | G49: =I40*C46*0.8315 -> 62.34 € | R49: ='GRILLE C2'!B18 -> 2 | S49: ='GRILLE C2'!C18 -> 24 | T49: ='GRILLE C2'!D18 -> 330
R51: ='GRILLE C2'!B20 -> 3 | S51: ='GRILLE C2'!C20 -> 24 | T51: ='GRILLE C2'!D20 -> 333
R53: ='GRILLE C2'!B22 -> 4 | S53: ='GRILLE C2'!C22 -> 24 | T53: ='GRILLE C2'!D22 -> 336
A54: Vos représentant-e-s SUD Santé Sociaux | I54: =RECAPITULATIF!D21 -> 35 | K54: sont à votre disposition
A55: pour tous renseignements complémentaires au poste : | M55: =RECAPITULATIF!D17 -> 2886 | R55: ='GRILLE C2'!B24 -> 5 | S55: ='GRILLE C2'!C24 -> 24 | T55: ='GRILLE C2'!D24 -> 345
R57: ='GRILLE C2'!B26 -> 6 | S57: ='GRILLE C2'!C26 -> 24 | T57: ='GRILLE C2'!D26 -> 351
R59: ='GRILLE C2'!B28 -> 7 | S59: ='GRILLE C2'!C28 -> 24 | T59: ='GRILLE C2'!D28 -> 364
A60: Recevez toutes nos salutations.
R61: ='GRILLE C2'!B30 -> 8 | S61: ='GRILLE C2'!C30 -> 24 | T61: ='GRILLE C2'!D30 -> 380
A63: =RECAPITULATIF!B5 -> Véronique ERUSSARD, Servanne CORNEE, Sébastien BAYAUT | R63: ='GRILLE C2'!B32 -> 9 | S63: ='GRILLE C2'!C32 -> 36 | T63: ='GRILLE C2'!D32 -> 390
A65: SUD Santé Sociaux | E65: =RECAPITULATIF!D21 -> 35 | R65: ='GRILLE C2'!B34 -> 10 | S65: ='GRILLE C2'!C34 -> 36 | T65: ='GRILLE C2'!D34 -> 402
R67: ='GRILLE C2'!B36 -> 11 | S67: ='GRILLE C2'!C36 -> 48 | T67: ='GRILLE C2'!D36 -> 411
R69: ='GRILLE C2'!B38 -> 12 | S69: ='GRILLE C2'!C38 -> 0 | T69: ='GRILLE C2'!D38 -> 418
A71: Tél : | B71: =RECAPITULATIF!D19 -> 02 99 21 28 86
A72: Mél : | C72: =RECAPITULATIF!C23 -> sudsante@ch-stmalo.fr
A73: =RECAPITULATIF!B25 -> Site Départemental Sud | F73: =RECAPITULATIF!D25 -> http://www.sudsantesociaux35.org

Sheet C2 Echelon 9
G2: Commission Administrative
G3: Paritaire | M3: =RECAPITULATIF!D7 -> Locale
M9: Mme, Mr :
M11: Grade :
M13: Service :
A16: Votre ou vos représentant-e-s du personnel
A18: =RECAPITULATIF!B5 -> Véronique ERUSSARD, Servanne CORNEE, Sébastien BAYAUT
A20: SUD Santé Sociaux | E20: =RECAPITULATIF!D21 -> 35 | F20: du:
A22: =RECAPITULATIF!B2 -> Centre Hospitalier de Saint Malo
A24: siégeant auprès de la CAP | F24: =RECAPITULATIF!D7 -> Locale | J24: du : | K24: =RECAPITULATIF!D11 -> 2019-04-16 | N24: vous informe de votre :
F27: AVANCEMENT D’ECHELON
A33: Vous passez à l’échelon : | F33: ='GRILLE C2'!B32 -> 9 | H33: Indice Majoré : | L33: ='GRILLE C2'!D32 -> 390 | R33: ='GRILLE C2'!B2 -> Catégorie C Grade C2 Ancienne Echelle 4 et 5
A36: Date d'effet : | F36: / | H36: / | I36: =RECAPITULATIF!D9 -> 2019
R37: ='GRILLE C2'!B6 -> Aide Medico-Psychologique (Ex Classe Normale) Aide Soignant (Ex Classe Normale) Auxilliaire de Puériculture (Ex Classe Normale) Ouvrier Principal 2ème Classe Agent des Services Hospitaliers Qualifiés Classe Sup. Aide d'Electroradiologie Classe Supérieure (extinction) Aide de Laboratoire Classe Supérieure (extinction) Aide de Pharmacie Classe Supérieure (extinction) Agent de Service Mortuaire et Désinfection (extinction) Agent de Désinfection 1ère Catégorie (extinction) Conducteur Ambulancier, Déssinateur (extinction)
A40: Ce qui représente un gain mensuel de : | I40: ='GRILLE C2'!D32-'GRILLE C2'!D30 -> 10 | K40: points d'indice.
R41: ='GRILLE C2'!B10 -> Adjoint Administratifs Principal 2ème Classe Aide Medico-Psychologique (Ex Classe Supérieure) Aide Soignant (Ex Classe Supérieure), Aumônier Auxilliaire de Puériculture (Ex Classe Supérieure) Conducteur Ambulancier, Ouvrier Principal 2ème Cl. Agent de Maîtrise, Aide Préparateur (extinction) Aide Technique d'Electroradiologie (extinction) P A R M 2ème Classe, Déssinateur (extinction)
A43: Pour information, la valeur brute du point d'indice
R45: ='GRILLE C2'!B14 -> Echelon | S45: ='GRILLE C2'!C14 -> Durée (en mois) | T45: ='GRILLE C2'!D14 -> Indice Majoré
A46: est de | C46: =RECAPITULATIF!D13 -> 4.686 € | E46: au | F46: =RECAPITULATIF!D15 -> 2019-01-01
R47: ='GRILLE C2'!B16 -> 1 | S47: ='GRILLE C2'!C16 -> 12 | T47: ='GRILLE C2'!D16 -> 328
A49: Soit un gain net mensuel de : | G49: =I40*C46*0.8315 -> 38.96 € | R49: ='GRILLE C2'!B18 -> 2 | S49: ='GRILLE C2'!C18 -> 24 | T49: ='GRILLE C2'!D18 -> 330
R51: ='GRILLE C2'!B20 -> 3 | S51: ='GRILLE C2'!C20 -> 24 | T51: ='GRILLE C2'!D20 -> 333
R53: ='GRILLE C2'!B22 -> 4 | S53: ='GRILLE C2'!C22 -> 24 | T53: ='GRILLE C2'!D22 -> 336
A54: Vos représentant-e-s SUD Santé Sociaux | I54: =RECAPITULATIF!D21 -> 35 | K54: sont à votre disposition
A55: pour tous renseignements complémentaires au poste : | M55: =RECAPITULATIF!D17 -> 2886 | R55: ='GRILLE C2'!B24 -> 5 | S55: ='GRILLE C2'!C24 -> 24 | T55: ='GRILLE C2'!D24 -> 345
R57: ='GRILLE C2'!B26 -> 6 | S57: ='GRILLE C2'!C26 -> 24 | T57: ='GRILLE C2'!D26 -> 351
R59: ='GRILLE C2'!B28 -> 7 | S59: ='GRILLE C2'!C28 -> 24 | T59: ='GRILLE C2'!D28 -> 364
A60: Recevez toutes nos salutations.
R61: ='GRILLE C2'!B30 -> 8 | S61: ='GRILLE C2'!C30 -> 24 | T61: ='GRILLE C2'!D30 -> 380
A63: =RECAPITULATIF!B5 -> Véronique ERUSSARD, Servanne CORNEE, Sébastien BAYAUT | R63: ='GRILLE C2'!B32 -> 9 | S63: ='GRILLE C2'!C32 -> 36 | T63: ='GRILLE C2'!D32 -> 390
A65: SUD Santé Sociaux | E65: =RECAPITULATIF!D21 -> 35 | R65: ='GRILLE C2'!B34 -> 10 | S65: ='GRILLE C2'!C34 -> 36 | T65: ='GRILLE C2'!D34 -> 402
R67: ='GRILLE C2'!B36 -> 11 | S67: ='GRILLE C2'!C36 -> 48 | T67: ='GRILLE C2'!D36 -> 411
R69: ='GRILLE C2'!B38 -> 12 | S69: ='GRILLE C2'!C38 -> 0 | T69: ='GRILLE C2'!D38 -> 418
A71: Tél : | B71: =RECAPITULATIF!D19 -> 02 99 21 28 86
A72: Mél : | C72: =RECAPITULATIF!C23 -> sudsante@ch-stmalo.fr
A73: =RECAPITULATIF!B25 -> Site Départemental Sud | F73: =RECAPITULATIF!D25 -> http://www.sudsantesociaux35.org

Sheet C2 Echelon 10
G2: Commission Administrative
G3: Paritaire | M3: =RECAPITULATIF!D7 -> Locale
M9: Mme, Mr :
M11: Grade :
M13: Service :
A16: Votre ou vos représentant-e-s du personnel
A18: =RECAPITULATIF!B5 -> Véronique ERUSSARD, Servanne CORNEE, Sébastien BAYAUT
A20: SUD Santé Sociaux | E20: =RECAPITULATIF!D21 -> 35 | F20: du:
A22: =RECAPITULATIF!B2 -> Centre Hospitalier de Saint Malo
A24: siégeant auprès de la CAP | F24: =RECAPITULATIF!D7 -> Locale | J24: du : | K24: =RECAPITULATIF!D11 -> 2019-04-16 | N24: vous informe de votre :
F27: AVANCEMENT D’ECHELON
A33: Vous passez à l’échelon : | F33: ='GRILLE C2'!B34 -> 10 | H33: Indice Majoré : | L33: ='GRILLE C2'!D34 -> 402 | R33: ='GRILLE C2'!B2 -> Catégorie C Grade C2 Ancienne Echelle 4 et 5
A36: Date d'effet : | F36: / | H36: / | I36: =RECAPITULATIF!D9 -> 2019
R37: ='GRILLE C2'!B6 -> Aide Medico-Psychologique (Ex Classe Normale) Aide Soignant (Ex Classe Normale) Auxilliaire de Puériculture (Ex Classe Normale) Ouvrier Principal 2ème Classe Agent des Services Hospitaliers Qualifiés Classe Sup. Aide d'Electroradiologie Classe Supérieure (extinction) Aide de Laboratoire Classe Supérieure (extinction) Aide de Pharmacie Classe Supérieure (extinction) Agent de Service Mortuaire et Désinfection (extinction) Agent de Désinfection 1ère Catégorie (extinction) Conducteur Ambulancier, Déssinateur (extinction)
A40: Ce qui représente un gain mensuel de : | I40: ='GRILLE C2'!D34-'GRILLE C2'!D32 -> 12 | K40: points d'indice.
R41: ='GRILLE C2'!B10 -> Adjoint Administratifs Principal 2ème Classe Aide Medico-Psychologique (Ex Classe Supérieure) Aide Soignant (Ex Classe Supérieure), Aumônier Auxilliaire de Puériculture (Ex Classe Supérieure) Conducteur Ambulancier, Ouvrier Principal 2ème Cl. Agent de Maîtrise, Aide Préparateur (extinction) Aide Technique d'Electroradiologie (extinction) P A R M 2ème Classe, Déssinateur (extinction)
A43: Pour information, la valeur brute du point d'indice
R45: ='GRILLE C2'!B14 -> Echelon | S45: ='GRILLE C2'!C14 -> Durée (en mois) | T45: ='GRILLE C2'!D14 -> Indice Majoré
A46: est de | C46: =RECAPITULATIF!D13 -> 4.686 € | E46: au | F46: =RECAPITULATIF!D15 -> 2019-01-01
R47: ='GRILLE C2'!B16 -> 1 | S47: ='GRILLE C2'!C16 -> 12 | T47: ='GRILLE C2'!D16 -> 328
A49: Soit un gain net mensuel de : | G49: =I40*C46*0.8315 -> 46.76 € | R49: ='GRILLE C2'!B18 -> 2 | S49: ='GRILLE C2'!C18 -> 24 | T49: ='GRILLE C2'!D18 -> 330
R51: ='GRILLE C2'!B20 -> 3 | S51: ='GRILLE C2'!C20 -> 24 | T51: ='GRILLE C2'!D20 -> 333
R53: ='GRILLE C2'!B22 -> 4 | S53: ='GRILLE C2'!C22 -> 24 | T53: ='GRILLE C2'!D22 -> 336
A54: Vos représentant-e-s SUD Santé Sociaux | I54: =RECAPITULATIF!D21 -> 35 | K54: sont à votre disposition
A55: pour tous renseignements complémentaires au poste : | M55: =RECAPITULATIF!D17 -> 2886 | R55: ='GRILLE C2'!B24 -> 5 | S55: ='GRILLE C2'!C24 -> 24 | T55: ='GRILLE C2'!D24 -> 345
R57: ='GRILLE C2'!B26 -> 6 | S57: ='GRILLE C2'!C26 -> 24 | T57: ='GRILLE C2'!D26 -> 351
R59: ='GRILLE C2'!B28 -> 7 | S59: ='GRILLE C2'!C28 -> 24 | T59: ='GRILLE C2'!D28 -> 364
A60: Recevez toutes nos salutations.
R61: ='GRILLE C2'!B30 -> 8 | S61: ='GRILLE C2'!C30 -> 24 | T61: ='GRILLE C2'!D30 -> 380
A63: =RECAPITULATIF!B5 -> Véronique ERUSSARD, Servanne CORNEE, Sébastien BAYAUT | R63: ='GRILLE C2'!B32 -> 9 | S63: ='GRILLE C2'!C32 -> 36 | T63: ='GRILLE C2'!D32 -> 390
A65: SUD Santé Sociaux | E65: =RECAPITULATIF!D21 -> 35 | R65: ='GRILLE C2'!B34 -> 10 | S65: ='GRILLE C2'!C34 -> 36 | T65: ='GRILLE C2'!D34 -> 402
R67: ='GRILLE C2'!B36 -> 11 | S67: ='GRILLE C2'!C36 -> 48 | T67: ='GRILLE C2'!D36 -> 411
R69: ='GRILLE C2'!B38 -> 12 | S69: ='GRILLE C2'!C38 -> 0 | T69: ='GRILLE C2'!D38 -> 418
A71: Tél : | B71: =RECAPITULATIF!D19 -> 02 99 21 28 86
A72: Mél : | C72: =RECAPITULATIF!C23 -> sudsante@ch-stmalo.fr
A73: =RECAPITULATIF!B25 -> Site Départemental Sud | F73: =RECAPITULATIF!D25 -> http://www.sudsantesociaux35.org

Sheet C2 Echelon 11
G2: Commission Administrative
G3: Paritaire | M3: =RECAPITULATIF!D7 -> Locale
M9: Mme, Mr :
M11: Grade :
M13: Service :
A16: Votre ou vos représentant-e-s du personnel
A18: =RECAPITULATIF!B5 -> Véronique ERUSSARD, Servanne CORNEE, Sébastien BAYAUT
A20: SUD Santé Sociaux | E20: =RECAPITULATIF!D21 -> 35 | F20: du:
A22: =RECAPITULATIF!B2 -> Centre Hospitalier de Saint Malo
A24: siégeant auprès de la CAP | F24: =RECAPITULATIF!D7 -> Locale | J24: du : | K24: =RECAPITULATIF!D11 -> 2019-04-16 | N24: vous informe de votre :
F27: AVANCEMENT D’ECHELON
A33: Vous passez à l’échelon : | F33: ='GRILLE C2'!B36 -> 11 | H33: Indice Majoré : | L33: ='GRILLE C2'!D36 -> 411 | R33: ='GRILLE C2'!B2 -> Catégorie C Grade C2 Ancienne Echelle 4 et 5
A36: Date d'effet : | F36: / | H36: / | I36: =RECAPITULATIF!D9 -> 2019
R37: ='GRILLE C2'!B6 -> Aide Medico-Psychologique (Ex Classe Normale) Aide Soignant (Ex Classe Normale) Auxilliaire de Puériculture (Ex Classe Normale) Ouvrier Principal 2ème Classe Agent des Services Hospitaliers Qualifiés Classe Sup. Aide d'Electroradiologie Classe Supérieure (extinction) Aide de Laboratoire Classe Supérieure (extinction) Aide de Pharmacie Classe Supérieure (extinction) Agent de Service Mortuaire et Désinfection (extinction) Agent de Désinfection 1ère Catégorie (extinction) Conducteur Ambulancier, Déssinateur (extinction)
A40: Ce qui représente un gain mensuel de : | I40: ='GRILLE C2'!D36-'GRILLE C2'!D34 -> 9 | K40: points d'indice.
R41: ='GRILLE C2'!B10 -> Adjoint Administratifs Principal 2ème Classe Aide Medico-Psychologique (Ex Classe Supérieure) Aide Soignant (Ex Classe Supérieure), Aumônier Auxilliaire de Puériculture (Ex Classe Supérieure) Conducteur Ambulancier, Ouvrier Principal 2ème Cl. Agent de Maîtrise, Aide Préparateur (extinction) Aide Technique d'Electroradiologie (extinction) P A R M 2ème Classe, Déssinateur (extinction)
A43: Pour information, la valeur brute du point d'indice
R45: ='GRILLE C2'!B14 -> Echelon | S45: ='GRILLE C2'!C14 -> Durée (en mois) | T45: ='GRILLE C2'!D14 -> Indice Majoré
A46: est de | C46: =RECAPITULATIF!D13 -> 4.686 € | E46: au | F46: =RECAPITULATIF!D15 -> 2019-01-01
R47: ='GRILLE C2'!B16 -> 1 | S47: ='GRILLE C2'!C16 -> 12 | T47: ='GRILLE C2'!D16 -> 328
A49: Soit un gain net mensuel de : | G49: =I40*C46*0.8315 -> 35.07 € | R49: ='GRILLE C2'!B18 -> 2 | S49: ='GRILLE C2'!C18 -> 24 | T49: ='GRILLE C2'!D18 -> 330
R51: ='GRILLE C2'!B20 -> 3 | S51: ='GRILLE C2'!C20 -> 24 | T51: ='GRILLE C2'!D20 -> 333
R53: ='GRILLE C2'!B22 -> 4 | S53: ='GRILLE C2'!C22 -> 24 | T53: ='GRILLE C2'!D22 -> 336
A54: Vos représentant-e-s SUD Santé Sociaux | I54: =RECAPITULATIF!D21 -> 35 | K54: sont à votre disposition
A55: pour tous renseignements complémentaires au poste : | M55: =RECAPITULATIF!D17 -> 2886 | R55: ='GRILLE C2'!B24 -> 5 | S55: ='GRILLE C2'!C24 -> 24 | T55: ='GRILLE C2'!D24 -> 345
R57: ='GRILLE C2'!B26 -> 6 | S57: ='GRILLE C2'!C26 -> 24 | T57: ='GRILLE C2'!D26 -> 351
R59: ='GRILLE C2'!B28 -> 7 | S59: ='GRILLE C2'!C28 -> 24 | T59: ='GRILLE C2'!D28 -> 364
A60: Recevez toutes nos salutations.
R61: ='GRILLE C2'!B30 -> 8 | S61: ='GRILLE C2'!C30 -> 24 | T61: ='GRILLE C2'!D30 -> 380
A63: =RECAPITULATIF!B5 -> Véronique ERUSSARD, Servanne CORNEE, Sébastien BAYAUT | R63: ='GRILLE C2'!B32 -> 9 | S63: ='GRILLE C2'!C32 -> 36 | T63: ='GRILLE C2'!D32 -> 390
A65: SUD Santé Sociaux | E65: =RECAPITULATIF!D21 -> 35 | R65: ='GRILLE C2'!B34 -> 10 | S65: ='GRILLE C2'!C34 -> 36 | T65: ='GRILLE C2'!D34 -> 402
R67: ='GRILLE C2'!B36 -> 11 | S67: ='GRILLE C2'!C36 -> 48 | T67: ='GRILLE C2'!D36 -> 411
R69: ='GRILLE C2'!B38 -> 12 | S69: ='GRILLE C2'!C38 -> 0 | T69: ='GRILLE C2'!D38 -> 418
A71: Tél : | B71: =RECAPITULATIF!D19 -> 02 99 21 28 86
A72: Mél : | C72: =RECAPITULATIF!C23 -> sudsante@ch-stmalo.fr
A73: =RECAPITULATIF!B25 -> Site Départemental Sud | F73: =RECAPITULATIF!D25 -> http://www.sudsantesociaux35.org

Sheet C2 Echelon 12
G2: Commission Administrative
G3: Paritaire | M3: =RECAPITULATIF!D7 -> Locale
M9: Mme, Mr :
M11: Grade :
M13: Service :
A16: Votre ou vos représentant-e-s du personnel
A18: =RECAPITULATIF!B5 -> Véronique ERUSSARD, Servanne CORNEE, Sébastien BAYAUT
A20: SUD Santé Sociaux | E20: =RECAPITULATIF!D21 -> 35 | F20: du:
A22: =RECAPITULATIF!B2 -> Centre Hospitalier de Saint Malo
A24: siégeant auprès de la CAP | F24: =RECAPITULATIF!D7 -> Locale | J24: du : | K24: =RECAPITULATIF!D11 -> 2019-04-16 | N24: vous informe de votre :
F27: AVANCEMENT D’ECHELON
A33: Vous passez à l’échelon : | F33: ='GRILLE C2'!B38 -> 12 | H33: Indice Majoré : | L33: ='GRILLE C2'!D38 -> 418 | R33: ='GRILLE C2'!B2 -> Catégorie C Grade C2 Ancienne Echelle 4 et 5
A36: Date d'effet : | F36: / | H36: / | I36: =RECAPITULATIF!D9 -> 2019
R37: ='GRILLE C2'!B6 -> Aide Medico-Psychologique (Ex Classe Normale) Aide Soignant (Ex Classe Normale) Auxilliaire de Puériculture (Ex Classe Normale) Ouvrier Principal 2ème Classe Agent des Services Hospitaliers Qualifiés Classe Sup. Aide d'Electroradiologie Classe Supérieure (extinction) Aide de Laboratoire Classe Supérieure (extinction) Aide de Pharmacie Classe Supérieure (extinction) Agent de Service Mortuaire et Désinfection (extinction) Agent de Désinfection 1ère Catégorie (extinction) Conducteur Ambulancier, Déssinateur (extinction)
A40: Ce qui représente un gain mensuel de : | I40: ='GRILLE C2'!D38-'GRILLE C2'!D36 -> 7 | K40: points d'indice.
R41: ='GRILLE C2'!B10 -> Adjoint Administratifs Principal 2ème Classe Aide Medico-Psychologique (Ex Classe Supérieure) Aide Soignant (Ex Classe Supérieure), Aumônier Auxilliaire de Puériculture (Ex Classe Supérieure) Conducteur Ambulancier, Ouvrier Principal 2ème Cl. Agent de Maîtrise, Aide Préparateur (extinction) Aide Technique d'Electroradiologie (extinction) P A R M 2ème Classe, Déssinateur (extinction)
A43: Pour information, la valeur brute du point d'indice
R45: ='GRILLE C2'!B14 -> Echelon | S45: ='GRILLE C2'!C14 -> Durée (en mois) | T45: ='GRILLE C2'!D14 -> Indice Majoré
A46: est de | C46: =RECAPITULATIF!D13 -> 4.686 € | E46: au | F46: =RECAPITULATIF!D15 -> 2019-01-01
R47: ='GRILLE C2'!B16 -> 1 | S47: ='GRILLE C2'!C16 -> 12 | T47: ='GRILLE C2'!D16 -> 328
A49: Soit un gain net mensuel de : | G49: =I40*C46*0.8315 -> 27.27 € | R49: ='GRILLE C2'!B18 -> 2 | S49: ='GRILLE C2'!C18 -> 24 | T49: ='GRILLE C2'!D18 -> 330
R51: ='GRILLE C2'!B20 -> 3 | S51: ='GRILLE C2'!C20 -> 24 | T51: ='GRILLE C2'!D20 -> 333
R53: ='GRILLE C2'!B22 -> 4 | S53: ='GRILLE C2'!C22 -> 24 | T53: ='GRILLE C2'!D22 -> 336
A54: Vos représentant-e-s SUD Santé Sociaux | I54: =RECAPITULATIF!D21 -> 35 | K54: sont à votre disposition
A55: pour tous renseignements complémentaires au poste : | M55: =RECAPITULATIF!D17 -> 2886 | R55: ='GRILLE C2'!B24 -> 5 | S55: ='GRILLE C2'!C24 -> 24 | T55: ='GRILLE C2'!D24 -> 345
R57: ='GRILLE C2'!B26 -> 6 | S57: ='GRILLE C2'!C26 -> 24 | T57: ='GRILLE C2'!D26 -> 351
R59: ='GRILLE C2'!B28 -> 7 | S59: ='GRILLE C2'!C28 -> 24 | T59: ='GRILLE C2'!D28 -> 364
A60: Recevez toutes nos salutations.
R61: ='GRILLE C2'!B30 -> 8 | S61: ='GRILLE C2'!C30 -> 24 | T61: ='GRILLE C2'!D30 -> 380
A63: =RECAPITULATIF!B5 -> Véronique ERUSSARD, Servanne CORNEE, Sébastien BAYAUT | R63: ='GRILLE C2'!B32 -> 9 | S63: ='GRILLE C2'!C32 -> 36 | T63: ='GRILLE C2'!D32 -> 390
A65: SUD Santé Sociaux | E65: =RECAPITULATIF!D21 -> 35 | R65: ='GRILLE C2'!B34 -> 10 | S65: ='GRILLE C2'!C34 -> 36 | T65: ='GRILLE C2'!D34 -> 402
R67: ='GRILLE C2'!B36 -> 11 | S67: ='GRILLE C2'!C36 -> 48 | T67: ='GRILLE C2'!D36 -> 411
R69: ='GRILLE C2'!B38 -> 12 | S69: ='GRILLE C2'!C38 -> 0 | T69: ='GRILLE C2'!D38 -> 418
A71: Tél : | B71: =RECAPITULATIF!D19 -> 02 99 21 28 86
A72: Mél : | C72: =RECAPITULATIF!C23 -> sudsante@ch-stmalo.fr
A73: =RECAPITULATIF!B25 -> Site Départemental Sud | F73: =RECAPITULATIF!D25 -> http://www.sudsantesociaux35.org

Sheet GRILLE C3
B2: Catégorie C Grade C3 Ancienne Echelle 6
B6: Adjoint Administratifs Principal 1ère Classe Ouvrier Principal 1ère Classe Agent de Maîtrise Principal Aide Medico-Psychologique Principal Aide Soignant Principal Auxilliaire de Puériculture Principal Conducteur Ambulancier Principal Maître Ouvrier Principal P A R M : Permanencier Auxilliaire de Régulation Médicale 1ère Classe (extinction) Déssinateur Principal (extinction)
B10: Echelon | C10: Durée (en mois) | D10: Indice Majoré
B12: 1 | C12: 12 | D12: 350
B14: 2 | C14: 12 | D14: 358
B16: 3 | C16: 24 | D16: 368
B18: 4 | C18: 24 | D18: 380
B20: 5 | C20: 24 | D20: 393
B22: 6 | C22: 24 | D22: 403
B24: 7 | C24: 36 | D24: 415
B26: 8 | C26: 36 | D26: 430
B28: 9 | C28: 36 | D28: 450
B30: 10 | D30: 466

Sheet IMP GRILLE C3
B2: 1) Imprimez autant de feuilles que d'agents concernés.
B4: 2) Pliez en 3 au niveau du repère, deux petits traits noirs.
B6: 3) Inserrez ce courrier dans une enveloppe 110 X 220 à fenêtre.

Sheet C3 Echelon 2
O1: (
G2: Commission Administrative
G3: Paritaire | M3: =RECAPITULATIF!D7 -> Locale
M9: Mme, Mr :
M11: Grade :
M13: Service :
A16: Votre ou vos représentant-e-s du personnel
A18: =RECAPITULATIF!B5 -> Véronique ERUSSARD, Servanne CORNEE, Sébastien BAYAUT
A20: SUD Santé Sociaux | E20: =RECAPITULATIF!D21 -> 35 | F20: du:
A22: =RECAPITULATIF!B2 -> Centre Hospitalier de Saint Malo
A24: siégeant auprès de la CAP | F24: =RECAPITULATIF!D7 -> Locale | J24: du : | K24: =RECAPITULATIF!D11 -> 2019-04-16 | N24: vous informe de votre :
F27: AVANCEMENT D’ECHELON
A33: Vous passez à l’échelon : | F33: ='GRILLE C3'!B14 -> 2 | H33: Indice Majoré : | L33: ='GRILLE C3'!D14 -> 358 | R33: ='GRILLE C3'!B2 -> Catégorie C Grade C3 Ancienne Echelle 6
A36: Date d'effet : | F36: / | H36: / | I36: =RECAPITULATIF!D9 -> 2019
R37: ='GRILLE C3'!B6 -> Adjoint Administratifs Principal 1ère Classe Ouvrier Principal 1ère Classe Agent de Maîtrise Principal Aide Medico-Psychologique Principal Aide Soignant Principal Auxilliaire de Puériculture Principal Conducteur Ambulancier Principal Maître Ouvrier Principal P A R M : Permanencier Auxilliaire de Régulation Médicale 1ère Classe (extinction) Déssinateur Principal (extinction)
A40: Ce qui représente un gain mensuel de : | I40: ='GRILLE C3'!D14-'GRILLE C3'!D12 -> 8 | K40: points d'indice.
A43: Pour information, la valeur brute du point d'indice
R45: ='GRILLE C3'!B10 -> Echelon | S45: ='GRILLE C3'!C10 -> Durée (en mois) | T45: ='GRILLE C3'!D10 -> Indice Majoré
A46: est de | C46: =RECAPITULATIF!D13 -> 4.686 € | E46: au | F46: =RECAPITULATIF!D15 -> 2019-01-01
R47: ='GRILLE C3'!B12 -> 1 | S47: ='GRILLE C3'!C12 -> 12 | T47: ='GRILLE C3'!D12 -> 350
A49: Soit un gain net mensuel de : | G49: =I40*C46*0.8315 -> 31.17 € | R49: ='GRILLE C3'!B14 -> 2 | S49: ='GRILLE C3'!C14 -> 12 | T49: ='GRILLE C3'!D14 -> 358
R51: ='GRILLE C3'!B16 -> 3 | S51: ='GRILLE C3'!C16 -> 24 | T51: ='GRILLE C3'!D16 -> 368
R53: ='GRILLE C3'!B18 -> 4 | S53: ='GRILLE C3'!C18 -> 24 | T53: ='GRILLE C3'!D18 -> 380
A54: Vos représentant-e-s SUD Santé Sociaux | I54: =RECAPITULATIF!D21 -> 35 | K54: sont à votre disposition
A55: pour tous renseignements complémentaires au poste : | M55: =RECAPITULATIF!D17 -> 2886 | R55: ='GRILLE C3'!B20 -> 5 | S55: ='GRILLE C3'!C20 -> 24 | T55: ='GRILLE C3'!D20 -> 393
R57: ='GRILLE C3'!B22 -> 6 | S57: ='GRILLE C3'!C22 -> 24 | T57: ='GRILLE C3'!D22 -> 403
R59: ='GRILLE C3'!B24 -> 7 | S59: ='GRILLE C3'!C24 -> 36 | T59: ='GRILLE C3'!D24 -> 415
A60: Recevez toutes nos salutations.
R61: ='GRILLE C3'!B26 -> 8 | S61: ='GRILLE C3'!C26 -> 36 | T61: ='GRILLE C3'!D26 -> 430
A63: =RECAPITULATIF!B5 -> Véronique ERUSSARD, Servanne CORNEE, Sébastien BAYAUT | R63: ='GRILLE C3'!B28 -> 9 | S63: ='GRILLE C3'!C28 -> 36 | T63: ='GRILLE C3'!D28 -> 450
A65: SUD Santé Sociaux | E65: =RECAPITULATIF!D21 -> 35 | R65: ='GRILLE C3'!B30 -> 10 | S65: ='GRILLE C3'!C30 -> 0 | T65: ='GRILLE C3'!D30 -> 466
A70: Tél : | B70: =RECAPITULATIF!D19 -> 02 99 21 28 86
A71: Mél : | C71: =RECAPITULATIF!C23 -> sudsante@ch-stmalo.fr
A72: =RECAPITULATIF!B25 -> Site Départemental Sud | F72: =RECAPITULATIF!D25 -> http://www.sudsantesociaux35.org

Sheet C3 Echelon 3
G2: Commission Administrative
G3: Paritaire | M3: =RECAPITULATIF!D7 -> Locale
M9: Mme, Mr :
M11: Grade :
M13: Service :
A16: Votre ou vos représentant-e-s du personnel
A18: =RECAPITULATIF!B5 -> Véronique ERUSSARD, Servanne CORNEE, Sébastien BAYAUT
A20: SUD Santé Sociaux | E20: =RECAPITULATIF!D21 -> 35 | F20: du:
A22: =RECAPITULATIF!B2 -> Centre Hospitalier de Saint Malo
A24: siégeant auprès de la CAP | F24: =RECAPITULATIF!D7 -> Locale | J24: du : | K24: =RECAPITULATIF!D11 -> 2019-04-16 | N24: vous informe de votre :
F27: AVANCEMENT D’ECHELON
A33: Vous passez à l’échelon : | F33: ='GRILLE C3'!B16 -> 3 | H33: Indice Majoré : | L33: ='GRILLE C3'!D16 -> 368 | R33: ='GRILLE C3'!B2 -> Catégorie C Grade C3 Ancienne Echelle 6
A36: Date d'effet : | F36: / | H36: / | I36: =RECAPITULATIF!D9 -> 2019
R37: ='GRILLE C3'!B6 -> Adjoint Administratifs Principal 1ère Classe Ouvrier Principal 1ère Classe Agent de Maîtrise Principal Aide Medico-Psychologique Principal Aide Soignant Principal Auxilliaire de Puériculture Principal Conducteur Ambulancier Principal Maître Ouvrier Principal P A R M : Permanencier Auxilliaire de Régulation Médicale 1ère Classe (extinction) Déssinateur Principal (extinction)
A40: Ce qui représente un gain mensuel de : | I40: ='GRILLE C3'!D16-'GRILLE C3'!D14 -> 10 | K40: points d'indice.
A43: Pour information, la valeur brute du point d'indice
R45: ='GRILLE C3'!B10 -> Echelon | S45: ='GRILLE C3'!C10 -> Durée (en mois) | T45: ='GRILLE C3'!D10 -> Indice Majoré
A46: est de | C46: =RECAPITULATIF!D13 -> 4.686 € | E46: au | F46: =RECAPITULATIF!D15 -> 2019-01-01
R47: ='GRILLE C3'!B12 -> 1 | S47: ='GRILLE C3'!C12 -> 12 | T47: ='GRILLE C3'!D12 -> 350
A49: Soit un gain net mensuel de : | G49: =I40*C46*0.8315 -> 38.96 € | R49: ='GRILLE C3'!B14 -> 2 | S49: ='GRILLE C3'!C14 -> 12 | T49: ='GRILLE C3'!D14 -> 358
R51: ='GRILLE C3'!B16 -> 3 | S51: ='GRILLE C3'!C16 -> 24 | T51: ='GRILLE C3'!D16 -> 368
R53: ='GRILLE C3'!B18 -> 4 | S53: ='GRILLE C3'!C18 -> 24 | T53: ='GRILLE C3'!D18 -> 380
A54: Vos représentant-e-s SUD Santé Sociaux | I54: =RECAPITULATIF!D21 -> 35 | K54: sont à votre disposition
A55: pour tous renseignements complémentaires au poste : | M55: =RECAPITULATIF!D17 -> 2886 | R55: ='GRILLE C3'!B20 -> 5 | S55: ='GRILLE C3'!C20 -> 24 | T55: ='GRILLE C3'!D20 -> 393
R57: ='GRILLE C3'!B22 -> 6 | S57: ='GRILLE C3'!C22 -> 24 | T57: ='GRILLE C3'!D22 -> 403
R59: ='GRILLE C3'!B24 -> 7 | S59: ='GRILLE C3'!C24 -> 36 | T59: ='GRILLE C3'!D24 -> 415
A60: Recevez toutes nos salutations.
R61: ='GRILLE C3'!B26 -> 8 | S61: ='GRILLE C3'!C26 -> 36 | T61: ='GRILLE C3'!D26 -> 430
A63: =RECAPITULATIF!B5 -> Véronique ERUSSARD, Servanne CORNEE, Sébastien BAYAUT | R63: ='GRILLE C3'!B28 -> 9 | S63: ='GRILLE C3'!C28 -> 36 | T63: ='GRILLE C3'!D28 -> 450
A65: SUD Santé Sociaux | E65: =RECAPITULATIF!D21 -> 35 | R65: ='GRILLE C3'!B30 -> 10 | S65: ='GRILLE C3'!C30 -> 0 | T65: ='GRILLE C3'!D30 -> 466
A70: Tél : | B70: =RECAPITULATIF!D19 -> 02 99 21 28 86
A71: Mél : | C71: =RECAPITULATIF!C23 -> sudsante@ch-stmalo.fr
A72: =RECAPITULATIF!B25 -> Site Départemental Sud | F72: =RECAPITULATIF!D25 -> http://www.sudsantesociaux35.org

Sheet C3 Echelon 4
G2: Commission Administrative
G3: Paritaire | M3: =RECAPITULATIF!D7 -> Locale
M9: Mme, Mr :
M11: Grade :
M13: Service :
A16: Votre ou vos représentant-e-s du personnel
A18: =RECAPITULATIF!B5 -> Véronique ERUSSARD, Servanne CORNEE, Sébastien BAYAUT
A20: SUD Santé Sociaux | E20: =RECAPITULATIF!D21 -> 35 | F20: du:
A22: =RECAPITULATIF!B2 -> Centre Hospitalier de Saint Malo
A24: siégeant auprès de la CAP | F24: =RECAPITULATIF!D7 -> Locale | J24: du : | K24: =RECAPITULATIF!D11 -> 2019-04-16 | N24: vous informe de votre :
F27: AVANCEMENT D’ECHELON
A33: Vous passez à l’échelon : | F33: ='GRILLE C3'!B18 -> 4 | H33: Indice Majoré : | L33: ='GRILLE C3'!D18 -> 380 | R33: ='GRILLE C3'!B2 -> Catégorie C Grade C3 Ancienne Echelle 6
A36: Date d'effet : | F36: / | H36: / | I36: =RECAPITULATIF!D9 -> 2019
R37: ='GRILLE C3'!B6 -> Adjoint Administratifs Principal 1ère Classe Ouvrier Principal 1ère Classe Agent de Maîtrise Principal Aide Medico-Psychologique Principal Aide Soignant Principal Auxilliaire de Puériculture Principal Conducteur Ambulancier Principal Maître Ouvrier Principal P A R M : Permanencier Auxilliaire de Régulation Médicale 1ère Classe (extinction) Déssinateur Principal (extinction)
A40: Ce qui représente un gain mensuel de : | I40: ='GRILLE C3'!D18-'GRILLE C3'!D16 -> 12 | K40: points d'indice.
A43: Pour information, la valeur brute du point d'indice
R45: ='GRILLE C3'!B10 -> Echelon | S45: ='GRILLE C3'!C10 -> Durée (en mois) | T45: ='GRILLE C3'!D10 -> Indice Majoré
A46: est de | C46: =RECAPITULATIF!D13 -> 4.686 € | E46: au | F46: =RECAPITULATIF!D15 -> 2019-01-01
R47: ='GRILLE C3'!B12 -> 1 | S47: ='GRILLE C3'!C12 -> 12 | T47: ='GRILLE C3'!D12 -> 350
A49: Soit un gain net mensuel de : | G49: =I40*C46*0.8315 -> 46.76 € | R49: ='GRILLE C3'!B14 -> 2 | S49: ='GRILLE C3'!C14 -> 12 | T49: ='GRILLE C3'!D14 -> 358
R51: ='GRILLE C3'!B16 -> 3 | S51: ='GRILLE C3'!C16 -> 24 | T51: ='GRILLE C3'!D16 -> 368
R53: ='GRILLE C3'!B18 -> 4 | S53: ='GRILLE C3'!C18 -> 24 | T53: ='GRILLE C3'!D18 -> 380
A54: Vos représentant-e-s SUD Santé Sociaux | I54: =RECAPITULATIF!D21 -> 35 | K54: sont à votre disposition
A55: pour tous renseignements complémentaires au poste : | M55: =RECAPITULATIF!D17 -> 2886 | R55: ='GRILLE C3'!B20 -> 5 | S55: ='GRILLE C3'!C20 -> 24 | T55: ='GRILLE C3'!D20 -> 393
R57: ='GRILLE C3'!B22 -> 6 | S57: ='GRILLE C3'!C22 -> 24 | T57: ='GRILLE C3'!D22 -> 403
R59: ='GRILLE C3'!B24 -> 7 | S59: ='GRILLE C3'!C24 -> 36 | T59: ='GRILLE C3'!D24 -> 415
A60: Recevez toutes nos salutations.
R61: ='GRILLE C3'!B26 -> 8 | S61: ='GRILLE C3'!C26 -> 36 | T61: ='GRILLE C3'!D26 -> 430
A63: =RECAPITULATIF!B5 -> Véronique ERUSSARD, Servanne CORNEE, Sébastien BAYAUT | R63: ='GRILLE C3'!B28 -> 9 | S63: ='GRILLE C3'!C28 -> 36 | T63: ='GRILLE C3'!D28 -> 450
A65: SUD Santé Sociaux | E65: =RECAPITULATIF!D21 -> 35 | R65: ='GRILLE C3'!B30 -> 10 | S65: ='GRILLE C3'!C30 -> 0 | T65: ='GRILLE C3'!D30 -> 466
A70: Tél : | B70: =RECAPITULATIF!D19 -> 02 99 21 28 86
A71: Mél : | C71: =RECAPITULATIF!C23 -> sudsante@ch-stmalo.fr
A72: =RECAPITULATIF!B25 -> Site Départemental Sud | F72: =RECAPITULATIF!D25 -> http://www.sudsantesociaux35.org

Sheet C3 Echelon 5
G2: Commission Administrative
G3: Paritaire | M3: =RECAPITULATIF!D7 -> Locale
M9: Mme, Mr :
M11: Grade :
M13: Service :
A16: Votre ou vos représentant-e-s du personnel
A18: =RECAPITULATIF!B5 -> Véronique ERUSSARD, Servanne CORNEE, Sébastien BAYAUT
A20: SUD Santé Sociaux | E20: =RECAPITULATIF!D21 -> 35 | F20: du:
A22: =RECAPITULATIF!B2 -> Centre Hospitalier de Saint Malo
A24: siégeant auprès de la CAP | F24: =RECAPITULATIF!D7 -> Locale | J24: du : | K24: =RECAPITULATIF!D11 -> 2019-04-16 | N24: vous informe de votre :
F27: AVANCEMENT D’ECHELON
A33: Vous passez à l’échelon : | F33: ='GRILLE C3'!B20 -> 5 | H33: Indice Majoré : | L33: ='GRILLE C3'!D20 -> 393 | R33: ='GRILLE C3'!B2 -> Catégorie C Grade C3 Ancienne Echelle 6
A36: Date d'effet : | F36: / | H36: / | I36: =RECAPITULATIF!D9 -> 2019
R37: ='GRILLE C3'!B6 -> Adjoint Administratifs Principal 1ère Classe Ouvrier Principal 1ère Classe Agent de Maîtrise Principal Aide Medico-Psychologique Principal Aide Soignant Principal Auxilliaire de Puériculture Principal Conducteur Ambulancier Principal Maître Ouvrier Principal P A R M : Permanencier Auxilliaire de Régulation Médicale 1ère Classe (extinction) Déssinateur Principal (extinction)
A40: Ce qui représente un gain mensuel de : | I40: ='GRILLE C3'!D20-'GRILLE C3'!D18 -> 13 | K40: points d'indice.
A43: Pour information, la valeur brute du point d'indice
R45: ='GRILLE C3'!B10 -> Echelon | S45: ='GRILLE C3'!C10 -> Durée (en mois) | T45: ='GRILLE C3'!D10 -> Indice Majoré
A46: est de | C46: =RECAPITULATIF!D13 -> 4.686 € | E46: au | F46: =RECAPITULATIF!D15 -> 2019-01-01
R47: ='GRILLE C3'!B12 -> 1 | S47: ='GRILLE C3'!C12 -> 12 | T47: ='GRILLE C3'!D12 -> 350
A49: Soit un gain net mensuel de : | G49: =I40*C46*0.8315 -> 50.65 € | R49: ='GRILLE C3'!B14 -> 2 | S49: ='GRILLE C3'!C14 -> 12 | T49: ='GRILLE C3'!D14 -> 358
R51: ='GRILLE C3'!B16 -> 3 | S51: ='GRILLE C3'!C16 -> 24 | T51: ='GRILLE C3'!D16 -> 368
R53: ='GRILLE C3'!B18 -> 4 | S53: ='GRILLE C3'!C18 -> 24 | T53: ='GRILLE C3'!D18 -> 380
A54: Vos représentant-e-s SUD Santé Sociaux | I54: =RECAPITULATIF!D21 -> 35 | K54: sont à votre disposition
A55: pour tous renseignements complémentaires au poste : | M55: =RECAPITULATIF!D17 -> 2886 | R55: ='GRILLE C3'!B20 -> 5 | S55: ='GRILLE C3'!C20 -> 24 | T55: ='GRILLE C3'!D20 -> 393
R57: ='GRILLE C3'!B22 -> 6 | S57: ='GRILLE C3'!C22 -> 24 | T57: ='GRILLE C3'!D22 -> 403
R59: ='GRILLE C3'!B24 -> 7 | S59: ='GRILLE C3'!C24 -> 36 | T59: ='GRILLE C3'!D24 -> 415
A60: Recevez toutes nos salutations.
R61: ='GRILLE C3'!B26 -> 8 | S61: ='GRILLE C3'!C26 -> 36 | T61: ='GRILLE C3'!D26 -> 430
A63: =RECAPITULATIF!B5 -> Véronique ERUSSARD, Servanne CORNEE, Sébastien BAYAUT | R63: ='GRILLE C3'!B28 -> 9 | S63: ='GRILLE C3'!C28 -> 36 | T63: ='GRILLE C3'!D28 -> 450
A65: SUD Santé Sociaux | E65: =RECAPITULATIF!D21 -> 35 | R65: ='GRILLE C3'!B30 -> 10 | S65: ='GRILLE C3'!C30 -> 0 | T65: ='GRILLE C3'!D30 -> 466
A70: Tél : | B70: =RECAPITULATIF!D19 -> 02 99 21 28 86
A71: Mél : | C71: =RECAPITULATIF!C23 -> sudsante@ch-stmalo.fr
A72: =RECAPITULATIF!B25 -> Site Départemental Sud | F72: =RECAPITULATIF!D25 -> http://www.sudsantesociaux35.org

Sheet C3 Echelon 6
G2: Commission Administrative
G3: Paritaire | M3: =RECAPITULATIF!D7 -> Locale
M9: Mme, Mr :
M11: Grade :
M13: Service :
A16: Votre ou vos représentant-e-s du personnel
A18: =RECAPITULATIF!B5 -> Véronique ERUSSARD, Servanne CORNEE, Sébastien BAYAUT
A20: SUD Santé Sociaux | E20: =RECAPITULATIF!D21 -> 35 | F20: du:
A22: =RECAPITULATIF!B2 -> Centre Hospitalier de Saint Malo
A24: siégeant auprès de la CAP | F24: =RECAPITULATIF!D7 -> Locale | J24: du : | K24: =RECAPITULATIF!D11 -> 2019-04-16 | N24: vous informe de votre :
F27: AVANCEMENT D’ECHELON
A33: Vous passez à l’échelon : | F33: ='GRILLE C3'!B22 -> 6 | H33: Indice Majoré : | L33: ='GRILLE C3'!D22 -> 403 | R33: ='GRILLE C3'!B2 -> Catégorie C Grade C3 Ancienne Echelle 6
A36: Date d'effet : | F36: / | H36: / | I36: =RECAPITULATIF!D9 -> 2019
R37: ='GRILLE C3'!B6 -> Adjoint Administratifs Principal 1ère Classe Ouvrier Principal 1ère Classe Agent de Maîtrise Principal Aide Medico-Psychologique Principal Aide Soignant Principal Auxilliaire de Puériculture Principal Conducteur Ambulancier Principal Maître Ouvrier Principal P A R M : Permanencier Auxilliaire de Régulation Médicale 1ère Classe (extinction) Déssinateur Principal (extinction)
A40: Ce qui représente un gain mensuel de : | I40: ='GRILLE C3'!D22-'GRILLE C3'!D20 -> 10 | K40: points d'indice.
A43: Pour information, la valeur brute du point d'indice
R45: ='GRILLE C3'!B10 -> Echelon | S45: ='GRILLE C3'!C10 -> Durée (en mois) | T45: ='GRILLE C3'!D10 -> Indice Majoré
A46: est de | C46: =RECAPITULATIF!D13 -> 4.686 € | E46: au | F46: =RECAPITULATIF!D15 -> 2019-01-01
R47: ='GRILLE C3'!B12 -> 1 | S47: ='GRILLE C3'!C12 -> 12 | T47: ='GRILLE C3'!D12 -> 350
A49: Soit un gain net mensuel de : | G49: =I40*C46*0.8315 -> 38.96 € | R49: ='GRILLE C3'!B14 -> 2 | S49: ='GRILLE C3'!C14 -> 12 | T49: ='GRILLE C3'!D14 -> 358
R51: ='GRILLE C3'!B16 -> 3 | S51: ='GRILLE C3'!C16 -> 24 | T51: ='GRILLE C3'!D16 -> 368
R53: ='GRILLE C3'!B18 -> 4 | S53: ='GRILLE C3'!C18 -> 24 | T53: ='GRILLE C3'!D18 -> 380
A54: Vos représentant-e-s SUD Santé Sociaux | I54: =RECAPITULATIF!D21 -> 35 | K54: sont à votre disposition
A55: pour tous renseignements complémentaires au poste : | M55: =RECAPITULATIF!D17 -> 2886 | R55: ='GRILLE C3'!B20 -> 5 | S55: ='GRILLE C3'!C20 -> 24 | T55: ='GRILLE C3'!D20 -> 393
R57: ='GRILLE C3'!B22 -> 6 | S57: ='GRILLE C3'!C22 -> 24 | T57: ='GRILLE C3'!D22 -> 403
R59: ='GRILLE C3'!B24 -> 7 | S59: ='GRILLE C3'!C24 -> 36 | T59: ='GRILLE C3'!D24 -> 415
A60: Recevez toutes nos salutations.
R61: ='GRILLE C3'!B26 -> 8 | S61: ='GRILLE C3'!C26 -> 36 | T61: ='GRILLE C3'!D26 -> 430
A63: =RECAPITULATIF!B5 -> Véronique ERUSSARD, Servanne CORNEE, Sébastien BAYAUT | R63: ='GRILLE C3'!B28 -> 9 | S63: ='GRILLE C3'!C28 -> 36 | T63: ='GRILLE C3'!D28 -> 450
A65: SUD Santé Sociaux | E65: =RECAPITULATIF!D21 -> 35 | R65: ='GRILLE C3'!B30 -> 10 | S65: ='GRILLE C3'!C30 -> 0 | T65: ='GRILLE C3'!D30 -> 466
A70: Tél : | B70: =RECAPITULATIF!D19 -> 02 99 21 28 86
A71: Mél : | C71: =RECAPITULATIF!C23 -> sudsante@ch-stmalo.fr
A72: =RECAPITULATIF!B25 -> Site Départemental Sud | F72: =RECAPITULATIF!D25 -> http://www.sudsantesociaux35.org

Sheet C3 Echelon 7
G2: Commission Administrative
G3: Paritaire | M3: =RECAPITULATIF!D7 -> Locale
M9: Mme, Mr :
M11: Grade :
M13: Service :
A16: Votre ou vos représentant-e-s du personnel
A18: =RECAPITULATIF!B5 -> Véronique ERUSSARD, Servanne CORNEE, Sébastien BAYAUT
A20: SUD Santé Sociaux | E20: =RECAPITULATIF!D21 -> 35 | F20: du:
A22: =RECAPITULATIF!B2 -> Centre Hospitalier de Saint Malo
A24: siégeant auprès de la CAP | F24: =RECAPITULATIF!D7 -> Locale | J24: du : | K24: =RECAPITULATIF!D11 -> 2019-04-16 | N24: vous informe de votre :
F27: AVANCEMENT D’ECHELON
A33: Vous passez à l’échelon : | F33: ='GRILLE C3'!B24 -> 7 | H33: Indice Majoré : | L33: ='GRILLE C3'!D24 -> 415 | R33: ='GRILLE C3'!B2 -> Catégorie C Grade C3 Ancienne Echelle 6
A36: Date d'effet : | F36: / | H36: / | I36: =RECAPITULATIF!D9 -> 2019
R37: ='GRILLE C3'!B6 -> Adjoint Administratifs Principal 1ère Classe Ouvrier Principal 1ère Classe Agent de Maîtrise Principal Aide Medico-Psychologique Principal Aide Soignant Principal Auxilliaire de Puériculture Principal Conducteur Ambulancier Principal Maître Ouvrier Principal P A R M : Permanencier Auxilliaire de Régulation Médicale 1ère Classe (extinction) Déssinateur Principal (extinction)
A40: Ce qui représente un gain mensuel de : | I40: ='GRILLE C3'!D24-'GRILLE C3'!D22 -> 12 | K40: points d'indice.
A43: Pour information, la valeur brute du point d'indice
R45: ='GRILLE C3'!B10 -> Echelon | S45: ='GRILLE C3'!C10 -> Durée (en mois) | T45: ='GRILLE C3'!D10 -> Indice Majoré
A46: est de | C46: =RECAPITULATIF!D13 -> 4.686 € | E46: au | F46: =RECAPITULATIF!D15 -> 2019-01-01
R47: ='GRILLE C3'!B12 -> 1 | S47: ='GRILLE C3'!C12 -> 12 | T47: ='GRILLE C3'!D12 -> 350
A49: Soit un gain net mensuel de : | G49: =I40*C46*0.8315 -> 46.76 € | R49: ='GRILLE C3'!B14 -> 2 | S49: ='GRILLE C3'!C14 -> 12 | T49: ='GRILLE C3'!D14 -> 358
R51: ='GRILLE C3'!B16 -> 3 | S51: ='GRILLE C3'!C16 -> 24 | T51: ='GRILLE C3'!D16 -> 368
R53: ='GRILLE C3'!B18 -> 4 | S53: ='GRILLE C3'!C18 -> 24 | T53: ='GRILLE C3'!D18 -> 380
A54: Vos représentant-e-s SUD Santé Sociaux | I54: =RECAPITULATIF!D21 -> 35 | K54: sont à votre disposition
A55: pour tous renseignements complémentaires au poste : | M55: =RECAPITULATIF!D17 -> 2886 | R55: ='GRILLE C3'!B20 -> 5 | S55: ='GRILLE C3'!C20 -> 24 | T55: ='GRILLE C3'!D20 -> 393
R57: ='GRILLE C3'!B22 -> 6 | S57: ='GRILLE C3'!C22 -> 24 | T57: ='GRILLE C3'!D22 -> 403
R59: ='GRILLE C3'!B24 -> 7 | S59: ='GRILLE C3'!C24 -> 36 | T59: ='GRILLE C3'!D24 -> 415
A60: Recevez toutes nos salutations.
R61: ='GRILLE C3'!B26 -> 8 | S61: ='GRILLE C3'!C26 -> 36 | T61: ='GRILLE C3'!D26 -> 430
A63: =RECAPITULATIF!B5 -> Véronique ERUSSARD, Servanne CORNEE, Sébastien BAYAUT | R63: ='GRILLE C3'!B28 -> 9 | S63: ='GRILLE C3'!C28 -> 36 | T63: ='GRILLE C3'!D28 -> 450
A65: SUD Santé Sociaux | E65: =RECAPITULATIF!D21 -> 35 | R65: ='GRILLE C3'!B30 -> 10 | S65: ='GRILLE C3'!C30 -> 0 | T65: ='GRILLE C3'!D30 -> 466
A70: Tél : | B70: =RECAPITULATIF!D19 -> 02 99 21 28 86
A71: Mél : | C71: =RECAPITULATIF!C23 -> sudsante@ch-stmalo.fr
A72: =RECAPITULATIF!B25 -> Site Départemental Sud | F72: =RECAPITULATIF!D25 -> http://www.sudsantesociaux35.org

Sheet C3 Echelon 8
G2: Commission Administrative
G3: Paritaire | M3: =RECAPITULATIF!D7 -> Locale
M9: Mme, Mr :
M11: Grade :
M13: Service :
A16: Votre ou vos représentant-e-s du personnel
A18: =RECAPITULATIF!B5 -> Véronique ERUSSARD, Servanne CORNEE, Sébastien BAYAUT
A20: SUD Santé Sociaux | E20: =RECAPITULATIF!D21 -> 35 | F20: du:
A22: =RECAPITULATIF!B2 -> Centre Hospitalier de Saint Malo
A24: siégeant auprès de la CAP | F24: =RECAPITULATIF!D7 -> Locale | J24: du : | K24: =RECAPITULATIF!D11 -> 2019-04-16 | N24: vous informe de votre :
F27: AVANCEMENT D’ECHELON
A33: Vous passez à l’échelon : | F33: ='GRILLE C3'!B26 -> 8 | H33: Indice Majoré : | L33: ='GRILLE C3'!D26 -> 430 | R33: ='GRILLE C3'!B2 -> Catégorie C Grade C3 Ancienne Echelle 6
A36: Date d'effet : | F36: / | H36: / | I36: =RECAPITULATIF!D9 -> 2019
R37: ='GRILLE C3'!B6 -> Adjoint Administratifs Principal 1ère Classe Ouvrier Principal 1ère Classe Agent de Maîtrise Principal Aide Medico-Psychologique Principal Aide Soignant Principal Auxilliaire de Puériculture Principal Conducteur Ambulancier Principal Maître Ouvrier Principal P A R M : Permanencier Auxilliaire de Régulation Médicale 1ère Classe (extinction) Déssinateur Principal (extinction)
A40: Ce qui représente un gain mensuel de : | I40: ='GRILLE C3'!D26-'GRILLE C3'!D24 -> 15 | K40: points d'indice.
A43: Pour information, la valeur brute du point d'indice
R45: ='GRILLE C3'!B10 -> Echelon | S45: ='GRILLE C3'!C10 -> Durée (en mois) | T45: ='GRILLE C3'!D10 -> Indice Majoré
A46: est de | C46: =RECAPITULATIF!D13 -> 4.686 € | E46: au | F46: =RECAPITULATIF!D15 -> 2019-01-01
R47: ='GRILLE C3'!B12 -> 1 | S47: ='GRILLE C3'!C12 -> 12 | T47: ='GRILLE C3'!D12 -> 350
A49: Soit un gain net mensuel de : | G49: =I40*C46*0.8315 -> 58.45 € | R49: ='GRILLE C3'!B14 -> 2 | S49: ='GRILLE C3'!C14 -> 12 | T49: ='GRILLE C3'!D14 -> 358
R51: ='GRILLE C3'!B16 -> 3 | S51: ='GRILLE C3'!C16 -> 24 | T51: ='GRILLE C3'!D16 -> 368
R53: ='GRILLE C3'!B18 -> 4 | S53: ='GRILLE C3'!C18 -> 24 | T53: ='GRILLE C3'!D18 -> 380
A54: Vos représentant-e-s SUD Santé Sociaux | I54: =RECAPITULATIF!D21 -> 35 | K54: sont à votre disposition
A55: pour tous renseignements complémentaires au poste : | M55: =RECAPITULATIF!D17 -> 2886 | R55: ='GRILLE C3'!B20 -> 5 | S55: ='GRILLE C3'!C20 -> 24 | T55: ='GRILLE C3'!D20 -> 393
R57: ='GRILLE C3'!B22 -> 6 | S57: ='GRILLE C3'!C22 -> 24 | T57: ='GRILLE C3'!D22 -> 403
R59: ='GRILLE C3'!B24 -> 7 | S59: ='GRILLE C3'!C24 -> 36 | T59: ='GRILLE C3'!D24 -> 415
A60: Recevez toutes nos salutations.
R61: ='GRILLE C3'!B26 -> 8 | S61: ='GRILLE C3'!C26 -> 36 | T61: ='GRILLE C3'!D26 -> 430
A63: =RECAPITULATIF!B5 -> Véronique ERUSSARD, Servanne CORNEE, Sébastien BAYAUT | R63: ='GRILLE C3'!B28 -> 9 | S63: ='GRILLE C3'!C28 -> 36 | T63: ='GRILLE C3'!D28 -> 450
A65: SUD Santé Sociaux | E65: =RECAPITULATIF!D21 -> 35 | R65: ='GRILLE C3'!B30 -> 10 | S65: ='GRILLE C3'!C30 -> 0 | T65: ='GRILLE C3'!D30 -> 466
A70: Tél : | B70: =RECAPITULATIF!D19 -> 02 99 21 28 86
A71: Mél : | C71: =RECAPITULATIF!C23 -> sudsante@ch-stmalo.fr
A72: =RECAPITULATIF!B25 -> Site Départemental Sud | F72: =RECAPITULATIF!D25 -> http://www.sudsantesociaux35.org

Sheet C3 Echelon 9
G2: Commission Administrative
G3: Paritaire | M3: =RECAPITULATIF!D7 -> Locale
M9: Mme, Mr :
M11: Grade :
M13: Service :
A16: Votre ou vos représentant-e-s du personnel
A18: =RECAPITULATIF!B5 -> Véronique ERUSSARD, Servanne CORNEE, Sébastien BAYAUT
A20: SUD Santé Sociaux | E20: =RECAPITULATIF!D21 -> 35 | F20: du:
A22: =RECAPITULATIF!B2 -> Centre Hospitalier de Saint Malo
A24: siégeant auprès de la CAP | F24: =RECAPITULATIF!D7 -> Locale | J24: du : | K24: =RECAPITULATIF!D11 -> 2019-04-16 | N24: vous informe de votre :
F27: AVANCEMENT D’ECHELON
A33: Vous passez à l’échelon : | F33: ='GRILLE C3'!B28 -> 9 | H33: Indice Majoré : | L33: ='GRILLE C3'!D28 -> 450 | R33: ='GRILLE C3'!B2 -> Catégorie C Grade C3 Ancienne Echelle 6
A36: Date d'effet : | F36: / | H36: / | I36: =RECAPITULATIF!D9 -> 2019
R37: ='GRILLE C3'!B6 -> Adjoint Administratifs Principal 1ère Classe Ouvrier Principal 1ère Classe Agent de Maîtrise Principal Aide Medico-Psychologique Principal Aide Soignant Principal Auxilliaire de Puériculture Principal Conducteur Ambulancier Principal Maître Ouvrier Principal P A R M : Permanencier Auxilliaire de Régulation Médicale 1ère Classe (extinction) Déssinateur Principal (extinction)
A40: Ce qui représente un gain mensuel de : | I40: ='GRILLE C3'!D28-'GRILLE C3'!D26 -> 20 | K40: points d'indice.
A43: Pour information, la valeur brute du point d'indice
R45: ='GRILLE C3'!B10 -> Echelon | S45: ='GRILLE C3'!C10 -> Durée (en mois) | T45: ='GRILLE C3'!D10 -> Indice Majoré
A46: est de | C46: =RECAPITULATIF!D13 -> 4.686 € | E46: au | F46: =RECAPITULATIF!D15 -> 2019-01-01
R47: ='GRILLE C3'!B12 -> 1 | S47: ='GRILLE C3'!C12 -> 12 | T47: ='GRILLE C3'!D12 -> 350
A49: Soit un gain net mensuel de : | G49: =I40*C46*0.8315 -> 77.93 € | R49: ='GRILLE C3'!B14 -> 2 | S49: ='GRILLE C3'!C14 -> 12 | T49: ='GRILLE C3'!D14 -> 358
R51: ='GRILLE C3'!B16 -> 3 | S51: ='GRILLE C3'!C16 -> 24 | T51: ='GRILLE C3'!D16 -> 368
R53: ='GRILLE C3'!B18 -> 4 | S53: ='GRILLE C3'!C18 -> 24 | T53: ='GRILLE C3'!D18 -> 380
A54: Vos représentant-e-s SUD Santé Sociaux | I54: =RECAPITULATIF!D21 -> 35 | K54: sont à votre disposition
A55: pour tous renseignements complémentaires au poste : | M55: =RECAPITULATIF!D17 -> 2886 | R55: ='GRILLE C3'!B20 -> 5 | S55: ='GRILLE C3'!C20 -> 24 | T55: ='GRILLE C3'!D20 -> 393
R57: ='GRILLE C3'!B22 -> 6 | S57: ='GRILLE C3'!C22 -> 24 | T57: ='GRILLE C3'!D22 -> 403
R59: ='GRILLE C3'!B24 -> 7 | S59: ='GRILLE C3'!C24 -> 36 | T59: ='GRILLE C3'!D24 -> 415
A60: Recevez toutes nos salutations.
R61: ='GRILLE C3'!B26 -> 8 | S61: ='GRILLE C3'!C26 -> 36 | T61: ='GRILLE C3'!D26 -> 430
A63: =RECAPITULATIF!B5 -> Véronique ERUSSARD, Servanne CORNEE, Sébastien BAYAUT | R63: ='GRILLE C3'!B28 -> 9 | S63: ='GRILLE C3'!C28 -> 36 | T63: ='GRILLE C3'!D28 -> 450
A65: SUD Santé Sociaux | E65: =RECAPITULATIF!D21 -> 35 | R65: ='GRILLE C3'!B30 -> 10 | S65: ='GRILLE C3'!C30 -> 0 | T65: ='GRILLE C3'!D30 -> 466
A70: Tél : | B70: =RECAPITULATIF!D19 -> 02 99 21 28 86
A71: Mél : | C71: =RECAPITULATIF!C23 -> sudsante@ch-stmalo.fr
A72: =RECAPITULATIF!B25 -> Site Départemental Sud | F72: =RECAPITULATIF!D25 -> http://www.sudsantesociaux35.org

Sheet C3 Echelon 10
G2: Commission Administrative
G3: Paritaire | M3: =RECAPITULATIF!D7 -> Locale
M9: Mme, Mr :
M11: Grade :
M13: Service :
A16: Votre ou vos représentant-e-s du personnel
A18: =RECAPITULATIF!B5 -> Véronique ERUSSARD, Servanne CORNEE, Sébastien BAYAUT
A20: SUD Santé Sociaux | E20: =RECAPITULATIF!D21 -> 35 | F20: du:
A22: =RECAPITULATIF!B2 -> Centre Hospitalier de Saint Malo
A24: siégeant auprès de la CAP | F24: =RECAPITULATIF!D7 -> Locale | J24: du : | K24: =RECAPITULATIF!D11 -> 2019-04-16 | N24: vous informe de votre :
F27: AVANCEMENT D’ECHELON
A33: Vous passez à l’échelon : | F33: ='GRILLE C3'!B30 -> 10 | H33: Indice Majoré : | L33: ='GRILLE C3'!D30 -> 466 | R33: ='GRILLE C3'!B2 -> Catégorie C Grade C3 Ancienne Echelle 6
A36: Date d'effet : | F36: / | H36: / | I36: =RECAPITULATIF!D9 -> 2019
R37: ='GRILLE C3'!B6 -> Adjoint Administratifs Principal 1ère Classe Ouvrier Principal 1ère Classe Agent de Maîtrise Principal Aide Medico-Psychologique Principal Aide Soignant Principal Auxilliaire de Puériculture Principal Conducteur Ambulancier Principal Maître Ouvrier Principal P A R M : Permanencier Auxilliaire de Régulation Médicale 1ère Classe (extinction) Déssinateur Principal (extinction)
A40: Ce qui représente un gain mensuel de : | I40: ='GRILLE C3'!D30-'GRILLE C3'!D28 -> 16 | K40: points d'indice.
A43: Pour information, la valeur brute du point d'indice
R45: ='GRILLE C3'!B10 -> Echelon | S45: ='GRILLE C3'!C10 -> Durée (en mois) | T45: ='GRILLE C3'!D10 -> Indice Majoré
A46: est de | C46: =RECAPITULATIF!D13 -> 4.686 € | E46: au | F46: =RECAPITULATIF!D15 -> 2019-01-01
R47: ='GRILLE C3'!B12 -> 1 | S47: ='GRILLE C3'!C12 -> 12 | T47: ='GRILLE C3'!D12 -> 350
A49: Soit un gain net mensuel de : | G49: =I40*C46*0.8315 -> 62.34 € | R49: ='GRILLE C3'!B14 -> 2 | S49: ='GRILLE C3'!C14 -> 12 | T49: ='GRILLE C3'!D14 -> 358
R51: ='GRILLE C3'!B16 -> 3 | S51: ='GRILLE C3'!C16 -> 24 | T51: ='GRILLE C3'!D16 -> 368
R53: ='GRILLE C3'!B18 -> 4 | S53: ='GRILLE C3'!C18 -> 24 | T53: ='GRILLE C3'!D18 -> 380
A54: Vos représentant-e-s SUD Santé Sociaux | I54: =RECAPITULATIF!D21 -> 35 | K54: sont à votre disposition
A55: pour tous renseignements complémentaires au poste : | M55: =RECAPITULATIF!D17 -> 2886 | R55: ='GRILLE C3'!B20 -> 5 | S55: ='GRILLE C3'!C20 -> 24 | T55: ='GRILLE C3'!D20 -> 393
R57: ='GRILLE C3'!B22 -> 6 | S57: ='GRILLE C3'!C22 -> 24 | T57: ='GRILLE C3'!D22 -> 403
R59: ='GRILLE C3'!B24 -> 7 | S59: ='GRILLE C3'!C24 -> 36 | T59: ='GRILLE C3'!D24 -> 415
A60: Recevez toutes nos salutations.
R61: ='GRILLE C3'!B26 -> 8 | S61: ='GRILLE C3'!C26 -> 36 | T61: ='GRILLE C3'!D26 -> 430
A63: =RECAPITULATIF!B5 -> Véronique ERUSSARD, Servanne CORNEE, Sébastien BAYAUT | R63: ='GRILLE C3'!B28 -> 9 | S63: ='GRILLE C3'!C28 -> 36 | T63: ='GRILLE C3'!D28 -> 450
A65: SUD Santé Sociaux | E65: =RECAPITULATIF!D21 -> 35 | R65: ='GRILLE C3'!B30 -> 10 | S65: ='GRILLE C3'!C30 -> 0 | T65: ='GRILLE C3'!D30 -> 466
A70: Tél : | B70: =RECAPITULATIF!D19 -> 02 99 21 28 86
A71: Mél : | C71: =RECAPITULATIF!C23 -> sudsante@ch-stmalo.fr
A72: =RECAPITULATIF!B25 -> Site Départemental Sud | F72: =RECAPITULATIF!D25 -> http://www.sudsantesociaux35.org

Sheet GRILLE C MA EXTINCTION
B2: Catégorie C EXTINCTION Moninteur d'Atelier
B6: Echelon | C6: Durée (en mois) | D6: Indice Majoré
B8: 1 | C8: 12 | D8: 327
B10: 2 | C10: 24 | D10: 328
B12: 3 | C12: 24 | D12: 331
B14: 4 | C14: 24 | D14: 338
B16: 5 | C16: 24 | D16: 344
B18: 6 | C18: 24 | D18: 352
B20: 7 | C20: 36 | D20: 367
B22: 8 | C22: 36 | D22: 381
B24: 9 | C24: 36 | D24: 404
B26: 10 | C26: 36 | D26: 422
B28: 11 | C28: 48 | D28: 428
B30: 12 | C30: 48 | D30: 450
B32: 13 | D32: 466

Sheet IMP GRILLE C MA EXTINCTION
B2: 1) Imprimez autant de feuilles que d'agents concernés.
B4: 2) Pliez en 3 au niveau du repère, deux petits traits noirs.
B6: 3) Inserrez ce courrier dans une enveloppe 110 X 220 à fenêtre.

Sheet C MA EXT Echelon 2
G2: Commission Administrative
G3: Paritaire | M3: =RECAPITULATIF!D7 -> Locale
M9: Mme, Mr :
M11: Grade :
M13: Service :
A16: Votre ou vos représentant-e-s du personnel
A18: =RECAPITULATIF!B5 -> Véronique ERUSSARD, Servanne CORNEE, Sébastien BAYAUT
A20: SUD Santé Sociaux | E20: =RECAPITULATIF!D21 -> 35 | F20: du:
A22: =RECAPITULATIF!B2 -> Centre Hospitalier de Saint Malo
A24: siégeant auprès de la CAP | F24: =RECAPITULATIF!D7 -> Locale | J24: du : | K24: =RECAPITULATIF!D11 -> 2019-04-16 | N24: vous informe de votre :
F27: AVANCEMENT D’ECHELON
A33: Vous passez à l’échelon : | F33: ='GRILLE C MA EXTINCTION'!B10 -> 2 | H33: Indice Majoré : | L33: ='GRILLE C MA EXTINCTION'!D10 -> 328
A36: Date d'effet : | F36: / | H36: / | I36: =RECAPITULATIF!D9 -> 2019
R39: ='GRILLE C MA EXTINCTION'!B2 -> Catégorie C EXTINCTION Moninteur d'Atelier
A40: Ce qui représente un gain mensuel de : | I40: ='GRILLE C MA EXTINCTION'!D10-'GRILLE C MA EXTINCTION'!D8 -> 1 | K40: points d'indice.
A43: Pour information, la valeur brute du point d'indice | R43: ='GRILLE C MA EXTINCTION'!B6 -> Echelon | S43: ='GRILLE C MA EXTINCTION'!C6 -> Durée (en mois) | T43: ='GRILLE C MA EXTINCTION'!D6 -> Indice Majoré
R45: ='GRILLE C MA EXTINCTION'!B8 -> 1 | S45: ='GRILLE C MA EXTINCTION'!C8 -> 12 | T45: ='GRILLE C MA EXTINCTION'!D8 -> 327
A46: est de | C46: =RECAPITULATIF!D13 -> 4.686 € | E46: au | F46: =RECAPITULATIF!D15 -> 2019-01-01
R47: ='GRILLE C MA EXTINCTION'!B10 -> 2 | S47: ='GRILLE C MA EXTINCTION'!C10 -> 24 | T47: ='GRILLE C MA EXTINCTION'!D10 -> 328
A49: Soit un gain net mensuel de : | G49: =I40*C46*0.8315 -> 3.90 € | R49: ='GRILLE C MA EXTINCTION'!B12 -> 3 | S49: ='GRILLE C MA EXTINCTION'!C12 -> 24 | T49: ='GRILLE C MA EXTINCTION'!D12 -> 331
R51: ='GRILLE C MA EXTINCTION'!B14 -> 4 | S51: ='GRILLE C MA EXTINCTION'!C14 -> 24 | T51: ='GRILLE C MA EXTINCTION'!D14 -> 338
R53: ='GRILLE C MA EXTINCTION'!B16 -> 5 | S53: ='GRILLE C MA EXTINCTION'!C16 -> 24 | T53: ='GRILLE C MA EXTINCTION'!D16 -> 344
A54: Vos représentant-e-s SUD Santé Sociaux | I54: =RECAPITULATIF!D21 -> 35 | K54: sont à votre disposition
A55: pour tous renseignements complémentaires au poste : | M55: =RECAPITULATIF!D17 -> 2886 | R55: ='GRILLE C MA EXTINCTION'!B18 -> 6 | S55: ='GRILLE C MA EXTINCTION'!C18 -> 24 | T55: ='GRILLE C MA EXTINCTION'!D18 -> 352
R57: ='GRILLE C MA EXTINCTION'!B20 -> 7 | S57: ='GRILLE C MA EXTINCTION'!C20 -> 36 | T57: ='GRILLE C MA EXTINCTION'!D20 -> 367
R59: ='GRILLE C MA EXTINCTION'!B22 -> 8 | S59: ='GRILLE C MA EXTINCTION'!C22 -> 36 | T59: ='GRILLE C MA EXTINCTION'!D22 -> 381
A60: Recevez toutes nos salutations.
R61: ='GRILLE C MA EXTINCTION'!B24 -> 9 | S61: ='GRILLE C MA EXTINCTION'!C24 -> 36 | T61: ='GRILLE C MA EXTINCTION'!D24 -> 404
A63: =RECAPITULATIF!B5 -> Véronique ERUSSARD, Servanne CORNEE, Sébastien BAYAUT | R63: ='GRILLE C MA EXTINCTION'!B26 -> 10 | S63: ='GRILLE C MA EXTINCTION'!C26 -> 36 | T63: ='GRILLE C MA EXTINCTION'!D26 -> 422
A65: SUD Santé Sociaux | E65: =RECAPITULATIF!D21 -> 35 | R65: ='GRILLE C MA EXTINCTION'!B28 -> 11 | S65: ='GRILLE C MA EXTINCTION'!C28 -> 48 | T65: ='GRILLE C MA EXTINCTION'!D28 -> 428
R67: ='GRILLE C MA EXTINCTION'!B30 -> 12 | S67: ='GRILLE C MA EXTINCTION'!C30 -> 48 | T67: ='GRILLE C MA EXTINCTION'!D30 -> 450
R69: ='GRILLE C MA EXTINCTION'!B32 -> 13 | S69: ='GRILLE C MA EXTINCTION'!C32 -> 0 | T69: ='GRILLE C MA EXTINCTION'!D32 -> 466
A71: Tél : | B71: =RECAPITULATIF!D19 -> 02 99 21 28 86
A72: Mél : | C72: =RECAPITULATIF!C23 -> sudsante@ch-stmalo.fr
A73: =RECAPITULATIF!B25 -> Site Départemental Sud | F73: =RECAPITULATIF!D25 -> http://www.sudsantesociaux35.org

Sheet C MA EXT Echelon 3
G2: Commission Administrative
G3: Paritaire | M3: =RECAPITULATIF!D7 -> Locale
M9: Mme, Mr :
M11: Grade :
M13: Service :
A16: Votre ou vos représentant-e-s du personnel
A18: =RECAPITULATIF!B5 -> Véronique ERUSSARD, Servanne CORNEE, Sébastien BAYAUT
A20: SUD Santé Sociaux | E20: =RECAPITULATIF!D21 -> 35 | F20: du:
A22: =RECAPITULATIF!B2 -> Centre Hospitalier de Saint Malo
A24: siégeant auprès de la CAP | F24: =RECAPITULATIF!D7 -> Locale | J24: du : | K24: =RECAPITULATIF!D11 -> 2019-04-16 | N24: vous informe de votre :
F27: AVANCEMENT D’ECHELON
A33: Vous passez à l’échelon : | F33: ='GRILLE C MA EXTINCTION'!B12 -> 3 | H33: Indice Majoré : | L33: ='GRILLE C MA EXTINCTION'!D12 -> 331
A36: Date d'effet : | F36: / | H36: / | I36: =RECAPITULATIF!D9 -> 2019
R39: ='GRILLE C MA EXTINCTION'!B2 -> Catégorie C EXTINCTION Moninteur d'Atelier
A40: Ce qui représente un gain mensuel de : | I40: ='GRILLE C MA EXTINCTION'!D12-'GRILLE C MA EXTINCTION'!D10 -> 3 | K40: points d'indice.
A43: Pour information, la valeur brute du point d'indice | R43: ='GRILLE C MA EXTINCTION'!B6 -> Echelon | S43: ='GRILLE C MA EXTINCTION'!C6 -> Durée (en mois) | T43: ='GRILLE C MA EXTINCTION'!D6 -> Indice Majoré
R45: ='GRILLE C MA EXTINCTION'!B8 -> 1 | S45: ='GRILLE C MA EXTINCTION'!C8 -> 12 | T45: ='GRILLE C MA EXTINCTION'!D8 -> 327
A46: est de | C46: =RECAPITULATIF!D13 -> 4.686 € | E46: au | F46: =RECAPITULATIF!D15 -> 2019-01-01
R47: ='GRILLE C MA EXTINCTION'!B10 -> 2 | S47: ='GRILLE C MA EXTINCTION'!C10 -> 24 | T47: ='GRILLE C MA EXTINCTION'!D10 -> 328
A49: Soit un gain net mensuel de : | G49: =I40*C46*0.8315 -> 11.69 € | R49: ='GRILLE C MA EXTINCTION'!B12 -> 3 | S49: ='GRILLE C MA EXTINCTION'!C12 -> 24 | T49: ='GRILLE C MA EXTINCTION'!D12 -> 331
R51: ='GRILLE C MA EXTINCTION'!B14 -> 4 | S51: ='GRILLE C MA EXTINCTION'!C14 -> 24 | T51: ='GRILLE C MA EXTINCTION'!D14 -> 338
R53: ='GRILLE C MA EXTINCTION'!B16 -> 5 | S53: ='GRILLE C MA EXTINCTION'!C16 -> 24 | T53: ='GRILLE C MA EXTINCTION'!D16 -> 344
A54: Vos représentant-e-s SUD Santé Sociaux | I54: =RECAPITULATIF!D21 -> 35 | K54: sont à votre disposition
A55: pour tous renseignements complémentaires au poste : | M55: =RECAPITULATIF!D17 -> 2886 | R55: ='GRILLE C MA EXTINCTION'!B18 -> 6 | S55: ='GRILLE C MA EXTINCTION'!C18 -> 24 | T55: ='GRILLE C MA EXTINCTION'!D18 -> 352
R57: ='GRILLE C MA EXTINCTION'!B20 -> 7 | S57: ='GRILLE C MA EXTINCTION'!C20 -> 36 | T57: ='GRILLE C MA EXTINCTION'!D20 -> 367
R59: ='GRILLE C MA EXTINCTION'!B22 -> 8 | S59: ='GRILLE C MA EXTINCTION'!C22 -> 36 | T59: ='GRILLE C MA EXTINCTION'!D22 -> 381
A60: Recevez toutes nos salutations.
R61: ='GRILLE C MA EXTINCTION'!B24 -> 9 | S61: ='GRILLE C MA EXTINCTION'!C24 -> 36 | T61: ='GRILLE C MA EXTINCTION'!D24 -> 404
A63: =RECAPITULATIF!B5 -> Véronique ERUSSARD, Servanne CORNEE, Sébastien BAYAUT | R63: ='GRILLE C MA EXTINCTION'!B26 -> 10 | S63: ='GRILLE C MA EXTINCTION'!C26 -> 36 | T63: ='GRILLE C MA EXTINCTION'!D26 -> 422
A65: SUD Santé Sociaux | E65: =RECAPITULATIF!D21 -> 35 | R65: ='GRILLE C MA EXTINCTION'!B28 -> 11 | S65: ='GRILLE C MA EXTINCTION'!C28 -> 48 | T65: ='GRILLE C MA EXTINCTION'!D28 -> 428
R67: ='GRILLE C MA EXTINCTION'!B30 -> 12 | S67: ='GRILLE C MA EXTINCTION'!C30 -> 48 | T67: ='GRILLE C MA EXTINCTION'!D30 -> 450
R69: ='GRILLE C MA EXTINCTION'!B32 -> 13 | S69: ='GRILLE C MA EXTINCTION'!C32 -> 0 | T69: ='GRILLE C MA EXTINCTION'!D32 -> 466
A71: Tél : | B71: =RECAPITULATIF!D19 -> 02 99 21 28 86
A72: Mél : | C72: =RECAPITULATIF!C23 -> sudsante@ch-stmalo.fr
A73: =RECAPITULATIF!B25 -> Site Départemental Sud | F73: =RECAPITULATIF!D25 -> http://www.sudsantesociaux35.org

Sheet C MA EXT Echelon 4
G2: Commission Administrative
G3: Paritaire | M3: =RECAPITULATIF!D7 -> Locale
M9: Mme, Mr :
M11: Grade :
M13: Service :
A16: Votre ou vos représentant-e-s du personnel
A18: =RECAPITULATIF!B5 -> Véronique ERUSSARD, Servanne CORNEE, Sébastien BAYAUT
A20: SUD Santé Sociaux | E20: =RECAPITULATIF!D21 -> 35 | F20: du:
A22: =RECAPITULATIF!B2 -> Centre Hospitalier de Saint Malo
A24: siégeant auprès de la CAP | F24: =RECAPITULATIF!D7 -> Locale | J24: du : | K24: =RECAPITULATIF!D11 -> 2019-04-16 | N24: vous informe de votre :
F27: AVANCEMENT D’ECHELON
A33: Vous passez à l’échelon : | F33: ='GRILLE C MA EXTINCTION'!B14 -> 4 | H33: Indice Majoré : | L33: ='GRILLE C MA EXTINCTION'!D14 -> 338
A36: Date d'effet : | F36: / | H36: / | I36: =RECAPITULATIF!D9 -> 2019
R39: ='GRILLE C MA EXTINCTION'!B2 -> Catégorie C EXTINCTION Moninteur d'Atelier
A40: Ce qui représente un gain mensuel de : | I40: ='GRILLE C MA EXTINCTION'!D14-'GRILLE C MA EXTINCTION'!D12 -> 7 | K40: points d'indice.
A43: Pour information, la valeur brute du point d'indice | R43: ='GRILLE C MA EXTINCTION'!B6 -> Echelon | S43: ='GRILLE C MA EXTINCTION'!C6 -> Durée (en mois) | T43: ='GRILLE C MA EXTINCTION'!D6 -> Indice Majoré
R45: ='GRILLE C MA EXTINCTION'!B8 -> 1 | S45: ='GRILLE C MA EXTINCTION'!C8 -> 12 | T45: ='GRILLE C MA EXTINCTION'!D8 -> 327
A46: est de | C46: =RECAPITULATIF!D13 -> 4.686 € | E46: au | F46: =RECAPITULATIF!D15 -> 2019-01-01
R47: ='GRILLE C MA EXTINCTION'!B10 -> 2 | S47: ='GRILLE C MA EXTINCTION'!C10 -> 24 | T47: ='GRILLE C MA EXTINCTION'!D10 -> 328
A49: Soit un gain net mensuel de : | G49: =I40*C46*0.8315 -> 27.27 € | R49: ='GRILLE C MA EXTINCTION'!B12 -> 3 | S49: ='GRILLE C MA EXTINCTION'!C12 -> 24 | T49: ='GRILLE C MA EXTINCTION'!D12 -> 331
R51: ='GRILLE C MA EXTINCTION'!B14 -> 4 | S51: ='GRILLE C MA EXTINCTION'!C14 -> 24 | T51: ='GRILLE C MA EXTINCTION'!D14 -> 338
R53: ='GRILLE C MA EXTINCTION'!B16 -> 5 | S53: ='GRILLE C MA EXTINCTION'!C16 -> 24 | T53: ='GRILLE C MA EXTINCTION'!D16 -> 344
A54: Vos représentant-e-s SUD Santé Sociaux | I54: =RECAPITULATIF!D21 -> 35 | K54: sont à votre disposition
A55: pour tous renseignements complémentaires au poste : | M55: =RECAPITULATIF!D17 -> 2886 | R55: ='GRILLE C MA EXTINCTION'!B18 -> 6 | S55: ='GRILLE C MA EXTINCTION'!C18 -> 24 | T55: ='GRILLE C MA EXTINCTION'!D18 -> 352
R57: ='GRILLE C MA EXTINCTION'!B20 -> 7 | S57: ='GRILLE C MA EXTINCTION'!C20 -> 36 | T57: ='GRILLE C MA EXTINCTION'!D20 -> 367
R59: ='GRILLE C MA EXTINCTION'!B22 -> 8 | S59: ='GRILLE C MA EXTINCTION'!C22 -> 36 | T59: ='GRILLE C MA EXTINCTION'!D22 -> 381
A60: Recevez toutes nos salutations.
R61: ='GRILLE C MA EXTINCTION'!B24 -> 9 | S61: ='GRILLE C MA EXTINCTION'!C24 -> 36 | T61: ='GRILLE C MA EXTINCTION'!D24 -> 404
A63: =RECAPITULATIF!B5 -> Véronique ERUSSARD, Servanne CORNEE, Sébastien BAYAUT | R63: ='GRILLE C MA EXTINCTION'!B26 -> 10 | S63: ='GRILLE C MA EXTINCTION'!C26 -> 36 | T63: ='GRILLE C MA EXTINCTION'!D26 -> 422
A65: SUD Santé Sociaux | E65: =RECAPITULATIF!D21 -> 35 | R65: ='GRILLE C MA EXTINCTION'!B28 -> 11 | S65: ='GRILLE C MA EXTINCTION'!C28 -> 48 | T65: ='GRILLE C MA EXTINCTION'!D28 -> 428
R67: ='GRILLE C MA EXTINCTION'!B30 -> 12 | S67: ='GRILLE C MA EXTINCTION'!C30 -> 48 | T67: ='GRILLE C MA EXTINCTION'!D30 -> 450
R69: ='GRILLE C MA EXTINCTION'!B32 -> 13 | S69: ='GRILLE C MA EXTINCTION'!C32 -> 0 | T69: ='GRILLE C MA EXTINCTION'!D32 -> 466
A71: Tél : | B71: =RECAPITULATIF!D19 -> 02 99 21 28 86
A72: Mél : | C72: =RECAPITULATIF!C23 -> sudsante@ch-stmalo.fr
A73: =RECAPITULATIF!B25 -> Site Départemental Sud | F73: =RECAPITULATIF!D25 -> http://www.sudsantesociaux35.org

Sheet C MA EXT Echelon 5
G2: Commission Administrative
G3: Paritaire | M3: =RECAPITULATIF!D7 -> Locale
M9: Mme, Mr :
M11: Grade :
M13: Service :
A16: Votre ou vos représentant-e-s du personnel
A18: =RECAPITULATIF!B5 -> Véronique ERUSSARD, Servanne CORNEE, Sébastien BAYAUT
A20: SUD Santé Sociaux | E20: =RECAPITULATIF!D21 -> 35 | F20: du:
A22: =RECAPITULATIF!B2 -> Centre Hospitalier de Saint Malo
A24: siégeant auprès de la CAP | F24: =RECAPITULATIF!D7 -> Locale | J24: du : | K24: =RECAPITULATIF!D11 -> 2019-04-16 | N24: vous informe de votre :
F27: AVANCEMENT D’ECHELON
A33: Vous passez à l’échelon : | F33: ='GRILLE C MA EXTINCTION'!B16 -> 5 | H33: Indice Majoré : | L33: ='GRILLE C MA EXTINCTION'!D16 -> 344
A36: Date d'effet : | F36: / | H36: / | I36: =RECAPITULATIF!D9 -> 2019
R39: ='GRILLE C MA EXTINCTION'!B2 -> Catégorie C EXTINCTION Moninteur d'Atelier
A40: Ce qui représente un gain mensuel de : | I40: ='GRILLE C MA EXTINCTION'!D16-'GRILLE C MA EXTINCTION'!D14 -> 6 | K40: points d'indice.
A43: Pour information, la valeur brute du point d'indice | R43: ='GRILLE C MA EXTINCTION'!B6 -> Echelon | S43: ='GRILLE C MA EXTINCTION'!C6 -> Durée (en mois) | T43: ='GRILLE C MA EXTINCTION'!D6 -> Indice Majoré
R45: ='GRILLE C MA EXTINCTION'!B8 -> 1 | S45: ='GRILLE C MA EXTINCTION'!C8 -> 12 | T45: ='GRILLE C MA EXTINCTION'!D8 -> 327
A46: est de | C46: =RECAPITULATIF!D13 -> 4.686 € | E46: au | F46: =RECAPITULATIF!D15 -> 2019-01-01
R47: ='GRILLE C MA EXTINCTION'!B10 -> 2 | S47: ='GRILLE C MA EXTINCTION'!C10 -> 24 | T47: ='GRILLE C MA EXTINCTION'!D10 -> 328
A49: Soit un gain net mensuel de : | G49: =I40*C46*0.8315 -> 23.38 € | R49: ='GRILLE C MA EXTINCTION'!B12 -> 3 | S49: ='GRILLE C MA EXTINCTION'!C12 -> 24 | T49: ='GRILLE C MA EXTINCTION'!D12 -> 331
R51: ='GRILLE C MA EXTINCTION'!B14 -> 4 | S51: ='GRILLE C MA EXTINCTION'!C14 -> 24 | T51: ='GRILLE C MA EXTINCTION'!D14 -> 338
R53: ='GRILLE C MA EXTINCTION'!B16 -> 5 | S53: ='GRILLE C MA EXTINCTION'!C16 -> 24 | T53: ='GRILLE C MA EXTINCTION'!D16 -> 344
A54: Vos représentant-e-s SUD Santé Sociaux | I54: =RECAPITULATIF!D21 -> 35 | K54: sont à votre disposition
A55: pour tous renseignements complémentaires au poste : | M55: =RECAPITULATIF!D17 -> 2886 | R55: ='GRILLE C MA EXTINCTION'!B18 -> 6 | S55: ='GRILLE C MA EXTINCTION'!C18 -> 24 | T55: ='GRILLE C MA EXTINCTION'!D18 -> 352
R57: ='GRILLE C MA EXTINCTION'!B20 -> 7 | S57: ='GRILLE C MA EXTINCTION'!C20 -> 36 | T57: ='GRILLE C MA EXTINCTION'!D20 -> 367
R59: ='GRILLE C MA EXTINCTION'!B22 -> 8 | S59: ='GRILLE C MA EXTINCTION'!C22 -> 36 | T59: ='GRILLE C MA EXTINCTION'!D22 -> 381
A60: Recevez toutes nos salutations.
R61: ='GRILLE C MA EXTINCTION'!B24 -> 9 | S61: ='GRILLE C MA EXTINCTION'!C24 -> 36 | T61: ='GRILLE C MA EXTINCTION'!D24 -> 404
A63: =RECAPITULATIF!B5 -> Véronique ERUSSARD, Servanne CORNEE, Sébastien BAYAUT | R63: ='GRILLE C MA EXTINCTION'!B26 -> 10 | S63: ='GRILLE C MA EXTINCTION'!C26 -> 36 | T63: ='GRILLE C MA EXTINCTION'!D26 -> 422
A65: SUD Santé Sociaux | E65: =RECAPITULATIF!D21 -> 35 | R65: ='GRILLE C MA EXTINCTION'!B28 -> 11 | S65: ='GRILLE C MA EXTINCTION'!C28 -> 48 | T65: ='GRILLE C MA EXTINCTION'!D28 -> 428
R67: ='GRILLE C MA EXTINCTION'!B30 -> 12 | S67: ='GRILLE C MA EXTINCTION'!C30 -> 48 | T67: ='GRILLE C MA EXTINCTION'!D30 -> 450
R69: ='GRILLE C MA EXTINCTION'!B32 -> 13 | S69: ='GRILLE C MA EXTINCTION'!C32 -> 0 | T69: ='GRILLE C MA EXTINCTION'!D32 -> 466
A71: Tél : | B71: =RECAPITULATIF!D19 -> 02 99 21 28 86
A72: Mél : | C72: =RECAPITULATIF!C23 -> sudsante@ch-stmalo.fr
A73: =RECAPITULATIF!B25 -> Site Départemental Sud | F73: =RECAPITULATIF!D25 -> http://www.sudsantesociaux35.org

Sheet C MA EXT Echelon 6
G2: Commission Administrative
G3: Paritaire | M3: =RECAPITULATIF!D7 -> Locale
M9: Mme, Mr :
M11: Grade :
M13: Service :
A16: Votre ou vos représentant-e-s du personnel
A18: =RECAPITULATIF!B5 -> Véronique ERUSSARD, Servanne CORNEE, Sébastien BAYAUT
A20: SUD Santé Sociaux | E20: =RECAPITULATIF!D21 -> 35 | F20: du:
A22: =RECAPITULATIF!B2 -> Centre Hospitalier de Saint Malo
A24: siégeant auprès de la CAP | F24: =RECAPITULATIF!D7 -> Locale | J24: du : | K24: =RECAPITULATIF!D11 -> 2019-04-16 | N24: vous informe de votre :
F27: AVANCEMENT D’ECHELON
A33: Vous passez à l’échelon : | F33: ='GRILLE C MA EXTINCTION'!B18 -> 6 | H33: Indice Majoré : | L33: ='GRILLE C MA EXTINCTION'!D18 -> 352
A36: Date d'effet : | F36: / | H36: / | I36: =RECAPITULATIF!D9 -> 2019
R39: ='GRILLE C MA EXTINCTION'!B2 -> Catégorie C EXTINCTION Moninteur d'Atelier
A40: Ce qui représente un gain mensuel de : | I40: ='GRILLE C MA EXTINCTION'!D18-'GRILLE C MA EXTINCTION'!D16 -> 8 | K40: points d'indice.
A43: Pour information, la valeur brute du point d'indice | R43: ='GRILLE C MA EXTINCTION'!B6 -> Echelon | S43: ='GRILLE C MA EXTINCTION'!C6 -> Durée (en mois) | T43: ='GRILLE C MA EXTINCTION'!D6 -> Indice Majoré
R45: ='GRILLE C MA EXTINCTION'!B8 -> 1 | S45: ='GRILLE C MA EXTINCTION'!C8 -> 12 | T45: ='GRILLE C MA EXTINCTION'!D8 -> 327
A46: est de | C46: =RECAPITULATIF!D13 -> 4.686 € | E46: au | F46: =RECAPITULATIF!D15 -> 2019-01-01
R47: ='GRILLE C MA EXTINCTION'!B10 -> 2 | S47: ='GRILLE C MA EXTINCTION'!C10 -> 24 | T47: ='GRILLE C MA EXTINCTION'!D10 -> 328
A49: Soit un gain net mensuel de : | G49: =I40*C46*0.8315 -> 31.17 € | R49: ='GRILLE C MA EXTINCTION'!B12 -> 3 | S49: ='GRILLE C MA EXTINCTION'!C12 -> 24 | T49: ='GRILLE C MA EXTINCTION'!D12 -> 331
R51: ='GRILLE C MA EXTINCTION'!B14 -> 4 | S51: ='GRILLE C MA EXTINCTION'!C14 -> 24 | T51: ='GRILLE C MA EXTINCTION'!D14 -> 338
R53: ='GRILLE C MA EXTINCTION'!B16 -> 5 | S53: ='GRILLE C MA EXTINCTION'!C16 -> 24 | T53: ='GRILLE C MA EXTINCTION'!D16 -> 344
A54: Vos représentant-e-s SUD Santé Sociaux | I54: =RECAPITULATIF!D21 -> 35 | K54: sont à votre disposition
A55: pour tous renseignements complémentaires au poste : | M55: =RECAPITULATIF!D17 -> 2886 | R55: ='GRILLE C MA EXTINCTION'!B18 -> 6 | S55: ='GRILLE C MA EXTINCTION'!C18 -> 24 | T55: ='GRILLE C MA EXTINCTION'!D18 -> 352
R57: ='GRILLE C MA EXTINCTION'!B20 -> 7 | S57: ='GRILLE C MA EXTINCTION'!C20 -> 36 | T57: ='GRILLE C MA EXTINCTION'!D20 -> 367
R59: ='GRILLE C MA EXTINCTION'!B22 -> 8 | S59: ='GRILLE C MA EXTINCTION'!C22 -> 36 | T59: ='GRILLE C MA EXTINCTION'!D22 -> 381
A60: Recevez toutes nos salutations.
R61: ='GRILLE C MA EXTINCTION'!B24 -> 9 | S61: ='GRILLE C MA EXTINCTION'!C24 -> 36 | T61: ='GRILLE C MA EXTINCTION'!D24 -> 404
A63: =RECAPITULATIF!B5 -> Véronique ERUSSARD, Servanne CORNEE, Sébastien BAYAUT | R63: ='GRILLE C MA EXTINCTION'!B26 -> 10 | S63: ='GRILLE C MA EXTINCTION'!C26 -> 36 | T63: ='GRILLE C MA EXTINCTION'!D26 -> 422
A65: SUD Santé Sociaux | E65: =RECAPITULATIF!D21 -> 35 | R65: ='GRILLE C MA EXTINCTION'!B28 -> 11 | S65: ='GRILLE C MA EXTINCTION'!C28 -> 48 | T65: ='GRILLE C MA EXTINCTION'!D28 -> 428
R67: ='GRILLE C MA EXTINCTION'!B30 -> 12 | S67: ='GRILLE C MA EXTINCTION'!C30 -> 48 | T67: ='GRILLE C MA EXTINCTION'!D30 -> 450
R69: ='GRILLE C MA EXTINCTION'!B32 -> 13 | S69: ='GRILLE C MA EXTINCTION'!C32 -> 0 | T69: ='GRILLE C MA EXTINCTION'!D32 -> 466
A71: Tél : | B71: =RECAPITULATIF!D19 -> 02 99 21 28 86
A72: Mél : | C72: =RECAPITULATIF!C23 -> sudsante@ch-stmalo.fr
A73: =RECAPITULATIF!B25 -> Site Départemental Sud | F73: =RECAPITULATIF!D25 -> http://www.sudsantesociaux35.org

Sheet C MA EXT Echelon 7
G2: Commission Administrative
G3: Paritaire | M3: =RECAPITULATIF!D7 -> Locale
M9: Mme, Mr :
M11: Grade :
M13: Service :
A16: Votre ou vos représentant-e-s du personnel
A18: =RECAPITULATIF!B5 -> Véronique ERUSSARD, Servanne CORNEE, Sébastien BAYAUT
A20: SUD Santé Sociaux | E20: =RECAPITULATIF!D21 -> 35 | F20: du:
A22: =RECAPITULATIF!B2 -> Centre Hospitalier de Saint Malo
A24: siégeant auprès de la CAP | F24: =RECAPITULATIF!D7 -> Locale | J24: du : | K24: =RECAPITULATIF!D11 -> 2019-04-16 | N24: vous informe de votre :
F27: AVANCEMENT D’ECHELON
A33: Vous passez à l’échelon : | F33: ='GRILLE C MA EXTINCTION'!B20 -> 7 | H33: Indice Majoré : | L33: ='GRILLE C MA EXTINCTION'!D20 -> 367
A36: Date d'effet : | F36: / | H36: / | I36: =RECAPITULATIF!D9 -> 2019
R39: ='GRILLE C MA EXTINCTION'!B2 -> Catégorie C EXTINCTION Moninteur d'Atelier
A40: Ce qui représente un gain mensuel de : | I40: ='GRILLE C MA EXTINCTION'!D20-'GRILLE C MA EXTINCTION'!D18 -> 15 | K40: points d'indice.
A43: Pour information, la valeur brute du point d'indice | R43: ='GRILLE C MA EXTINCTION'!B6 -> Echelon | S43: ='GRILLE C MA EXTINCTION'!C6 -> Durée (en mois) | T43: ='GRILLE C MA EXTINCTION'!D6 -> Indice Majoré
R45: ='GRILLE C MA EXTINCTION'!B8 -> 1 | S45: ='GRILLE C MA EXTINCTION'!C8 -> 12 | T45: ='GRILLE C MA EXTINCTION'!D8 -> 327
A46: est de | C46: =RECAPITULATIF!D13 -> 4.686 € | E46: au | F46: =RECAPITULATIF!D15 -> 2019-01-01
R47: ='GRILLE C MA EXTINCTION'!B10 -> 2 | S47: ='GRILLE C MA EXTINCTION'!C10 -> 24 | T47: ='GRILLE C MA EXTINCTION'!D10 -> 328
A49: Soit un gain net mensuel de : | G49: =I40*C46*0.8315 -> 58.45 € | R49: ='GRILLE C MA EXTINCTION'!B12 -> 3 | S49: ='GRILLE C MA EXTINCTION'!C12 -> 24 | T49: ='GRILLE C MA EXTINCTION'!D12 -> 331
R51: ='GRILLE C MA EXTINCTION'!B14 -> 4 | S51: ='GRILLE C MA EXTINCTION'!C14 -> 24 | T51: ='GRILLE C MA EXTINCTION'!D14 -> 338
R53: ='GRILLE C MA EXTINCTION'!B16 -> 5 | S53: ='GRILLE C MA EXTINCTION'!C16 -> 24 | T53: ='GRILLE C MA EXTINCTION'!D16 -> 344
A54: Vos représentant-e-s SUD Santé Sociaux | I54: =RECAPITULATIF!D21 -> 35 | K54: sont à votre disposition
A55: pour tous renseignements complémentaires au poste : | M55: =RECAPITULATIF!D17 -> 2886 | R55: ='GRILLE C MA EXTINCTION'!B18 -> 6 | S55: ='GRILLE C MA EXTINCTION'!C18 -> 24 | T55: ='GRILLE C MA EXTINCTION'!D18 -> 352
R57: ='GRILLE C MA EXTINCTION'!B20 -> 7 | S57: ='GRILLE C MA EXTINCTION'!C20 -> 36 | T57: ='GRILLE C MA EXTINCTION'!D20 -> 367
R59: ='GRILLE C MA EXTINCTION'!B22 -> 8 | S59: ='GRILLE C MA EXTINCTION'!C22 -> 36 | T59: ='GRILLE C MA EXTINCTION'!D22 -> 381
A60: Recevez toutes nos salutations.
R61: ='GRILLE C MA EXTINCTION'!B24 -> 9 | S61: ='GRILLE C MA EXTINCTION'!C24 -> 36 | T61: ='GRILLE C MA EXTINCTION'!D24 -> 404
A63: =RECAPITULATIF!B5 -> Véronique ERUSSARD, Servanne CORNEE, Sébastien BAYAUT | R63: ='GRILLE C MA EXTINCTION'!B26 -> 10 | S63: ='GRILLE C MA EXTINCTION'!C26 -> 36 | T63: ='GRILLE C MA EXTINCTION'!D26 -> 422
A65: SUD Santé Sociaux | E65: =RECAPITULATIF!D21 -> 35 | R65: ='GRILLE C MA EXTINCTION'!B28 -> 11 | S65: ='GRILLE C MA EXTINCTION'!C28 -> 48 | T65: ='GRILLE C MA EXTINCTION'!D28 -> 428
R67: ='GRILLE C MA EXTINCTION'!B30 -> 12 | S67: ='GRILLE C MA EXTINCTION'!C30 -> 48 | T67: ='GRILLE C MA EXTINCTION'!D30 -> 450
R69: ='GRILLE C MA EXTINCTION'!B32 -> 13 | S69: ='GRILLE C MA EXTINCTION'!C32 -> 0 | T69: ='GRILLE C MA EXTINCTION'!D32 -> 466
A71: Tél : | B71: =RECAPITULATIF!D19 -> 02 99 21 28 86
A72: Mél : | C72: =RECAPITULATIF!C23 -> sudsante@ch-stmalo.fr
A73: =RECAPITULATIF!B25 -> Site Départemental Sud | F73: =RECAPITULATIF!D25 -> http://www.sudsantesociaux35.org

Sheet C MA EXT Echelon 8
G2: Commission Administrative
G3: Paritaire | M3: =RECAPITULATIF!D7 -> Locale
M9: Mme, Mr :
M11: Grade :
M13: Service :
A16: Votre ou vos représentant-e-s du personnel
A18: =RECAPITULATIF!B5 -> Véronique ERUSSARD, Servanne CORNEE, Sébastien BAYAUT
A20: SUD Santé Sociaux | E20: =RECAPITULATIF!D21 -> 35 | F20: du:
A22: =RECAPITULATIF!B2 -> Centre Hospitalier de Saint Malo
A24: siégeant auprès de la CAP | F24: =RECAPITULATIF!D7 -> Locale | J24: du : | K24: =RECAPITULATIF!D11 -> 2019-04-16 | N24: vous informe de votre :
F27: AVANCEMENT D’ECHELON
A33: Vous passez à l’échelon : | F33: ='GRILLE C MA EXTINCTION'!B22 -> 8 | H33: Indice Majoré : | L33: ='GRILLE C MA EXTINCTION'!D22 -> 381
A36: Date d'effet : | F36: / | H36: / | I36: =RECAPITULATIF!D9 -> 2019
R39: ='GRILLE C MA EXTINCTION'!B2 -> Catégorie C EXTINCTION Moninteur d'Atelier
A40: Ce qui représente un gain mensuel de : | I40: ='GRILLE C MA EXTINCTION'!D22-'GRILLE C MA EXTINCTION'!D20 -> 14 | K40: points d'indice.
A43: Pour information, la valeur brute du point d'indice | R43: ='GRILLE C MA EXTINCTION'!B6 -> Echelon | S43: ='GRILLE C MA EXTINCTION'!C6 -> Durée (en mois) | T43: ='GRILLE C MA EXTINCTION'!D6 -> Indice Majoré
R45: ='GRILLE C MA EXTINCTION'!B8 -> 1 | S45: ='GRILLE C MA EXTINCTION'!C8 -> 12 | T45: ='GRILLE C MA EXTINCTION'!D8 -> 327
A46: est de | C46: =RECAPITULATIF!D13 -> 4.686 € | E46: au | F46: =RECAPITULATIF!D15 -> 2019-01-01
R47: ='GRILLE C MA EXTINCTION'!B10 -> 2 | S47: ='GRILLE C MA EXTINCTION'!C10 -> 24 | T47: ='GRILLE C MA EXTINCTION'!D10 -> 328
A49: Soit un gain net mensuel de : | G49: =I40*C46*0.8315 -> 54.55 € | R49: ='GRILLE C MA EXTINCTION'!B12 -> 3 | S49: ='GRILLE C MA EXTINCTION'!C12 -> 24 | T49: ='GRILLE C MA EXTINCTION'!D12 -> 331
R51: ='GRILLE C MA EXTINCTION'!B14 -> 4 | S51: ='GRILLE C MA EXTINCTION'!C14 -> 24 | T51: ='GRILLE C MA EXTINCTION'!D14 -> 338
R53: ='GRILLE C MA EXTINCTION'!B16 -> 5 | S53: ='GRILLE C MA EXTINCTION'!C16 -> 24 | T53: ='GRILLE C MA EXTINCTION'!D16 -> 344
A54: Vos représentant-e-s SUD Santé Sociaux | I54: =RECAPITULATIF!D21 -> 35 | K54: sont à votre disposition
A55: pour tous renseignements complémentaires au poste : | M55: =RECAPITULATIF!D17 -> 2886 | R55: ='GRILLE C MA EXTINCTION'!B18 -> 6 | S55: ='GRILLE C MA EXTINCTION'!C18 -> 24 | T55: ='GRILLE C MA EXTINCTION'!D18 -> 352
R57: ='GRILLE C MA EXTINCTION'!B20 -> 7 | S57: ='GRILLE C MA EXTINCTION'!C20 -> 36 | T57: ='GRILLE C MA EXTINCTION'!D20 -> 367
R59: ='GRILLE C MA EXTINCTION'!B22 -> 8 | S59: ='GRILLE C MA EXTINCTION'!C22 -> 36 | T59: ='GRILLE C MA EXTINCTION'!D22 -> 381
A60: Recevez toutes nos salutations.
R61: ='GRILLE C MA EXTINCTION'!B24 -> 9 | S61: ='GRILLE C MA EXTINCTION'!C24 -> 36 | T61: ='GRILLE C MA EXTINCTION'!D24 -> 404
A63: =RECAPITULATIF!B5 -> Véronique ERUSSARD, Servanne CORNEE, Sébastien BAYAUT | R63: ='GRILLE C MA EXTINCTION'!B26 -> 10 | S63: ='GRILLE C MA EXTINCTION'!C26 -> 36 | T63: ='GRILLE C MA EXTINCTION'!D26 -> 422
A65: SUD Santé Sociaux | E65: =RECAPITULATIF!D21 -> 35 | R65: ='GRILLE C MA EXTINCTION'!B28 -> 11 | S65: ='GRILLE C MA EXTINCTION'!C28 -> 48 | T65: ='GRILLE C MA EXTINCTION'!D28 -> 428
R67: ='GRILLE C MA EXTINCTION'!B30 -> 12 | S67: ='GRILLE C MA EXTINCTION'!C30 -> 48 | T67: ='GRILLE C MA EXTINCTION'!D30 -> 450
R69: ='GRILLE C MA EXTINCTION'!B32 -> 13 | S69: ='GRILLE C MA EXTINCTION'!C32 -> 0 | T69: ='GRILLE C MA EXTINCTION'!D32 -> 466
A71: Tél : | B71: =RECAPITULATIF!D19 -> 02 99 21 28 86
A72: Mél : | C72: =RECAPITULATIF!C23 -> sudsante@ch-stmalo.fr
A73: =RECAPITULATIF!B25 -> Site Départemental Sud | F73: =RECAPITULATIF!D25 -> http://www.sudsantesociaux35.org

Sheet C MA EXT Echelon 9
G2: Commission Administrative
G3: Paritaire | M3: =RECAPITULATIF!D7 -> Locale
M9: Mme, Mr :
M11: Grade :
M13: Service :
A16: Votre ou vos représentant-e-s du personnel
A18: =RECAPITULATIF!B5 -> Véronique ERUSSARD, Servanne CORNEE, Sébastien BAYAUT
A20: SUD Santé Sociaux | E20: =RECAPITULATIF!D21 -> 35 | F20: du:
A22: =RECAPITULATIF!B2 -> Centre Hospitalier de Saint Malo
A24: siégeant auprès de la CAP | F24: =RECAPITULATIF!D7 -> Locale | J24: du : | K24: =RECAPITULATIF!D11 -> 2019-04-16 | N24: vous informe de votre :
F27: AVANCEMENT D’ECHELON
A33: Vous passez à l’échelon : | F33: ='GRILLE C MA EXTINCTION'!B24 -> 9 | H33: Indice Majoré : | L33: ='GRILLE C MA EXTINCTION'!D24 -> 404
A36: Date d'effet : | F36: / | H36: / | I36: =RECAPITULATIF!D9 -> 2019
R39: ='GRILLE C MA EXTINCTION'!B2 -> Catégorie C EXTINCTION Moninteur d'Atelier
A40: Ce qui représente un gain mensuel de : | I40: ='GRILLE C MA EXTINCTION'!D24-'GRILLE C MA EXTINCTION'!D22 -> 23 | K40: points d'indice.
A43: Pour information, la valeur brute du point d'indice | R43: ='GRILLE C MA EXTINCTION'!B6 -> Echelon | S43: ='GRILLE C MA EXTINCTION'!C6 -> Durée (en mois) | T43: ='GRILLE C MA EXTINCTION'!D6 -> Indice Majoré
R45: ='GRILLE C MA EXTINCTION'!B8 -> 1 | S45: ='GRILLE C MA EXTINCTION'!C8 -> 12 | T45: ='GRILLE C MA EXTINCTION'!D8 -> 327
A46: est de | C46: =RECAPITULATIF!D13 -> 4.686 € | E46: au | F46: =RECAPITULATIF!D15 -> 2019-01-01
R47: ='GRILLE C MA EXTINCTION'!B10 -> 2 | S47: ='GRILLE C MA EXTINCTION'!C10 -> 24 | T47: ='GRILLE C MA EXTINCTION'!D10 -> 328
A49: Soit un gain net mensuel de : | G49: =I40*C46*0.8315 -> 89.62 € | R49: ='GRILLE C MA EXTINCTION'!B12 -> 3 | S49: ='GRILLE C MA EXTINCTION'!C12 -> 24 | T49: ='GRILLE C MA EXTINCTION'!D12 -> 331
R51: ='GRILLE C MA EXTINCTION'!B14 -> 4 | S51: ='GRILLE C MA EXTINCTION'!C14 -> 24 | T51: ='GRILLE C MA EXTINCTION'!D14 -> 338
R53: ='GRILLE C MA EXTINCTION'!B16 -> 5 | S53: ='GRILLE C MA EXTINCTION'!C16 -> 24 | T53: ='GRILLE C MA EXTINCTION'!D16 -> 344
A54: Vos représentant-e-s SUD Santé Sociaux | I54: =RECAPITULATIF!D21 -> 35 | K54: sont à votre disposition
A55: pour tous renseignements complémentaires au poste : | M55: =RECAPITULATIF!D17 -> 2886 | R55: ='GRILLE C MA EXTINCTION'!B18 -> 6 | S55: ='GRILLE C MA EXTINCTION'!C18 -> 24 | T55: ='GRILLE C MA EXTINCTION'!D18 -> 352
R57: ='GRILLE C MA EXTINCTION'!B20 -> 7 | S57: ='GRILLE C MA EXTINCTION'!C20 -> 36 | T57: ='GRILLE C MA EXTINCTION'!D20 -> 367
R59: ='GRILLE C MA EXTINCTION'!B22 -> 8 | S59: ='GRILLE C MA EXTINCTION'!C22 -> 36 | T59: ='GRILLE C MA EXTINCTION'!D22 -> 381
A60: Recevez toutes nos salutations.
R61: ='GRILLE C MA EXTINCTION'!B24 -> 9 | S61: ='GRILLE C MA EXTINCTION'!C24 -> 36 | T61: ='GRILLE C MA EXTINCTION'!D24 -> 404
A63: =RECAPITULATIF!B5 -> Véronique ERUSSARD, Servanne CORNEE, Sébastien BAYAUT | R63: ='GRILLE C MA EXTINCTION'!B26 -> 10 | S63: ='GRILLE C MA EXTINCTION'!C26 -> 36 | T63: ='GRILLE C MA EXTINCTION'!D26 -> 422
A65: SUD Santé Sociaux | E65: =RECAPITULATIF!D21 -> 35 | R65: ='GRILLE C MA EXTINCTION'!B28 -> 11 | S65: ='GRILLE C MA EXTINCTION'!C28 -> 48 | T65: ='GRILLE C MA EXTINCTION'!D28 -> 428
R67: ='GRILLE C MA EXTINCTION'!B30 -> 12 | S67: ='GRILLE C MA EXTINCTION'!C30 -> 48 | T67: ='GRILLE C MA EXTINCTION'!D30 -> 450
R69: ='GRILLE C MA EXTINCTION'!B32 -> 13 | S69: ='GRILLE C MA EXTINCTION'!C32 -> 0 | T69: ='GRILLE C MA EXTINCTION'!D32 -> 466
A71: Tél : | B71: =RECAPITULATIF!D19 -> 02 99 21 28 86
A72: Mél : | C72: =RECAPITULATIF!C23 -> sudsante@ch-stmalo.fr
A73: =RECAPITULATIF!B25 -> Site Départemental Sud | F73: =RECAPITULATIF!D25 -> http://www.sudsantesociaux35.org

Sheet C MA EXT Echelon 10
G2: Commission Administrative
G3: Paritaire | M3: =RECAPITULATIF!D7 -> Locale
M9: Mme, Mr :
M11: Grade :
M13: Service :
A16: Votre ou vos représentant-e-s du personnel
A18: =RECAPITULATIF!B5 -> Véronique ERUSSARD, Servanne CORNEE, Sébastien BAYAUT
A20: SUD Santé Sociaux | E20: =RECAPITULATIF!D21 -> 35 | F20: du:
A22: =RECAPITULATIF!B2 -> Centre Hospitalier de Saint Malo
A24: siégeant auprès de la CAP | F24: =RECAPITULATIF!D7 -> Locale | J24: du : | K24: =RECAPITULATIF!D11 -> 2019-04-16 | N24: vous informe de votre :
F27: AVANCEMENT D’ECHELON
A33: Vous passez à l’échelon : | F33: ='GRILLE C MA EXTINCTION'!B26 -> 10 | H33: Indice Majoré : | L33: ='GRILLE C MA EXTINCTION'!D26 -> 422
A36: Date d'effet : | F36: / | H36: / | I36: =RECAPITULATIF!D9 -> 2019
R39: ='GRILLE C MA EXTINCTION'!B2 -> Catégorie C EXTINCTION Moninteur d'Atelier
A40: Ce qui représente un gain mensuel de : | I40: ='GRILLE C MA EXTINCTION'!D26-'GRILLE C MA EXTINCTION'!D24 -> 18 | K40: points d'indice.
A43: Pour information, la valeur brute du point d'indice | R43: ='GRILLE C MA EXTINCTION'!B6 -> Echelon | S43: ='GRILLE C MA EXTINCTION'!C6 -> Durée (en mois) | T43: ='GRILLE C MA EXTINCTION'!D6 -> Indice Majoré
R45: ='GRILLE C MA EXTINCTION'!B8 -> 1 | S45: ='GRILLE C MA EXTINCTION'!C8 -> 12 | T45: ='GRILLE C MA EXTINCTION'!D8 -> 327
A46: est de | C46: =RECAPITULATIF!D13 -> 4.686 € | E46: au | F46: =RECAPITULATIF!D15 -> 2019-01-01
R47: ='GRILLE C MA EXTINCTION'!B10 -> 2 | S47: ='GRILLE C MA EXTINCTION'!C10 -> 24 | T47: ='GRILLE C MA EXTINCTION'!D10 -> 328
A49: Soit un gain net mensuel de : | G49: =I40*C46*0.8315 -> 70.14 € | R49: ='GRILLE C MA EXTINCTION'!B12 -> 3 | S49: ='GRILLE C MA EXTINCTION'!C12 -> 24 | T49: ='GRILLE C MA EXTINCTION'!D12 -> 331
R51: ='GRILLE C MA EXTINCTION'!B14 -> 4 | S51: ='GRILLE C MA EXTINCTION'!C14 -> 24 | T51: ='GRILLE C MA EXTINCTION'!D14 -> 338
R53: ='GRILLE C MA EXTINCTION'!B16 -> 5 | S53: ='GRILLE C MA EXTINCTION'!C16 -> 24 | T53: ='GRILLE C MA EXTINCTION'!D16 -> 344
A54: Vos représentant-e-s SUD Santé Sociaux | I54: =RECAPITULATIF!D21 -> 35 | K54: sont à votre disposition
A55: pour tous renseignements complémentaires au poste : | M55: =RECAPITULATIF!D17 -> 2886 | R55: ='GRILLE C MA EXTINCTION'!B18 -> 6 | S55: ='GRILLE C MA EXTINCTION'!C18 -> 24 | T55: ='GRILLE C MA EXTINCTION'!D18 -> 352
R57: ='GRILLE C MA EXTINCTION'!B20 -> 7 | S57: ='GRILLE C MA EXTINCTION'!C20 -> 36 | T57: ='GRILLE C MA EXTINCTION'!D20 -> 367
R59: ='GRILLE C MA EXTINCTION'!B22 -> 8 | S59: ='GRILLE C MA EXTINCTION'!C22 -> 36 | T59: ='GRILLE C MA EXTINCTION'!D22 -> 381
A60: Recevez toutes nos salutations.
R61: ='GRILLE C MA EXTINCTION'!B24 -> 9 | S61: ='GRILLE C MA EXTINCTION'!C24 -> 36 | T61: ='GRILLE C MA EXTINCTION'!D24 -> 404
A63: =RECAPITULATIF!B5 -> Véronique ERUSSARD, Servanne CORNEE, Sébastien BAYAUT | R63: ='GRILLE C MA EXTINCTION'!B26 -> 10 | S63: ='GRILLE C MA EXTINCTION'!C26 -> 36 | T63: ='GRILLE C MA EXTINCTION'!D26 -> 422
A65: SUD Santé Sociaux | E65: =RECAPITULATIF!D21 -> 35 | R65: ='GRILLE C MA EXTINCTION'!B28 -> 11 | S65: ='GRILLE C MA EXTINCTION'!C28 -> 48 | T65: ='GRILLE C MA EXTINCTION'!D28 -> 428
R67: ='GRILLE C MA EXTINCTION'!B30 -> 12 | S67: ='GRILLE C MA EXTINCTION'!C30 -> 48 | T67: ='GRILLE C MA EXTINCTION'!D30 -> 450
R69: ='GRILLE C MA EXTINCTION'!B32 -> 13 | S69: ='GRILLE C MA EXTINCTION'!C32 -> 0 | T69: ='GRILLE C MA EXTINCTION'!D32 -> 466
A71: Tél : | B71: =RECAPITULATIF!D19 -> 02 99 21 28 86
A72: Mél : | C72: =RECAPITULATIF!C23 -> sudsante@ch-stmalo.fr
A73: =RECAPITULATIF!B25 -> Site Départemental Sud | F73: =RECAPITULATIF!D25 -> http://www.sudsantesociaux35.org

Sheet C MA EXT Echelon 11
G2: Commission Administrative
G3: Paritaire | M3: =RECAPITULATIF!D7 -> Locale
M9: Mme, Mr :
M11: Grade :
M13: Service :
A16: Votre ou vos représentant-e-s du personnel
A18: =RECAPITULATIF!B5 -> Véronique ERUSSARD, Servanne CORNEE, Sébastien BAYAUT
A20: SUD Santé Sociaux | E20: =RECAPITULATIF!D21 -> 35 | F20: du:
A22: =RECAPITULATIF!B2 -> Centre Hospitalier de Saint Malo
A24: siégeant auprès de la CAP | F24: =RECAPITULATIF!D7 -> Locale | J24: du : | K24: =RECAPITULATIF!D11 -> 2019-04-16 | N24: vous informe de votre :
F27: AVANCEMENT D’ECHELON
A33: Vous passez à l’échelon : | F33: ='GRILLE C MA EXTINCTION'!B28 -> 11 | H33: Indice Majoré : | L33: ='GRILLE C MA EXTINCTION'!D28 -> 428
A36: Date d'effet : | F36: / | H36: / | I36: =RECAPITULATIF!D9 -> 2019
R39: ='GRILLE C MA EXTINCTION'!B2 -> Catégorie C EXTINCTION Moninteur d'Atelier
A40: Ce qui représente un gain mensuel de : | I40: ='GRILLE C MA EXTINCTION'!D28-'GRILLE C MA EXTINCTION'!D26 -> 6 | K40: points d'indice.
A43: Pour information, la valeur brute du point d'indice | R43: ='GRILLE C MA EXTINCTION'!B6 -> Echelon | S43: ='GRILLE C MA EXTINCTION'!C6 -> Durée (en mois) | T43: ='GRILLE C MA EXTINCTION'!D6 -> Indice Majoré
R45: ='GRILLE C MA EXTINCTION'!B8 -> 1 | S45: ='GRILLE C MA EXTINCTION'!C8 -> 12 | T45: ='GRILLE C MA EXTINCTION'!D8 -> 327
A46: est de | C46: =RECAPITULATIF!D13 -> 4.686 € | E46: au | F46: =RECAPITULATIF!D15 -> 2019-01-01
R47: ='GRILLE C MA EXTINCTION'!B10 -> 2 | S47: ='GRILLE C MA EXTINCTION'!C10 -> 24 | T47: ='GRILLE C MA EXTINCTION'!D10 -> 328
A49: Soit un gain net mensuel de : | G49: =I40*C46*0.8315 -> 23.38 € | R49: ='GRILLE C MA EXTINCTION'!B12 -> 3 | S49: ='GRILLE C MA EXTINCTION'!C12 -> 24 | T49: ='GRILLE C MA EXTINCTION'!D12 -> 331
R51: ='GRILLE C MA EXTINCTION'!B14 -> 4 | S51: ='GRILLE C MA EXTINCTION'!C14 -> 24 | T51: ='GRILLE C MA EXTINCTION'!D14 -> 338
R53: ='GRILLE C MA EXTINCTION'!B16 -> 5 | S53: ='GRILLE C MA EXTINCTION'!C16 -> 24 | T53: ='GRILLE C MA EXTINCTION'!D16 -> 344
A54: Vos représentant-e-s SUD Santé Sociaux | I54: =RECAPITULATIF!D21 -> 35 | K54: sont à votre disposition
A55: pour tous renseignements complémentaires au poste : | M55: =RECAPITULATIF!D17 -> 2886 | R55: ='GRILLE C MA EXTINCTION'!B18 -> 6 | S55: ='GRILLE C MA EXTINCTION'!C18 -> 24 | T55: ='GRILLE C MA EXTINCTION'!D18 -> 352
R57: ='GRILLE C MA EXTINCTION'!B20 -> 7 | S57: ='GRILLE C MA EXTINCTION'!C20 -> 36 | T57: ='GRILLE C MA EXTINCTION'!D20 -> 367
R59: ='GRILLE C MA EXTINCTION'!B22 -> 8 | S59: ='GRILLE C MA EXTINCTION'!C22 -> 36 | T59: ='GRILLE C MA EXTINCTION'!D22 -> 381
A60: Recevez toutes nos salutations.
R61: ='GRILLE C MA EXTINCTION'!B24 -> 9 | S61: ='GRILLE C MA EXTINCTION'!C24 -> 36 | T61: ='GRILLE C MA EXTINCTION'!D24 -> 404
A63: =RECAPITULATIF!B5 -> Véronique ERUSSARD, Servanne CORNEE, Sébastien BAYAUT | R63: ='GRILLE C MA EXTINCTION'!B26 -> 10 | S63: ='GRILLE C MA EXTINCTION'!C26 -> 36 | T63: ='GRILLE C MA EXTINCTION'!D26 -> 422
A65: SUD Santé Sociaux | E65: =RECAPITULATIF!D21 -> 35 | R65: ='GRILLE C MA EXTINCTION'!B28 -> 11 | S65: ='GRILLE C MA EXTINCTION'!C28 -> 48 | T65: ='GRILLE C MA EXTINCTION'!D28 -> 428
R67: ='GRILLE C MA EXTINCTION'!B30 -> 12 | S67: ='GRILLE C MA EXTINCTION'!C30 -> 48 | T67: ='GRILLE C MA EXTINCTION'!D30 -> 450
R69: ='GRILLE C MA EXTINCTION'!B32 -> 13 | S69: ='GRILLE C MA EXTINCTION'!C32 -> 0 | T69: ='GRILLE C MA EXTINCTION'!D32 -> 466
A71: Tél : | B71: =RECAPITULATIF!D19 -> 02 99 21 28 86
A72: Mél : | C72: =RECAPITULATIF!C23 -> sudsante@ch-stmalo.fr
A73: =RECAPITULATIF!B25 -> Site Départemental Sud | F73: =RECAPITULATIF!D25 -> http://www.sudsantesociaux35.org

Sheet C MA EXT Echelon 12
G2: Commission Administrative
G3: Paritaire | M3: =RECAPITULATIF!D7 -> Locale
M9: Mme, Mr :
M11: Grade :
M13: Service :
A16: Votre ou vos représentant-e-s du personnel
A18: =RECAPITULATIF!B5 -> Véronique ERUSSARD, Servanne CORNEE, Sébastien BAYAUT
A20: SUD Santé Sociaux | E20: =RECAPITULATIF!D21 -> 35 | F20: du:
A22: =RECAPITULATIF!B2 -> Centre Hospitalier de Saint Malo
A24: siégeant auprès de la CAP | F24: =RECAPITULATIF!D7 -> Locale | J24: du : | K24: =RECAPITULATIF!D11 -> 2019-04-16 | N24: vous informe de votre :
F27: AVANCEMENT D’ECHELON
A33: Vous passez à l’échelon : | F33: ='GRILLE C MA EXTINCTION'!B30 -> 12 | H33: Indice Majoré : | L33: ='GRILLE C MA EXTINCTION'!D30 -> 450
A36: Date d'effet : | F36: / | H36: / | I36: =RECAPITULATIF!D9 -> 2019
R39: ='GRILLE C MA EXTINCTION'!B2 -> Catégorie C EXTINCTION Moninteur d'Atelier
A40: Ce qui représente un gain mensuel de : | I40: ='GRILLE C MA EXTINCTION'!D30-'GRILLE C MA EXTINCTION'!D28 -> 22 | K40: points d'indice.
A43: Pour information, la valeur brute du point d'indice | R43: ='GRILLE C MA EXTINCTION'!B6 -> Echelon | S43: ='GRILLE C MA EXTINCTION'!C6 -> Durée (en mois) | T43: ='GRILLE C MA EXTINCTION'!D6 -> Indice Majoré
R45: ='GRILLE C MA EXTINCTION'!B8 -> 1 | S45: ='GRILLE C MA EXTINCTION'!C8 -> 12 | T45: ='GRILLE C MA EXTINCTION'!D8 -> 327
A46: est de | C46: =RECAPITULATIF!D13 -> 4.686 € | E46: au | F46: =RECAPITULATIF!D15 -> 2019-01-01
R47: ='GRILLE C MA EXTINCTION'!B10 -> 2 | S47: ='GRILLE C MA EXTINCTION'!C10 -> 24 | T47: ='GRILLE C MA EXTINCTION'!D10 -> 328
A49: Soit un gain net mensuel de : | G49: =I40*C46*0.8315 -> 85.72 € | R49: ='GRILLE C MA EXTINCTION'!B12 -> 3 | S49: ='GRILLE C MA EXTINCTION'!C12 -> 24 | T49: ='GRILLE C MA EXTINCTION'!D12 -> 331
R51: ='GRILLE C MA EXTINCTION'!B14 -> 4 | S51: ='GRILLE C MA EXTINCTION'!C14 -> 24 | T51: ='GRILLE C MA EXTINCTION'!D14 -> 338
R53: ='GRILLE C MA EXTINCTION'!B16 -> 5 | S53: ='GRILLE C MA EXTINCTION'!C16 -> 24 | T53: ='GRILLE C MA EXTINCTION'!D16 -> 344
A54: Vos représentant-e-s SUD Santé Sociaux | I54: =RECAPITULATIF!D21 -> 35 | K54: sont à votre disposition
A55: pour tous renseignements complémentaires au poste : | M55: =RECAPITULATIF!D17 -> 2886 | R55: ='GRILLE C MA EXTINCTION'!B18 -> 6 | S55: ='GRILLE C MA EXTINCTION'!C18 -> 24 | T55: ='GRILLE C MA EXTINCTION'!D18 -> 352
R57: ='GRILLE C MA EXTINCTION'!B20 -> 7 | S57: ='GRILLE C MA EXTINCTION'!C20 -> 36 | T57: ='GRILLE C MA EXTINCTION'!D20 -> 367
R59: ='GRILLE C MA EXTINCTION'!B22 -> 8 | S59: ='GRILLE C MA EXTINCTION'!C22 -> 36 | T59: ='GRILLE C MA EXTINCTION'!D22 -> 381
A60: Recevez toutes nos salutations.
R61: ='GRILLE C MA EXTINCTION'!B24 -> 9 | S61: ='GRILLE C MA EXTINCTION'!C24 -> 36 | T61: ='GRILLE C MA EXTINCTION'!D24 -> 404
A63: =RECAPITULATIF!B5 -> Véronique ERUSSARD, Servanne CORNEE, Sébastien BAYAUT | R63: ='GRILLE C MA EXTINCTION'!B26 -> 10 | S63: ='GRILLE C MA EXTINCTION'!C26 -> 36 | T63: ='GRILLE C MA EXTINCTION'!D26 -> 422
A65: SUD Santé Sociaux | E65: =RECAPITULATIF!D21 -> 35 | R65: ='GRILLE C MA EXTINCTION'!B28 -> 11 | S65: ='GRILLE C MA EXTINCTION'!C28 -> 48 | T65: ='GRILLE C MA EXTINCTION'!D28 -> 428
R67: ='GRILLE C MA EXTINCTION'!B30 -> 12 | S67: ='GRILLE C MA EXTINCTION'!C30 -> 48 | T67: ='GRILLE C MA EXTINCTION'!D30 -> 450
R69: ='GRILLE C MA EXTINCTION'!B32 -> 13 | S69: ='GRILLE C MA EXTINCTION'!C32 -> 0 | T69: ='GRILLE C MA EXTINCTION'!D32 -> 466
A71: Tél : | B71: =RECAPITULATIF!D19 -> 02 99 21 28 86
A72: Mél : | C72: =RECAPITULATIF!C23 -> sudsante@ch-stmalo.fr
A73: =RECAPITULATIF!B25 -> Site Départemental Sud | F73: =RECAPITULATIF!D25 -> http://www.sudsantesociaux35.org

Sheet C MA EXT Echelon 13
G2: Commission Administrative
G3: Paritaire | M3: =RECAPITULATIF!D7 -> Locale
M9: Mme, Mr :
M11: Grade :
M13: Service :
A16: Votre ou vos représentant-e-s du personnel
A18: =RECAPITULATIF!B5 -> Véronique ERUSSARD, Servanne CORNEE, Sébastien BAYAUT
A20: SUD Santé Sociaux | E20: =RECAPITULATIF!D21 -> 35 | F20: du:
A22: =RECAPITULATIF!B2 -> Centre Hospitalier de Saint Malo
A24: siégeant auprès de la CAP | F24: =RECAPITULATIF!D7 -> Locale | J24: du : | K24: =RECAPITULATIF!D11 -> 2019-04-16 | N24: vous informe de votre :
F27: AVANCEMENT D’ECHELON
A33: Vous passez à l’échelon : | F33: ='GRILLE C MA EXTINCTION'!B32 -> 13 | H33: Indice Majoré : | L33: ='GRILLE C MA EXTINCTION'!D32 -> 466
A36: Date d'effet : | F36: / | H36: / | I36: =RECAPITULATIF!D9 -> 2019
R39: ='GRILLE C MA EXTINCTION'!B2 -> Catégorie C EXTINCTION Moninteur d'Atelier
A40: Ce qui représente un gain mensuel de : | I40: ='GRILLE C MA EXTINCTION'!D32-'GRILLE C MA EXTINCTION'!D30 -> 16 | K40: points d'indice.
A43: Pour information, la valeur brute du point d'indice | R43: ='GRILLE C MA EXTINCTION'!B6 -> Echelon | S43: ='GRILLE C MA EXTINCTION'!C6 -> Durée (en mois) | T43: ='GRILLE C MA EXTINCTION'!D6 -> Indice Majoré
R45: ='GRILLE C MA EXTINCTION'!B8 -> 1 | S45: ='GRILLE C MA EXTINCTION'!C8 -> 12 | T45: ='GRILLE C MA EXTINCTION'!D8 -> 327
A46: est de | C46: =RECAPITULATIF!D13 -> 4.686 € | E46: au | F46: =RECAPITULATIF!D15 -> 2019-01-01
R47: ='GRILLE C MA EXTINCTION'!B10 -> 2 | S47: ='GRILLE C MA EXTINCTION'!C10 -> 24 | T47: ='GRILLE C MA EXTINCTION'!D10 -> 328
A49: Soit un gain net mensuel de : | G49: =I40*C46*0.8315 -> 62.34 € | R49: ='GRILLE C MA EXTINCTION'!B12 -> 3 | S49: ='GRILLE C MA EXTINCTION'!C12 -> 24 | T49: ='GRILLE C MA EXTINCTION'!D12 -> 331
R51: ='GRILLE C MA EXTINCTION'!B14 -> 4 | S51: ='GRILLE C MA EXTINCTION'!C14 -> 24 | T51: ='GRILLE C MA EXTINCTION'!D14 -> 338
R53: ='GRILLE C MA EXTINCTION'!B16 -> 5 | S53: ='GRILLE C MA EXTINCTION'!C16 -> 24 | T53: ='GRILLE C MA EXTINCTION'!D16 -> 344
A54: Vos représentant-e-s SUD Santé Sociaux | I54: =RECAPITULATIF!D21 -> 35 | K54: sont à votre disposition
A55: pour tous renseignements complémentaires au poste : | M55: =RECAPITULATIF!D17 -> 2886 | R55: ='GRILLE C MA EXTINCTION'!B18 -> 6 | S55: ='GRILLE C MA EXTINCTION'!C18 -> 24 | T55: ='GRILLE C MA EXTINCTION'!D18 -> 352
R57: ='GRILLE C MA EXTINCTION'!B20 -> 7 | S57: ='GRILLE C MA EXTINCTION'!C20 -> 36 | T57: ='GRILLE C MA EXTINCTION'!D20 -> 367
R59: ='GRILLE C MA EXTINCTION'!B22 -> 8 | S59: ='GRILLE C MA EXTINCTION'!C22 -> 36 | T59: ='GRILLE C MA EXTINCTION'!D22 -> 381
A60: Recevez toutes nos salutations.
R61: ='GRILLE C MA EXTINCTION'!B24 -> 9 | S61: ='GRILLE C MA EXTINCTION'!C24 -> 36 | T61: ='GRILLE C MA EXTINCTION'!D24 -> 404
A63: =RECAPITULATIF!B5 -> Véronique ERUSSARD, Servanne CORNEE, Sébastien BAYAUT | R63: ='GRILLE C MA EXTINCTION'!B26 -> 10 | S63: ='GRILLE C MA EXTINCTION'!C26 -> 36 | T63: ='GRILLE C MA EXTINCTION'!D26 -> 422
A65: SUD Santé Sociaux | E65: =RECAPITULATIF!D21 -> 35 | R65: ='GRILLE C MA EXTINCTION'!B28 -> 11 | S65: ='GRILLE C MA EXTINCTION'!C28 -> 48 | T65: ='GRILLE C MA EXTINCTION'!D28 -> 428
R67: ='GRILLE C MA EXTINCTION'!B30 -> 12 | S67: ='GRILLE C MA EXTINCTION'!C30 -> 48 | T67: ='GRILLE C MA EXTINCTION'!D30 -> 450
R69: ='GRILLE C MA EXTINCTION'!B32 -> 13 | S69: ='GRILLE C MA EXTINCTION'!C32 -> 0 | T69: ='GRILLE C MA EXTINCTION'!D32 -> 466
A71: Tél : | B71: =RECAPITULATIF!D19 -> 02 99 21 28 86
A72: Mél : | C72: =RECAPITULATIF!C23 -> sudsante@ch-stmalo.fr
A73: =RECAPITULATIF!B25 -> Site Départemental Sud | F73: =RECAPITULATIF!D25 -> http://www.sudsantesociaux35.org
